Departmental Family,Entity,Date,Expense Type,Expense Area,Supplier,Transaction Number,Amount
Department for Work and Pensions,Corporate,21-Dec-12,PRIME FACILITY PRICE,OPS OPE ESTATES BASELINE,TELEREAL TRILLIUM,2027859524,"31,803,941.00"
Department for Work and Pensions,Corporate,12-Dec-12,HOSTING SERVICES,CIO CSD ITLR HOSTING,HP ENTERPRISE SERVICES UK LTD,2027760520,"13,978,947.00"
Department for Work and Pensions,Corporate,31-Dec-12,NEST Loan - in year additions,CHG ERSP DEL A,NEST CORPORATION,2003598,"7,000,000.00"
Department for Work and Pensions,Corporate,12-Dec-12,DESKTOP SERVICES,CIO CSD ITLR DESKTOP,HP ENTERPRISE SERVICES UK LTD,2027760520,"6,280,122.00"
Department for Work and Pensions,Corporate,07-Dec-12,NON-TREDDS IS IT APPS DEV MANDAY,CHG UC PROJECT LEDGER CC,IBM UNITED KINGDOM LTD,2027685788,"6,222,040.00"
Department for Work and Pensions,Corporate,31-Dec-12,POST OFFICE CARD ACCOUNT,F&C FIN CONT COBAP POCA,POST OFFICE LTD,1005573,"5,367,633.00"
Department for Work and Pensions,Corporate,12-Dec-12,POST OFFICE CARD ACCOUNT,F&C FIN CONT COBAP POCA,POST OFFICE LTD,1005554,"5,346,924.00"
Department for Work and Pensions,Corporate,21-Dec-12,PRIME BUSINESS RATES,OPS OPE ESTATES BASELINE,TELEREAL TRILLIUM,2027859523,"5,006,194.00"
Department for Work and Pensions,Corporate,19-Dec-12,NON-TREDDS IS IT APPS DEV MANDAY,CHG UC PROJECT LEDGER CC,ACCENTURE UK LTD,2027787354,"4,997,783.00"
Department for Work and Pensions,Corporate,19-Dec-12,MEDICAL OPINIONS INCAPACITY BENEFIT,OPS CCS MEDICAL SERVICES,ATOS HEALTHCARE,2027786653,"4,610,859.00"
Department for Work and Pensions,Corporate,21-Dec-12,AR PRIME RECOVERIES,BALANCE SHEET,TELEREAL TRILLIUM,2027859524,"4,275,968.00"
Department for Work and Pensions,Corporate,18-Dec-12,POSTAGE,F&C CD ACC POSTAGE,UK MAIL,2027782260,"3,873,865.00"
Department for Work and Pensions,Corporate,13-Dec-12,NETWORK SERVICES,CIO CSD ITLR NETWORK,BT GLOBAL SERVICES,2027764755,"3,840,054.00"
Department for Work and Pensions,Corporate,12-Dec-12,AMS FIXED PRICE CONTRACTS,CIO CSD ITLR AMS,HP ENTERPRISE SERVICES UK LTD,2027760520,"3,659,824.00"
Department for Work and Pensions,Child Maintenance and Enforcement Commission,31-Dec-12,HOSTING SERVICES,LEGACY SYSTEMS IT RUNNING COSTS - IOL,DEPARTMENT FOR WORK & PENSIONS,2000749,"3,631,682.00"
Department for Work and Pensions,Corporate,14-Dec-12,CONTRACTED OUT OFFICE SERVICES,OPS OPE CENTRAL CONTACTS,BALFOUR BEATTY WORKPLACE LTD,2027772584,"3,597,628.00"
Department for Work and Pensions,Corporate,17-Dec-12,MEDICAL SERVICES FIXED COSTS,OPS CCS MEDICAL SERVICES,ATOS HEALTHCARE,2027776036,"3,556,557.00"
Department for Work and Pensions,Corporate,11-Dec-12,SIMPLE PAYMENT SERVICE,F&C FIN CONT COBAP CHEQUES,CITIBANK GLOBAL CORPORATE BANKING,2003561,"3,223,500.00"
Department for Work and Pensions,Corporate,13-Dec-12,NETWORK CONTACT CENTRE SERVICES,CIO CSD ITLR NETWORK,BT GLOBAL SERVICES,2027764755,"2,794,798.00"
Department for Work and Pensions,Child Maintenance and Enforcement Commission,27-Dec-12,CONTRACTED OUT OFFICE SERVICES,EXTERNAL CONTRACTS VERTEX,SERCO PUBLIC SERVICES LTD,1000164403,"2,706,154.00"
Department for Work and Pensions,Corporate,13-Dec-12,TELEPHONY CALL CHARGES,CIO CSD ITLR NETWORK,BT GLOBAL SERVICES,2027764755,"2,653,286.00"
Department for Work and Pensions,Corporate,10-Dec-12,PRIME UNAVOIDABLE COSTS (UAC),CHG ESTATES RATIONALISATION FORMER JCP OPS,TELEREAL TRILLIUM,2027690944,"2,617,723.00"
Department for Work and Pensions,Corporate,19-Dec-12,NETWORK SERVICES,CIO CSD ITLR NETWORK,BT GLOBAL SERVICES,2027787500,"2,451,296.00"
Department for Work and Pensions,Child Maintenance and Enforcement Commission,03-Dec-12,CONTRACTED OUT OFFICE SERVICES,EXTERNAL CONTRACTS VERTEX,SERCO PUBLIC SERVICES LTD,1000162156,"2,410,551.00"
Department for Work and Pensions,Corporate,13-Dec-12,HOSTING SERVICES,CIO CSD ITLR HOSTING,HP ENTERPRISE SERVICES UK LTD,2027764822,"2,354,684.00"
Department for Work and Pensions,Corporate,10-Dec-12,SOFTWARE LICENCES,CIO CSD ITLR HOSTING,COMPUTACENTER UK LTD,2027692888,"2,131,829.00"
Department for Work and Pensions,Corporate,21-Dec-12,PROFESSIONAL ADVICE & OPINION VAT RECOVERABLE,CHG SOCIAL FUND REFORM,SCOTTISH GOVERNMENT,2027860725,"2,037,952.00"
Department for Work and Pensions,Corporate,11-Dec-12,NON-TREDDS IS IT APPS DEV MANDAY,CHG UC PROJECT LEDGER CC,ACCENTURE UK LTD,2027698724,"1,960,267.00"
Department for Work and Pensions,Corporate,11-Dec-12,TREDDS APPS DEV MANDAYS,CHG UC PROJECT LEDGER CC,HP ENTERPRISE SERVICES UK LTD,2027699104,"1,949,199.00"
Department for Work and Pensions,Child Maintenance and Enforcement Commission,31-Dec-12,BELFAST BENEFIT CENTRE (RUN COSTS),CSA CD CENT HELD NORTHERN IRELAND PAYMENTS,DSD GROUP ACCOUNT,1001168,"1,930,859.00"
Department for Work and Pensions,Corporate,12-Dec-12,SIAM FIXED PRICE CONTRACTS,CIO CSD ITLR SIAM,HP ENTERPRISE SERVICES UK LTD,2027760520,"1,788,927.00"
Department for Work and Pensions,Corporate,18-Dec-12,NON PRIME UTILITIES,F&C CD DWP GAS & ELECTRICITY PAYMENTS / RECHARGES,EDF ENERGY 1 LTD SCC UTILITIES ONLY,2027784553,"1,671,958.00"
Department for Work and Pensions,Corporate,21-Dec-12,PRIME FACILITY PRICE,OPS OPE ESTATES RECESSION,TELEREAL TRILLIUM,2027859524,"1,634,438.00"
Department for Work and Pensions,Corporate,04-Dec-12,BELFAST BENEFIT CENTRE (RUN COSTS),OPS BEN BD LN BELFAST,DEPARTMENT OF SOCIAL DEVELOPMENT,1005529,"1,593,906.00"
Department for Work and Pensions,Corporate,04-Dec-12,BELFAST BENEFIT CENTRE (RUN COSTS),OPS BEN BD LN BELFAST,DEPARTMENT OF SOCIAL DEVELOPMENT,1005531,"1,587,192.00"
Department for Work and Pensions,Corporate,31-Dec-12,BELFAST BENEFIT CENTRE (RUN COSTS),OPS BEN BD LN BELFAST,DEPARTMENT FOR SOCIAL DEVELOPMENT,1005571,"1,550,612.00"
Department for Work and Pensions,Corporate,07-Dec-12,TREDDS APPS DEV MANDAYS,CHG PIP DELIVERY,HP ENTERPRISE SERVICES UK LTD,2027686451,"1,538,393.00"
Department for Work and Pensions,Corporate,04-Dec-12,BELFAST BENEFIT CENTRE (RUN COSTS),OPS BEN BD LN BELFAST,DEPARTMENT OF SOCIAL DEVELOPMENT,1005530,"1,537,583.00"
Department for Work and Pensions,Corporate,04-Dec-12,BELFAST BENEFIT CENTRE (RUN COSTS),OPS BEN BD LN BELFAST,DEPARTMENT OF SOCIAL DEVELOPMENT,1005528,"1,517,790.00"
Department for Work and Pensions,Corporate,19-Dec-12,MEDICAL SERVICES FIXED COSTS,OPS CCS MEDICAL SERVICES,ATOS ORIGIN IT SERVICES UK,2027786405,"1,453,432.00"
Department for Work and Pensions,Corporate,13-Dec-12,SOFTWARE LICENCES,CIO CSD ITLR HOSTING,HP ENTERPRISE SERVICES UK LTD,2027764822,"1,439,353.00"
Department for Work and Pensions,Corporate,17-Dec-12,HOSTING PRINT SERVICES,CIO CSD ITLR HOSTING,HP ENTERPRISE SERVICES UK LTD,2027775513,"1,437,864.00"
Department for Work and Pensions,Child Maintenance and Enforcement Commission,31-Dec-12,NETWORK SERVICES,LEGACY SYSTEMS IT RUNNING COSTS - IOL,DEPARTMENT FOR WORK & PENSIONS,2000749,"1,418,174.00"
Department for Work and Pensions,Corporate,10-Dec-12,NON PRIME UTILITIES,F&C CD DWP GAS & ELECTRICITY PAYMENTS / RECHARGES,EDF ENERGY 1 LTD SCC UTILITIES ONLY,1005544,"1,362,206.00"
Department for Work and Pensions,Corporate,21-Dec-12,PRIME FACILITY PRICE,F&C CD CAXTON,TELEREAL TRILLIUM,2027859524,"1,237,017.00"
Department for Work and Pensions,European Social Fund,19-Dec-12,MA ESF(D) PROGRAMME EXPENDITURE EC PREFUNDED L A's,WWEG EUROPEAN SOCIAL FUND PROGRAMME 2007-2013,LONDON COUNCILS,5000001224,"1,229,846.00"
Department for Work and Pensions,Corporate,13-Dec-12,DESKTOP SERVICES,CIO CSD ITLR DESKTOP,HP ENTERPRISE SERVICES UK LTD,2027764822,"1,218,994.00"
Department for Work and Pensions,Corporate,19-Dec-12,TREDDS APPS DEV MANDAYS,CHG PIP DELIVERY,HP ENTERPRISE SERVICES UK LTD,2027786509,"1,181,272.00"
Department for Work and Pensions,Corporate,04-Dec-12,NON-TREDDS IS IT SERVICES (DESKTOP),CIO CSD ITLR SUSTAINABLE PRINT SERVICE,XEROX UK LTD 3W,2027616181,"1,152,733.00"
Department for Work and Pensions,Corporate,11-Dec-12,TREDDS IS IT CONSULTANCY NON ADVICE,CHG UC PROJECT LEDGER CC,HP ENTERPRISE SERVICES UK LTD,2027699104,"1,127,500.00"
Department for Work and Pensions,Corporate,12-Dec-12,COURIER COSTS,OPS OPE CENTRAL CONTACTS,TNT UK LTD,2027761740,"1,127,098.00"
Department for Work and Pensions,Corporate,21-Dec-12,NON-TREDDS IS IT SERVICES (AMS),CIO C SS S & E IT DIRECTOR GATEWAY SERVICE DELIVER,ATOS ORIGIN IT SERVICES UK LTD,2027858848,"1,086,945.00"
Department for Work and Pensions,Housing Benefits,14-Dec-12,HOUSING BENEFIT ADMINISTRATION,HB ENGLAND,BIRMINGHAM CITY COUNCIL,2027768823,"998,076.00"
Department for Work and Pensions,Corporate,11-Dec-12,TREDDS IS IT CONSULTANCY (HOSTING) NON ADVICE,CHG UC PROJECT LEDGER CC,HP ENTERPRISE SERVICES UK LTD,2027699104,"997,795.00"
Department for Work and Pensions,Corporate,19-Dec-12,NON-TREDDS IS IT SERVICES (AMS),CIO CSD ITLR AMS,ACCENTURE UK LTD,2027787353,"995,395.00"
Department for Work and Pensions,Corporate,17-Dec-12,NON PRIME UTILITIES,F&C CD DWP GAS & ELECTRICITY PAYMENTS / RECHARGES,CORONA ENERGY RETAIL 4 LTD SCC UTILITIES ONLY,2027775740,"995,017.00"
Department for Work and Pensions,Corporate,10-Dec-12,ADEP AM SERVICES - VAT NON-RECOVERABLE,CHG UC PROJECT LEDGER CC,ACCENTURE UK LTD,2027692553,"966,941.00"
Department for Work and Pensions,Corporate,11-Dec-12,VALUATION OFFICE,OPS CCS HDD VOA,VALUATION OFFICE AGENCY,2003562,"958,333.00"
Department for Work and Pensions,Corporate,17-Dec-12,PRIME UNAVOIDABLE COSTS (UAC),CHG ESTATES RATIONALISATION FORMER JCP OPS,TELEREAL TRILLIUM,2027775729,"956,806.00"
Department for Work and Pensions,Corporate,31-Dec-12,VAT CLEARING,BALANCE SHEET,CMEC,2003599,"940,092.00"
Department for Work and Pensions,Corporate,12-Dec-12,CONTRACTED OUT PRINTING & STATIONERY SOLUTIONS,F&C CD MANAGEMENT FEE,XEROX UK LTD 3W,2027760668,"923,400.00"
Department for Work and Pensions,Corporate,04-Dec-12,CONTRACTED OUT OFFICE SERVICES,OPS OPE CENTRAL CONTACTS,BALFOUR BEATTY WORKPLACE LTD,2027616394,"913,239.00"
Department for Work and Pensions,Corporate,12-Dec-12,SIAM STAT MANDAYS,CIO CSD ITLR SIAM,HP ENTERPRISE SERVICES UK LTD,2027760520,"912,984.00"
Department for Work and Pensions,Corporate,21-Dec-12,AR PRIME RECOVERIES,BALANCE SHEET,TELEREAL TRILLIUM,2027859523,"888,326.00"
Department for Work and Pensions,Corporate,18-Dec-12,NON-TREDDS IS IT APPS DEV MANDAY,CHG PIP DELIVERY,IBM UNITED KINGDOM LTD,2027784238,"886,805.00"
Department for Work and Pensions,Corporate,13-Dec-12,ICONS IS IT CONSULTANCY NON ADVICE,CHG UC PROJECT LEDGER CC,BT GLOBAL SERVICES,2027764755,"877,324.00"
Department for Work and Pensions,Corporate,14-Dec-12,CONTRACTED OUT OFFICE SERVICES,OPS NET CC VENTURA,CAPITA CUSTOMER MANAGEMENT LTD,2027771445,"872,136.00"
Department for Work and Pensions,Corporate,17-Dec-12,POSTAGE,F&C CD ACC POSTAGE,ROYAL MAIL GROUP PLC,2027775228,"862,771.00"
Department for Work and Pensions,Corporate,27-Dec-12,HOSTING SERVICES,CIO CSD ITLR HOSTING,HP ENTERPRISE SERVICES UK LTD,2027929535,"829,837.00"
Department for Work and Pensions,SHARED SERVICES,10-Dec-12,NON-TREDDS IS IT APPS DEV MANDAY,STRATEGY 11,FUJITSU SERVICES LTD,2027692678,"777,384.00"
Department for Work and Pensions,Corporate,14-Dec-12,NETWORK SERVICES,CIO CSD ITLR NETWORK,BT GLOBAL SERVICES,2027772624,"762,414.00"
Department for Work and Pensions,Corporate,21-Dec-12,PRIME BILLABLE EXTRAS PRIME CONTRACT MANAGEMENT (PCM),F&C CD LEEDS BMT,TELEREAL TRILLIUM,2027859432,"733,788.00"
Department for Work and Pensions,Corporate,17-Dec-12,TREDDS IS IT CONSULTANCY (HOSTING) NON ADVICE,CHG UC PROJECT LEDGER CC,HP ENTERPRISE SERVICES UK LTD,2027775513,"727,283.00"
Department for Work and Pensions,Housing Benefits,14-Dec-12,HOUSING BENEFIT ADMINISTRATION,HB SCOTLAND,CITY OF GLASGOW,2027768834,"713,066.00"
Department for Work and Pensions,Corporate,27-Dec-12,NON-TREDDS IS IT SERVICES (AMS),CIO CSD ITLR AMS,IBM UNITED KINGDOM LTD,2027928757,"699,081.00"
Department for Work and Pensions,Corporate,03-Dec-12,ENCASHMENT OF CHEQUES,F&C FIN CONT COBAP CHEQUES,SANTANDER,1005525,"687,462.00"
Department for Work and Pensions,Corporate,28-Dec-12,ENCASHMENT OF CHEQUES,F&C FIN CONT COBAP CHEQUES,SANTANDER,1005562,"687,347.00"
Department for Work and Pensions,Child Maintenance and Enforcement Commission,03-Dec-12,NON-TREDDS IS IT SERVICES (AMS),NEW SCHEME TCS RESOURCE,TATA CONSULTANCY SERVICES LTD,1000162161,"686,079.00"
Department for Work and Pensions,Child Maintenance and Enforcement Commission,31-Dec-12,AMS FIXED PRICE CONTRACTS,LEGACY SYSTEMS IT RUNNING COSTS - IOL,DEPARTMENT FOR WORK & PENSIONS,2000749,"683,494.00"
Department for Work and Pensions,Child Maintenance and Enforcement Commission,21-Dec-12,CORPORATE COSTS,DWP RECHARGE - CIT OVERHEADS,DWP,2000736,"666,118.00"
Department for Work and Pensions,Child Maintenance and Enforcement Commission,05-Dec-12,CHANGE ORDER - VAT RECOVERABLE,NEW SCHEME SOFTWARE,CAPGEMINI UK PLC,1000162411,"654,734.00"
Department for Work and Pensions,Corporate,11-Dec-12,NON-TREDDS IS IT APPS DEV MANDAY,CHG PIP DELIVERY,ACCENTURE UK LTD,2027698724,"651,408.00"
Department for Work and Pensions,Corporate,19-Dec-12,NON-TREDDS IS IT APPS DEV MANDAY,CIO C SS S & E IT DIRECTOR CIS DEVELOPMENT,ACCENTURE UK LTD,2027787354,"650,374.00"
Department for Work and Pensions,Corporate,11-Dec-12,SOFTWARE LICENCES,CIO CSD ITLR HOSTING,SPECIALIST COMPUTER CENTRES PLC,2027697968,"631,747.00"
Department for Work and Pensions,Corporate,12-Dec-12,HOSTING FIXED PRICE CONTRACTS,CIO CSD ITLR HOSTING,HP ENTERPRISE SERVICES UK LTD,2027760520,"627,798.00"
Department for Work and Pensions,Corporate,10-Dec-12,NON PRIME UTILITIES,F&C CD DWP GAS & ELECTRICITY PAYMENTS / RECHARGES,CORONA ENERGY RETAIL 4 LTD SCC UTILITIES ONLY,1005543,"613,985.00"
Department for Work and Pensions,Child Maintenance and Enforcement Commission,31-Dec-12,IS/IT RECHARGE - CIT ALLOCATIONS,LEGACY SYSTEMS IT RUNNING COSTS - IOL,DEPARTMENT FOR WORK & PENSIONS,2000749,"583,350.00"
Department for Work and Pensions,Corporate,14-Dec-12,PRIME VARIABLE CHARGE,OPS OPE ESTATES BASELINE,TELEREAL TRILLIUM,2027772733,"578,462.00"
Department for Work and Pensions,Child Maintenance and Enforcement Commission,05-Dec-12,CONTRACTED OUT OFFICE SERVICES,EXTERNAL CONTRACTS VERTEX,SERCO PUBLIC SERVICES LTD,1000162469,"577,598.00"
Department for Work and Pensions,Housing Benefits,14-Dec-12,HOUSING BENEFIT ADMINISTRATION,HB ENGLAND,LIVERPOOL CITY COUNCIL,2027768703,"564,545.00"
Department for Work and Pensions,Corporate,21-Dec-12,NON-TREDDS IS IT SERVICES (AMS),CIO CSD ITLR HISTORIC PREMIUM & TRANSFORMATION,IBM UNITED KINGDOM LTD,2027862171,"557,228.00"
Department for Work and Pensions,Corporate,21-Dec-12,PRIME FACILITY PRICE,F&C CD NORCROSS,TELEREAL TRILLIUM,2027859524,"553,897.00"
Department for Work and Pensions,Corporate,17-Dec-12,NON-TREDDS IS IT APPS DEV MANDAY,CHG IT FIXES EASD,ACCENTURE UK LTD,2027776560,"545,449.00"
Department for Work and Pensions,Corporate,21-Dec-12,CONTRACTED OUT OFFICE SERVICES,OPS NET CC VENTURA,CAPITA CUSTOMER MANAGEMENT LTD,2027860805,"544,825.00"
Department for Work and Pensions,Child Maintenance and Enforcement Commission,07-Dec-12,TREDDS APPS DEV MANDAYS,NEW SCHEME SOFTWARE,HP ENTERPRISE SERVICES UK LTD,1000162638,"543,799.00"
Department for Work and Pensions,Corporate,12-Dec-12,DESKTOP FIXED PRICE CONTRACTS,CIO CSD ITLR DESKTOP,HP ENTERPRISE SERVICES UK LTD,2027760520,"542,601.00"
Department for Work and Pensions,Corporate,06-Dec-12,NON-TREDDS IS IT SERVICES (HOSTING),OPS OPE IT REL - LMS,STERIA,2027681709,"542,503.00"
Department for Work and Pensions,SHARED SERVICES,07-Dec-12,NON-TREDDS IS IT SERVICES (HOSTING),IT COSTS,FUJITSU SERVICES LTD,2027686752,"536,000.00"
Department for Work and Pensions,SHARED SERVICES,10-Dec-12,NON-TREDDS IS IT SERVICES (HOSTING),IT COSTS,FUJITSU SERVICES LTD,2027692678,"536,000.00"
Department for Work and Pensions,Housing Benefits,14-Dec-12,HOUSING BENEFIT ADMINISTRATION,HB ENGLAND,LEEDS CITY COUNCIL,2027768628,"535,800.00"
Department for Work and Pensions,Corporate,21-Dec-12,PRIME FACILITY PRICE,F&C CD LEEDS QUARRY HOUSE,TELEREAL TRILLIUM,2027859524,"531,101.00"
Department for Work and Pensions,Child Maintenance and Enforcement Commission,31-Dec-12,DESKTOP SERVICES,LEGACY SYSTEMS IT RUNNING COSTS - IOL,DEPARTMENT FOR WORK & PENSIONS,2000749,"515,434.00"
Department for Work and Pensions,Housing Benefits,14-Dec-12,HOUSING BENEFIT ADMINISTRATION,HB ENGLAND,MANCHESTER CITY COUNCIL,2027768748,"507,919.00"
Department for Work and Pensions,Corporate,21-Dec-12,NEW ENTERPRISE ALLOWANCE LOAN PAYMENT (DEL CAPITAL),OPS WDC WSD DEL PROG REPORTING,THE FIVE LAMPS ORGANISATION,2027861880,"500,000.00"
Department for Work and Pensions,Corporate,21-Dec-12,NETWORK SERVICES,CIO CSD ITLR NETWORK,BT GLOBAL SERVICES,2027859481,"469,432.00"
Department for Work and Pensions,Corporate,12-Dec-12,SIAM MANAGEMENT SERVICES,CIO CSD ITLR SIAM,HP ENTERPRISE SERVICES UK LTD,2027760520,"466,430.00"
Department for Work and Pensions,Child Maintenance and Enforcement Commission,11-Dec-12,CORPORATE COSTS,DWP RECHARGE - SHARED SERVICES,DWP,2000725,"440,250.00"
Department for Work and Pensions,Corporate,12-Dec-12,AMS SERVICES,CIO CSD ITLR AMS,HP ENTERPRISE SERVICES UK LTD,2027760520,"433,562.00"
Department for Work and Pensions,Corporate,24-Dec-12,MEDICAL OPINIONS (EMP) DISABILITY LIVING ALLOWANCE (DLA),OPS BEN DD DISABILITY CSD OVERLAY,ATOS HEALTHCARE,2027923695,"421,318.00"
Department for Work and Pensions,Housing Benefits,14-Dec-12,HOUSING BENEFIT ADMINISTRATION,HB ENGLAND,BRADFORD METROPOLITAN BOROUGH COUNCIL,2027768620,"417,430.00"
Department for Work and Pensions,Corporate,10-Dec-12,TREDDS APPS DEV MANDAYS,CHG PIP DELIVERY,HP ENTERPRISE SERVICES UK LTD,2027692728,"417,346.00"
Department for Work and Pensions,Corporate,21-Dec-12,NON-TREDDS APPS DEV FIXED PRICE CONTRACTS,CIO C SS S & E IT DIRECTOR GATEWAY DEVELOPMENT,ATOS ORIGIN IT SERVICES UK LTD,2027858848,"417,220.00"
Department for Work and Pensions,Housing Benefits,14-Dec-12,HOUSING BENEFIT ADMINISTRATION,HB ENGLAND,DURHAM COUNCIL,2027768806,"403,465.00"
Department for Work and Pensions,Child Maintenance and Enforcement Commission,21-Dec-12,CONTRACTED OUT OFFICE SERVICES,CS CENTRALLY HELD BUDGETS FACILITIES CONTRACTS,BALFOUR BEATTY WORKPLACE LTD,1000164137,"401,940.00"
Department for Work and Pensions,Corporate,21-Dec-12,PRIME BUSINESS RATES,F&C CD CAXTON,TELEREAL TRILLIUM,2027859523,"396,496.00"
Department for Work and Pensions,Corporate,07-Dec-12,TREDDS APPS DEV MANDAYS,CIO CSD SECURITY IMPROVEMENT PROGRAMME,HP ENTERPRISE SERVICES UK LTD,2027686451,"390,583.00"
Department for Work and Pensions,Employment Programmes,12-Dec-12,SERVICE FEE,"WWEG EP SUPPORT LONDON CENTRL, LAMBETH, SOUTHWRK AND WANDSWRTH",A4E LTD,2027759684,"388,862.00"
Department for Work and Pensions,Housing Benefits,14-Dec-12,HOUSING BENEFIT ADMINISTRATION,HB ENGLAND,LONDON BOROUGH OF TOWER HAMLETS,2027768912,"387,971.00"
Department for Work and Pensions,Corporate,27-Dec-12,NETWORK SERVICES,CIO CSD ITLR NETWORK,BT GLOBAL SERVICES,2027929442,"387,230.00"
Department for Work and Pensions,Corporate,11-Dec-12,FSF - SUPPORT CONTRACT MODULES FOR JSA JOBSEEKERS,CHG BENEFIT CAP,A4E LTD,2027698863,"382,543.00"
Department for Work and Pensions,Corporate,19-Dec-12,FSF - SUPPORT CONTRACT MODULES FOR JSA JOBSEEKERS,CHG BENEFIT CAP,A4E LTD,2027786642,"382,543.00"
Department for Work and Pensions,Corporate,17-Dec-12,REMOTE STORAGE COSTS VAT RECOV,OPS BEN BD DIRECTORS RESIDUAL,CAPITA BUSINESS SERVICES LTD,2027776494,"381,701.00"
Department for Work and Pensions,European Social Fund,12-Dec-12,MA ESF(D) PROGRAMME EXPENDITURE EC PREFUNDED DWP,WWEG EUROPEAN SOCIAL FUND PROGRAMME 2007-2013,EAST MIDLANDS DWP,5000001221,"376,810.00"
Department for Work and Pensions,Housing Benefits,14-Dec-12,HOUSING BENEFIT ADMINISTRATION,HB ENGLAND,SHEFFIELD CITY COUNCIL,2027768913,"372,954.00"
Department for Work and Pensions,Housing Benefits,14-Dec-12,HOUSING BENEFIT ADMINISTRATION,HB ENGLAND,LONDON BOROUGH OF LAMBETH,2027768598,"369,806.00"
Department for Work and Pensions,Corporate,21-Dec-12,PUBLICITY ADVERTISING MEDIA,CHG ERSP COMMS,M4C,2027859041,"369,309.00"
Department for Work and Pensions,Housing Benefits,14-Dec-12,HOUSING BENEFIT ADMINISTRATION,HB ENGLAND,LONDON BOROUGH OF LEWISHAM,2027768612,"365,854.00"
Department for Work and Pensions,Housing Benefits,14-Dec-12,HOUSING BENEFIT ADMINISTRATION,HB ENGLAND,HACKNEY LBC,2027768824,"364,264.00"
Department for Work and Pensions,Corporate,21-Dec-12,SOC SEC RESEARCH BUDGET,STR LM AND COND DIRECTOR AND SUPPORT,OFFICE FOR NATIONAL STATISTIC,2027860311,"358,143.00"
Department for Work and Pensions,Housing Benefits,14-Dec-12,HOUSING BENEFIT ADMINISTRATION,HB ENGLAND,CORNWALL COUNCIL,2027768807,"354,246.00"
Department for Work and Pensions,European Social Fund,03-Dec-12,MA ESF(D) PROGRAMME EXPENDITURE EC PREFUNDED L A's,WWEG EUROPEAN SOCIAL FUND PROGRAMME 2007-2013,LOCAL AUTHORITIES IN THE EAST MIDLANDS,5000001213,"354,013.00"
Department for Work and Pensions,Housing Benefits,14-Dec-12,HOUSING BENEFIT ADMINISTRATION,HB ENGLAND,BRISTOL CITY COUNCIL,2027768892,"353,494.00"
Department for Work and Pensions,Housing Benefits,14-Dec-12,HOUSING BENEFIT ADMINISTRATION,HB ENGLAND,LONDON BOROUGH OF SOUTHWARK,2027768865,"352,875.00"
Department for Work and Pensions,Corporate,21-Dec-12,NON-TREDDS IS IT APPS DEV MANDAY,CHG CP SERVICE ORIENTATED ARCHITECTURE,ACCENTURE UK LTD,2027859098,"333,370.00"
Department for Work and Pensions,Corporate,31-Dec-12,PRIME UTILITIES,OPS OPE ESTATES BASELINE,TELEREAL TRILLIUM,2027936911,"332,982.00"
Department for Work and Pensions,Housing Benefits,14-Dec-12,HOUSING BENEFIT ADMINISTRATION,HB SCOTLAND,EDINBURGH DISTRICT COUNCIL,2027768835,"326,872.00"
Department for Work and Pensions,Corporate,21-Dec-12,NON-TREDDS IS IT SERVICES (HOSTING),CIO C SS S & E IT DIRECTOR GATEWAY SERVICE DELIVER,ATOS ORIGIN IT SERVICES UK LTD,2027858848,"325,284.00"
Department for Work and Pensions,Corporate,17-Dec-12,REMOTE STORAGE COSTS VAT RECOV,OPS OPE CENTRAL CONTACTS,CAPITA BUSINESS SERVICES LTD,2027776494,"323,848.00"
Department for Work and Pensions,Corporate,21-Dec-12,PRIME FACILITY PRICE,F&C CD PEEL PARK,TELEREAL TRILLIUM,2027859524,"321,301.00"
Department for Work and Pensions,Corporate,10-Dec-12,SOFTWARE LICENCES,F&C MYCSP SUSPENSE,XAFINITY CLAYBROOK,2027691109,"316,470.00"
Department for Work and Pensions,Corporate,21-Dec-12,PRIME FACILITY PRICE,F&C CD MANCHESTER HEYWOOD STORES,TELEREAL TRILLIUM,2027859524,"310,430.00"
Department for Work and Pensions,Corporate,10-Dec-12,NON-TREDDS IS IT APPS DEV MANDAY,CHG PIP DELIVERY,ACCENTURE UK LTD,2027692553,"308,626.00"
Department for Work and Pensions,Housing Benefits,14-Dec-12,HOUSING BENEFIT ADMINISTRATION,HB ENGLAND,LONDON BOROUGH OF NEWHAM,2027768776,"307,497.00"
Department for Work and Pensions,Corporate,12-Dec-12,SOFTWARE LICENCES,CIO CSD ITLR HOSTING,HP ENTERPRISE SERVICES UK LTD,2027760520,"304,301.00"
Department for Work and Pensions,Housing Benefits,14-Dec-12,HOUSING BENEFIT ADMINISTRATION,HB ENGLAND,LONDON BOROUGH OF BRENT,2027768778,"304,136.00"
Department for Work and Pensions,Employment Programmes,21-Dec-12,RESIDENTIAL TRAINING COSTS,WWEG EP DELIVERY WELFARE TO WORK PRODUCT SUPPORT,ST LOYES COLLEGE FOUNDATION,2027858916,"298,408.00"
Department for Work and Pensions,Housing Benefits,14-Dec-12,HOUSING BENEFIT ADMINISTRATION,HB ENGLAND,CROYDON PEO%,2027768870,"294,989.00"
Department for Work and Pensions,Housing Benefits,14-Dec-12,HOUSING BENEFIT ADMINISTRATION,HB ENGLAND,SANDWELL BOROUGH COUNCIL,2027768742,"289,864.00"
Department for Work and Pensions,Housing Benefits,14-Dec-12,HOUSING BENEFIT ADMINISTRATION,HB ENGLAND,LONDON BOROUGH OF ENFIELD,2027768844,"287,280.00"
Department for Work and Pensions,Corporate,10-Dec-12,TREDDS APPS DEV MANDAYS,CHG WORK PROGRAMME,HP ENTERPRISE SERVICES UK LTD,2027692728,"285,584.00"
Department for Work and Pensions,Corporate,13-Dec-12,PUBLICITY ADVERTISING MEDIA,CHG ERSP COMMS,M4C,2027764390,"284,244.00"
Department for Work and Pensions,Child Maintenance and Enforcement Commission,19-Dec-12,CONTRACTED OUT OFFICE SERVICES,OPTIONS,CAPITA CUSTOMER MANAGEMENT LTD,1000163764,"283,567.00"
Department for Work and Pensions,Corporate,17-Dec-12,CONSULTANTS VAT RECOVERABLE,CHG UC SERVICE DESIGN,CAPGEMINI UK PLC,2027775516,"282,713.00"
Department for Work and Pensions,Corporate,13-Dec-12,NON-TREDDS APPS DEV FIXED PRICE CONTRACTS,OPS CCS TUO NEW BUSINESS,ATOS ORIGIN IT SERVICES UK LTD,2027764387,"281,145.00"
Department for Work and Pensions,Housing Benefits,14-Dec-12,HOUSING BENEFIT ADMINISTRATION,HB ENGLAND,KIRKLEES METROPOLITAN BOROUGH COUNCIL,2027768601,"280,071.00"
Department for Work and Pensions,Housing Benefits,14-Dec-12,HOUSING BENEFIT ADMINISTRATION,HB ENGLAND,LONDON BOROUGH OF HARINGEY,2027768777,"278,903.00"
Department for Work and Pensions,Housing Benefits,14-Dec-12,HOUSING BENEFIT ADMINISTRATION,HB ENGLAND,LONDON BOROUGH OF ISLINGTON,2027768732,"276,636.00"
Department for Work and Pensions,Housing Benefits,14-Dec-12,HOUSING BENEFIT ADMINISTRATION,HB ENGLAND,LONDON BOROUGH OF EALING,2027768798,"274,156.00"
Department for Work and Pensions,Housing Benefits,14-Dec-12,HOUSING BENEFIT ADMINISTRATION,HB ENGLAND,NOTTINGHAM CITY COUNCIL,2027768724,"272,395.00"
Department for Work and Pensions,Corporate,14-Dec-12,CONTRACTED OUT OFFICE SERVICES,F&C CD OFFICE SERVICES,BALFOUR BEATTY WORKPLACE LTD,2027772584,"269,178.00"
Department for Work and Pensions,Corporate,05-Dec-12,SIMPLE PAYMENT SERVICE,F&C FIN CONT COBAP CHEQUES,CITIBANK GLOBAL CORPORATE BANKING,2027676845,"268,957.00"
Department for Work and Pensions,Corporate,04-Dec-12,TREDDS APPS DEV MANDAYS,CHG UC PROJECT LEDGER CC,HP ENTERPRISE SERVICES UK LTD,2027617171,"267,928.00"
Department for Work and Pensions,Housing Benefits,14-Dec-12,HOUSING BENEFIT ADMINISTRATION,HB ENGLAND,LEICESTER CITY COUNCIL,2027768940,"267,299.00"
Department for Work and Pensions,Child Maintenance and Enforcement Commission,21-Dec-12,CORPORATE COSTS,DWP RECHARGE - SHARED SERVICES,CABINET OFFICE,2000741,"264,264.00"
Department for Work and Pensions,Housing Benefits,14-Dec-12,HOUSING BENEFIT ADMINISTRATION,HB ENGLAND,SUNDERLAND CITY COUNCIL,2027768743,"263,528.00"
Department for Work and Pensions,Housing Benefits,14-Dec-12,HOUSING BENEFIT ADMINISTRATION,HB ENGLAND,COVENTRY CITY COUNCIL,2027768847,"262,571.00"
Department for Work and Pensions,Housing Benefits,14-Dec-12,HOUSING BENEFIT ADMINISTRATION,HB ENGLAND,WALSALL BOROUGH COUNCIL,2027768741,"260,889.00"
Department for Work and Pensions,Housing Benefits,14-Dec-12,HOUSING BENEFIT ADMINISTRATION,HB SCOTLAND,NORTH LANARKSHIRE COUNCIL,2027768624,"260,527.00"
Department for Work and Pensions,Housing Benefits,14-Dec-12,HOUSING BENEFIT ADMINISTRATION,HB ENGLAND,LONDON BOROUGH OF GREENWICH,2027768799,"260,388.00"
Department for Work and Pensions,Corporate,21-Dec-12,PRIME BUSINESS RATES,OPS OPE ESTATES RECESSION,TELEREAL TRILLIUM,2027859523,"260,029.00"
Department for Work and Pensions,Employment Programmes,24-Dec-12,RESIDENTIAL TRAINING COSTS,WWEG EP DELIVERY WELFARE TO WORK PRODUCT SUPPORT,QUEEN ELIZABETHS FOUNDATION TRAINING COLLEGE,2027923658,"256,835.00"
Department for Work and Pensions,Housing Benefits,14-Dec-12,HOUSING BENEFIT ADMINISTRATION,HB ENGLAND,WAKEFIELD METROPOLITAN DISTRICT COUNCIL,2027768583,"256,594.00"
Department for Work and Pensions,Housing Benefits,14-Dec-12,HOUSING BENEFIT ADMINISTRATION,HB ENGLAND,WIRRAL BOROUGH COUNCIL,2027768701,"255,116.00"
Department for Work and Pensions,Housing Benefits,14-Dec-12,HOUSING BENEFIT ADMINISTRATION,HB ENGLAND,LONDON BOROUGH OF WANDSWORTH,2027768671,"254,126.00"
Department for Work and Pensions,Corporate,24-Dec-12,NEW ENTERPRISE ALLOWANCE LOAN PAYMENT (DEL CAPITAL),OPS WDC WSD DEL PROG REPORTING,GREATER LONDON ENTERPRISE,2027923955,"250,000.00"
Department for Work and Pensions,Housing Benefits,14-Dec-12,HOUSING BENEFIT ADMINISTRATION,HB ENGLAND,BRIGHTON & HOVE COUNCIL,2027768895,"249,874.00"
Department for Work and Pensions,Housing Benefits,14-Dec-12,HOUSING BENEFIT ADMINISTRATION,HB WALES,CARDIFF CITY COUNCIL,2027768652,"249,187.00"
Department for Work and Pensions,Housing Benefits,14-Dec-12,HOUSING BENEFIT ADMINISTRATION,HB ENGLAND,KINGSTON UPON HULL CITY COUNCIL,2027768614,"249,070.00"
Department for Work and Pensions,Corporate,18-Dec-12,NON-TREDDS IS IT APPS DEV MANDAY,CHG DELIVERING THE IRIS ORGANISATION,IBM UNITED KINGDOM LTD,2027784238,"248,931.00"
Department for Work and Pensions,Child Maintenance and Enforcement Commission,31-Dec-12,SIAM MANAGEMENT SERVICES,LEGACY SYSTEMS IT RUNNING COSTS - IOL,DEPARTMENT FOR WORK & PENSIONS,2000749,"248,087.00"
Department for Work and Pensions,Corporate,21-Dec-12,NON ICONS NETWORK SERVICES,CIO CSD ITLR NETWORK,TELEFONICA O2,2027862089,"246,584.00"
Department for Work and Pensions,Housing Benefits,14-Dec-12,HOUSING BENEFIT ADMINISTRATION,HB SCOTLAND,FIFE COUNCIL,2027768886,"242,250.00"
Department for Work and Pensions,Housing Benefits,14-Dec-12,HOUSING BENEFIT ADMINISTRATION,HB ENGLAND,LONDON BOROUGH OF CAMDEN,2027768915,"241,619.00"
Department for Work and Pensions,Child Maintenance and Enforcement Commission,24-Dec-12,CONSULTANTS VAT RECOVERABLE,NEW SCHEME DEVELOPMENT AND CLIENT SIDE SUPPORT,ATKINS LTD,1000164286,"239,408.00"
Department for Work and Pensions,Housing Benefits,14-Dec-12,HOUSING BENEFIT ADMINISTRATION,HB ENGLAND,SALFORD CITY COUNCIL,2027768784,"239,018.00"
Department for Work and Pensions,Housing Benefits,14-Dec-12,HOUSING BENEFIT ADMINISTRATION,HB ENGLAND,WOLVERHAMPTON CITY COUNCIL,2027768869,"237,951.00"
Department for Work and Pensions,Housing Benefits,14-Dec-12,HOUSING BENEFIT ADMINISTRATION,HB ENGLAND,DONCASTER METROPOLITAN BOROUGH COUNCIL,2027768936,"236,669.00"
Department for Work and Pensions,Housing Benefits,14-Dec-12,HOUSING BENEFIT ADMINISTRATION,HB ENGLAND,CITY OF WESTMINSTER,2027768654,"235,200.00"
Department for Work and Pensions,Housing Benefits,14-Dec-12,HOUSING BENEFIT ADMINISTRATION,HB ENGLAND,LONDON BOROUGH OF BARNET,2027768845,"234,401.00"
Department for Work and Pensions,Corporate,19-Dec-12,NON-TREDDS IS IT SERVICES (HOSTING),OPS CCS TUO,ATOS ORIGIN IT SERVICES UK LTD,2027786458,"234,031.00"
Department for Work and Pensions,European Social Fund,03-Dec-12,MA ESF(D) PROGRAMME EXPENDITURE EC PREFUNDED THIRD PARTIES,WWEG EUROPEAN SOCIAL FUND PROGRAMME 2007-2013,UNIVERSITY OF EXETER,5000001214,"234,031.00"
Department for Work and Pensions,Housing Benefits,14-Dec-12,HOUSING BENEFIT ADMINISTRATION,HB ENGLAND,NEWCASTLE CITY COUNCIL,2027768672,"233,580.00"
Department for Work and Pensions,Corporate,13-Dec-12,SOC SEC RESEARCH BUDGET,EG CPAD RESEARCH AND EVALUATION,ECONOMIC & SOCIAL RESEARCH COUNCIL,2027764517,"230,000.00"
Department for Work and Pensions,Employment Programmes,21-Dec-12,RESIDENTIAL TRAINING COSTS,WWEG EP DELIVERY WELFARE TO WORK PRODUCT SUPPORT,FINCHALE TRAINING COLLEGE,2027860036,"227,895.00"
Department for Work and Pensions,Corporate,06-Dec-12,BANK COMMISSION & CHARGES,F&C FIN CONT COBAP BANKING,HSBC BANK PLC,2027682277,"226,578.00"
Department for Work and Pensions,Housing Benefits,14-Dec-12,HOUSING BENEFIT ADMINISTRATION,HB ENGLAND,WIGAN BOROUGH COUNCIL,2027768817,"223,621.00"
Department for Work and Pensions,Housing Benefits,14-Dec-12,HOUSING BENEFIT ADMINISTRATION,HB ENGLAND,LONDON BOROUGH OF WALTHAM FOREST,2027768608,"222,537.00"
Department for Work and Pensions,Corporate,14-Dec-12,CONTRACTED OUT DOCUMENT SCANNING,OPS OPE CENTRAL CONTACTS,BALFOUR BEATTY WORKPLACE LTD,2027772584,"222,160.00"
Department for Work and Pensions,Corporate,10-Dec-12,NON-TREDDS IS IT APPS DEV MANDAY,CHG UC PROJECT LEDGER CC,ACCENTURE UK LTD,2027692553,"221,122.00"
Department for Work and Pensions,Child Maintenance and Enforcement Commission,24-Dec-12,CONSULTANTS VAT RECOVERABLE,NEW SCHEME DEVELOPMENT AND CLIENT SIDE SUPPORT,CAPGEMINI UK PLC,1000164280,"219,025.00"
Department for Work and Pensions,Housing Benefits,14-Dec-12,HOUSING BENEFIT ADMINISTRATION,HB ENGLAND,BOLTON METROPOLITAN BOROUGH COUNCIL,2027768797,"217,867.00"
Department for Work and Pensions,Housing Benefits,14-Dec-12,HOUSING BENEFIT ADMINISTRATION,HB SCOTLAND,SOUTH LANARKSHIRE COUNCIL,2027768889,"215,286.00"
Department for Work and Pensions,Housing Benefits,14-Dec-12,HOUSING BENEFIT ADMINISTRATION,HB ENGLAND,WILTSHIRE COUNCIL,2027768785,"214,362.00"
Department for Work and Pensions,Corporate,21-Dec-12,NON-TREDDS IS IT APPS DEV MANDAY,CIO C SS S & E IT DIRECTOR GATEWAY DEVELOPMENT,ATOS ORIGIN IT SERVICES UK LTD,2027858848,"211,466.00"
Department for Work and Pensions,Housing Benefits,14-Dec-12,HOUSING BENEFIT ADMINISTRATION,HB ENGLAND,DUDLEY METROPOLITAN BOROUGH COUNCIL,2027768725,"210,568.00"
Department for Work and Pensions,Corporate,31-Dec-12,TREDDS APPS DEV MANDAYS,CHG UC PROJECT LEDGER CC,HP ENTERPRISE SERVICES UK LTD,2027936964,"210,476.00"
Department for Work and Pensions,Housing Benefits,14-Dec-12,HOUSING BENEFIT ADMINISTRATION,HB ENGLAND,STOKE ON TRENT CITY COUNCIL,2027768846,"209,942.00"
Department for Work and Pensions,Housing Benefits,14-Dec-12,HOUSING BENEFIT ADMINISTRATION,HB ENGLAND,NORTHUMBERLAND COUNCIL,2027768805,"204,167.00"
Department for Work and Pensions,Corporate,11-Dec-12,NON-TREDDS IS IT APPS DEV MANDAY,CIO C SS S & E IT DIRECTOR CIS RELEASE 2,IBM UNITED KINGDOM LTD,2027698861,"198,909.00"
Department for Work and Pensions,Housing Benefits,14-Dec-12,HOUSING BENEFIT ADMINISTRATION,HB ENGLAND,PLYMOUTH CITY COUNCIL,2027768730,"198,080.00"
Department for Work and Pensions,Child Maintenance and Enforcement Commission,31-Dec-12,HOSTING FIXED PRICE CONTRACTS,LEGACY SYSTEMS IT RUNNING COSTS - IOL,DEPARTMENT FOR WORK & PENSIONS,2000749,"197,990.00"
Department for Work and Pensions,Corporate,17-Dec-12,NON-TREDDS IS IT APPS DEV MANDAY,CHG SCANNING & DIGITAL STORAGE,ACCENTURE UK LTD,2027776560,"196,921.00"
Department for Work and Pensions,Housing Benefits,14-Dec-12,HOUSING BENEFIT ADMINISTRATION,HB ENGLAND,SEFTON METROPOLITAN BOROUGH COUNCIL,2027768863,"195,940.00"
Department for Work and Pensions,Child Maintenance and Enforcement Commission,03-Dec-12,NETWORK SERVICES,NEW SCHEME PENSIONS 2,BT GLOBAL SERVICES,1000162160,"194,960.00"
Department for Work and Pensions,Corporate,31-Dec-12,PROCEEDS OF CRIME ACT RECEIPTS,OPS OPE FS DISCRETE BUGET CONTROL,CPS,2003597,"193,221.00"
Department for Work and Pensions,Child Maintenance and Enforcement Commission,04-Dec-12,NON-TREDDS IS IT SERVICES (AMS),NEW SCHEME TCS RESOURCE,TATA CONSULTANCY SERVICES LTD,1000162239,"192,921.00"
Department for Work and Pensions,Housing Benefits,14-Dec-12,HOUSING BENEFIT ADMINISTRATION,HB ENGLAND,LONDON BOROUGH OF HOUNSLOW,2027768821,"188,853.00"
Department for Work and Pensions,Housing Benefits,14-Dec-12,HOUSING BENEFIT ADMINISTRATION,HB ENGLAND,LONDON BOROUGH OF HILLINGDON,2027768697,"188,783.00"
Department for Work and Pensions,Corporate,18-Dec-12,NETWORK SERVICES,CIO CSD ITLR NETWORK,BT GLOBAL SERVICES,2027782216,"186,186.00"
Department for Work and Pensions,Housing Benefits,14-Dec-12,HOUSING BENEFIT ADMINISTRATION,HB ENGLAND,CHESHIRE WEST & CHESTER COUNCIL,2027768808,"185,303.00"
Department for Work and Pensions,Housing Benefits,14-Dec-12,HOUSING BENEFIT ADMINISTRATION,HB ENGLAND,LONDON BOROUGH OF HAMMERSMITH & FULHAM,2027768938,"184,565.00"
Department for Work and Pensions,Child Maintenance and Enforcement Commission,10-Dec-12,TREDDS APPS DEV MANDAYS,HEAD OFFICE RUNNING COSTS,HP ENTERPRISE SERVICES UK LTD,1000162805,"184,364.00"
Department for Work and Pensions,Child Maintenance and Enforcement Commission,31-Dec-12,CONTRACTORS & STAFF SUBSTITUTIONS,NEW SCHEME PROJECT RESOURCE RECHARGE,CAPITA RESOURCING LTD,1000164503,"183,406.00"
Department for Work and Pensions,Housing Benefits,14-Dec-12,HOUSING BENEFIT ADMINISTRATION,HB ENGLAND,TAMESIDE BOROUGH COUNCIL,2027768792,"183,274.00"
Department for Work and Pensions,Child Maintenance and Enforcement Commission,31-Dec-12,BAILIFF TRACE,EXTERNAL CONTRACTS CENTRALLY HELD INLAND REVENUE TRACING,HM REVENUE & CUSTOMS,2000750,"182,446.00"
Department for Work and Pensions,Housing Benefits,14-Dec-12,HOUSING BENEFIT ADMINISTRATION,HB ENGLAND,EAST RIDING OF YORKSHIRE BOROUGH COUNCIL,2027768596,"181,749.00"
Department for Work and Pensions,Housing Benefits,14-Dec-12,HOUSING BENEFIT ADMINISTRATION,HB WALES,RHONDDA CYNON TAFF COUNTY BOROUGH COUNCIL,2027768857,"180,953.00"
Department for Work and Pensions,Housing Benefits,14-Dec-12,HOUSING BENEFIT ADMINISTRATION,HB ENGLAND,SOUTHAMPTON CITY COUNCIL,2027768699,"179,659.00"
Department for Work and Pensions,Housing Benefits,14-Dec-12,HOUSING BENEFIT ADMINISTRATION,HB ENGLAND,ROTHERHAM BOROUGH COUNCIL,2027768771,"179,165.00"
Department for Work and Pensions,Corporate,11-Dec-12,SOFTWARE LICENCES,CHG ACTIVE OPERATIONS MANAGEMENT,SPECIALIST COMPUTER CENTRES PLC,2027697968,"178,306.00"
Department for Work and Pensions,Housing Benefits,14-Dec-12,HOUSING BENEFIT ADMINISTRATION,HB ENGLAND,MEDWAY TOWNS COUNCIL,2027768948,"178,216.00"
Department for Work and Pensions,Housing Benefits,14-Dec-12,HOUSING BENEFIT ADMINISTRATION,HB ENGLAND,PORTSMOUTH CITY COUNCIL,2027768891,"175,480.00"
Department for Work and Pensions,Housing Benefits,14-Dec-12,HOUSING BENEFIT ADMINISTRATION,HB ENGLAND,OLDHAM BOROUGH COUNCIL,2027768795,"175,035.00"
Department for Work and Pensions,Housing Benefits,14-Dec-12,HOUSING BENEFIT ADMINISTRATION,HB ENGLAND,CHESHIRE EAST BOROUGH COUNCIL,2027768809,"174,467.00"
Department for Work and Pensions,Housing Benefits,14-Dec-12,HOUSING BENEFIT ADMINISTRATION,HB ENGLAND,BARNSLEY BOROUGH COUNCIL,2027768772,"174,144.00"
Department for Work and Pensions,Corporate,27-Dec-12,FSF - SUPPORT CONTRACT MODULES FOR JSA JOBSEEKERS,OPS WDC WSD NW GTR MANCHESTER CENTRAL AND CHESHIRE DO,STANDGUIDE LTD,2027929424,"173,270.00"
Department for Work and Pensions,Housing Benefits,14-Dec-12,HOUSING BENEFIT ADMINISTRATION,HB WALES,SWANSEA CITY COUNCIL,2027768839,"172,616.00"
Department for Work and Pensions,Housing Benefits,14-Dec-12,HOUSING BENEFIT ADMINISTRATION,HB ENGLAND,MILTON KEYNES BOROUGH COUNCIL,2027768903,"171,130.00"
Department for Work and Pensions,Corporate,17-Dec-12,TREDDS IS IT MGT CONSULTANCY NON ADVICE,CHG UC PROJECT LEDGER CC,HP ENTERPRISE SERVICES UK LTD,2027775513,"170,978.00"
Department for Work and Pensions,Corporate,24-Dec-12,NEW ENTERPRISE ALLOWANCE LOAN PAYMENT (DEL CAPITAL),OPS WDC WSD DEL PROG REPORTING,EAST LANCS MONEYLINE,2027921998,"170,000.00"
Department for Work and Pensions,Housing Benefits,14-Dec-12,HOUSING BENEFIT ADMINISTRATION,HB ENGLAND,DERBY CITY COUNCIL,2027768677,"169,196.00"
Department for Work and Pensions,Corporate,17-Dec-12,NON-TREDDS IS IT APPS DEV MANDAY,CHG DELIVERING THE IRIS ORGANISATION,CAPGEMINI UK PLC,2027775516,"168,706.00"
Department for Work and Pensions,Corporate,17-Dec-12,POSTAGE,OPS OPE CENTRAL CONTACTS,ROYAL MAIL GROUP PLC,2027775228,"168,355.00"
Department for Work and Pensions,Corporate,17-Dec-12,MEDICAL OPINIONS (EMP) DISABILITY LIVING ALLOWANCE (DLA),OPS BEN DD DISABILITY CSD OVERLAY,ATOS HEALTHCARE,2027776036,"168,308.00"
Department for Work and Pensions,Housing Benefits,14-Dec-12,HOUSING BENEFIT ADMINISTRATION,HB ENGLAND,LONDON BOROUGH OF HARROW,2027768588,"168,129.00"
Department for Work and Pensions,Corporate,21-Dec-12,Pay on Acct & AUC - Intangible Additions - VAT recoverable Cost,CHG TELL US ONCE BIRTH & BEREAVEMENT,ATOS ORIGIN IT SERVICES UK LTD,2027858848,"167,376.00"
Department for Work and Pensions,Housing Benefits,14-Dec-12,HOUSING BENEFIT ADMINISTRATION,HB ENGLAND,STOCKPORT BOROUGH COUNCIL,2027768793,"167,151.00"
Department for Work and Pensions,Housing Benefits,14-Dec-12,HOUSING BENEFIT ADMINISTRATION,HB ENGLAND,ROCHDALE BOROUGH COUNCIL,2027768794,"166,956.00"
Department for Work and Pensions,Housing Benefits,14-Dec-12,HOUSING BENEFIT ADMINISTRATION,HB ENGLAND,SHROPSHIRE COUNCIL,2027768804,"164,946.00"
Department for Work and Pensions,Corporate,19-Dec-12,CONTRACTED OUT OFFICE SERVICES,OPS NET CC VENTURA,CAPITA BUSINESS SERVICES LTD,2027786864,"163,980.00"
Department for Work and Pensions,Housing Benefits,14-Dec-12,HOUSING BENEFIT ADMINISTRATION,HB ENGLAND,LONDON BOROUGH OF BARKING & DAGENHAM,2027768890,"163,752.00"
Department for Work and Pensions,Corporate,12-Dec-12,TREDDS APPS DEV MANDAYS,CIO CSD ITLR ADEP TRANSITION,HP ENTERPRISE SERVICES UK LTD,2027760520,"163,582.00"
Department for Work and Pensions,Corporate,17-Dec-12,NETWORK SERVICES,CIO CSD ITLR NETWORK,BT GLOBAL SERVICES,2027775229,"163,356.00"
Department for Work and Pensions,Housing Benefits,14-Dec-12,HOUSING BENEFIT ADMINISTRATION,HB ENGLAND,BLACKPOOL BOROUGH COUNCIL,2027768779,"161,381.00"
Department for Work and Pensions,Housing Benefits,14-Dec-12,HOUSING BENEFIT ADMINISTRATION,HB ENGLAND,LONDON BOROUGH OF BROMLEY,2027768800,"161,252.00"
Department for Work and Pensions,Corporate,11-Dec-12,NON-TREDDS IS IT APPS DEV MANDAY,CHG CP SERVICE ORIENTATED ARCHITECTURE,ACCENTURE UK LTD,2027698724,"159,759.00"
Department for Work and Pensions,Housing Benefits,14-Dec-12,HOUSING BENEFIT ADMINISTRATION,HB ENGLAND,LONDON BOROUGH OF REDBRIDGE,2027768698,"157,315.00"
Department for Work and Pensions,Corporate,31-Dec-12,CONTRACTORS & STAFF SUBSTITUTIONS,CHG UNIVERSAL CREDIT PROG DIRECTOR & PMO,DETICA LTD,2027938095,"156,990.00"
Department for Work and Pensions,Corporate,19-Dec-12,CONTRACTED OUT OFFICE SERVICES,F&C OPS FIN DEBT OPS CONTROL,EXPERIAN LTD,2027787575,"156,750.00"
Department for Work and Pensions,Housing Benefits,14-Dec-12,HOUSING BENEFIT ADMINISTRATION,HB ENGLAND,KNOWSLEY BOROUGH COUNCIL,2027768721,"156,577.00"
Department for Work and Pensions,Housing Benefits,14-Dec-12,HOUSING BENEFIT ADMINISTRATION,HB ENGLAND,LONDON BOROUGH OF KENSINGTON & CHELSEA,2027768599,"156,446.00"
Department for Work and Pensions,Corporate,27-Dec-12,NON ICONS NETWORK SERVICES,CIO CSD ITLR NETWORK,TMOBILE LTD,2027928485,"156,340.00"
Department for Work and Pensions,Corporate,14-Dec-12,SOC SEC RESEARCH BUDGET,PSG IGS STAT SERVICES,NATIONAL CENTRE FOR SOCIAL RESEARCH,2027772102,"155,348.00"
Department for Work and Pensions,Housing Benefits,14-Dec-12,HOUSING BENEFIT ADMINISTRATION,HB ENGLAND,GATESHEAD BOROUGH COUNCIL,2027768770,"154,556.00"
Department for Work and Pensions,Corporate,04-Dec-12,SOFTWARE LICENCES,CIO CSD SECURITY IMPROVEMENT PROGRAMME,SPECIALIST COMPUTER CENTRES PLC,2027615010,"152,947.00"
Department for Work and Pensions,Corporate,14-Dec-12,AR PRIME RECOVERIES,BALANCE SHEET,TELEREAL TRILLIUM,2027772733,"151,730.00"
Department for Work and Pensions,Housing Benefits,14-Dec-12,HOUSING BENEFIT ADMINISTRATION,HB ENGLAND,BOURNEMOUTH BOROUGH COUNCIL,2027768896,"151,683.00"
Department for Work and Pensions,Child Maintenance and Enforcement Commission,31-Dec-12,IS/IT RECHARGES TO BU'S COVERING RESOURCES WITHIN CENTRALLY (CIT) FUNDED SERVICES AS PER THE SSBA & ICONS CONTRACT,LEGACY SYSTEMS IT RUNNING COSTS - IOL,DEPARTMENT FOR WORK & PENSIONS,2000749,"151,471.00"
Department for Work and Pensions,Housing Benefits,14-Dec-12,HOUSING BENEFIT ADMINISTRATION,HB ENGLAND,MIDDLESBROUGH COUNCIL,2027768606,"150,974.00"
Department for Work and Pensions,Housing Benefits,14-Dec-12,HOUSING BENEFIT ADMINISTRATION,HB ENGLAND,CALDERDALE BOROUGH COUNCIL,2027768619,"150,307.00"
Department for Work and Pensions,Corporate,19-Dec-12,NEW ENTERPRISE ALLOWANCE LOAN PAYMENT (DEL CAPITAL),OPS WDC WSD DEL PROG REPORTING,TEN SIXTY SIX ENTERPRISE,2027787828,"150,000.00"
Department for Work and Pensions,Housing Benefits,14-Dec-12,HOUSING BENEFIT ADMINISTRATION,HB ENGLAND,NORTH TYNESIDE BOROUGH COUNCIL,2027768769,"148,109.00"
Department for Work and Pensions,Housing Benefits,14-Dec-12,HOUSING BENEFIT ADMINISTRATION,HB SCOTLAND,DUNDEE CITY COUNCIL,2027768604,"147,948.00"
Department for Work and Pensions,Housing Benefits,14-Dec-12,HOUSING BENEFIT ADMINISTRATION,HB ENGLAND,STOCKTON  BOROUGH COUNCIL,2027768882,"146,778.00"
Department for Work and Pensions,Housing Benefits,14-Dec-12,HOUSING BENEFIT ADMINISTRATION,HB SCOTLAND,RENFREWSHIRE COUNCIL,2027768646,"146,021.00"
Department for Work and Pensions,Housing Benefits,14-Dec-12,HOUSING BENEFIT ADMINISTRATION,HB ENGLAND,NORTH EAST LINCOLNSHIRE COUNCIL,2027768774,"145,742.00"
Department for Work and Pensions,Housing Benefits,14-Dec-12,HOUSING BENEFIT ADMINISTRATION,HB ENGLAND,ST HELENS BOROUGH COUNCIL,2027768773,"144,584.00"
Department for Work and Pensions,Housing Benefits,14-Dec-12,HOUSING BENEFIT ADMINISTRATION,HB ENGLAND,NORTHAMPTON BOROUGH COUNCIL,2027768627,"144,481.00"
Department for Work and Pensions,Corporate,03-Dec-12,FSF - PARTNERSHIP GRANTS - TO HELP JSA CLIENTS INTO WORK,OPS WDC WSD SC GLASGOW LANARKSHIRE E DUMBARTONSHIRE DO,SOUTH LANARKSHIRE COUNCIL,2027609267,"143,333.00"
Department for Work and Pensions,Employment Programmes,24-Dec-12,SUSTAINMENT FEE,WWEG EP WORK CHOICE HIGH ISLDS AND CLYDE COAST AND GRAMP,MOMENTUM COACH HIRE LTD T/A MOMENTUM TRANSPORT,2027922650,"141,654.00"
Department for Work and Pensions,Housing Benefits,14-Dec-12,HOUSING BENEFIT ADMINISTRATION,HB ENGLAND,PETERBOROUGH CITY COUNCIL,2027768914,"141,458.00"
Department for Work and Pensions,Housing Benefits,14-Dec-12,HOUSING BENEFIT ADMINISTRATION,HB SCOTLAND,HIGHLAND COUNCIL,2027768818,"140,741.00"
Department for Work and Pensions,Housing Benefits,14-Dec-12,HOUSING BENEFIT ADMINISTRATION,HB ENGLAND,LUTON BOROUGH COUNCIL,2027768586,"138,731.00"
Department for Work and Pensions,Corporate,21-Dec-12,PRIME BILLABLE EXTRAS PRIME CONTRACT MANAGEMENT (PCM),CHG ESTATES RATIONALISATION SHEFFIELD,TELEREAL TRILLIUM,2027859431,"138,635.00"
Department for Work and Pensions,Corporate,11-Dec-12,TREDDS APPS DEV MANDAYS,CHG CONDITIONALITY & SANCTIONS CHARGES,HP ENTERPRISE SERVICES UK LTD,2027699104,"137,237.00"
Department for Work and Pensions,Housing Benefits,14-Dec-12,HOUSING BENEFIT ADMINISTRATION,HB ENGLAND,NORTH SOMERSET COUNCIL,2027768757,"137,030.00"
Department for Work and Pensions,Corporate,04-Dec-12,TREDDS APPS DEV MANDAYS,CHG CMEC FUTURE SCHEME REQ FOR OPS PARTNERSHIP,HP ENTERPRISE SERVICES UK LTD,2027617171,"136,687.00"
Department for Work and Pensions,Housing Benefits,14-Dec-12,HOUSING BENEFIT ADMINISTRATION,HB ENGLAND,SOUTH GLOUCESTERSHIRE COUNCIL,2027768762,"136,417.00"
Department for Work and Pensions,Housing Benefits,14-Dec-12,HOUSING BENEFIT ADMINISTRATION,HB ENGLAND,SOUTHEND ON SEA BOROUGH COUNCIL,2027768825,"136,269.00"
Department for Work and Pensions,Housing Benefits,14-Dec-12,HOUSING BENEFIT ADMINISTRATION,HB ENGLAND,TORBAY  COUNCIL,2027768765,"135,811.00"
Department for Work and Pensions,Corporate,12-Dec-12,AMS STAT MANDAYS,CIO CSD ITLR AMS,HP ENTERPRISE SERVICES UK LTD,2027760520,"135,797.00"
Department for Work and Pensions,Corporate,12-Dec-12,COURIER COSTS,F&C CD COURIER,TNT UK LTD,2027761740,"135,137.00"
Department for Work and Pensions,Corporate,14-Dec-12,CONTRACTED OUT OFFICE SERVICES,F&C OPS FIN DM CONTRACTS,BALFOUR BEATTY WORKPLACE LTD,2027772584,"134,287.00"
Department for Work and Pensions,Corporate,10-Dec-12,TREDDS APPS DEV MANDAYS,CHG ELECTRONIC SIGNING,HP ENTERPRISE SERVICES UK LTD,2027692728,"133,793.00"
Department for Work and Pensions,Corporate,11-Dec-12,NON-TREDDS IS IT APPS DEV MANDAY,CHG SCANNING & DIGITAL STORAGE,ACCENTURE UK LTD,2027698723,"133,281.00"
Department for Work and Pensions,Housing Benefits,14-Dec-12,HOUSING BENEFIT ADMINISTRATION,HB ENGLAND,LONDON BOROUGH OF HAVERING,2027768680,"133,218.00"
Department for Work and Pensions,Housing Benefits,14-Dec-12,HOUSING BENEFIT ADMINISTRATION,HB ENGLAND,LONDON BOROUGH OF BEXLEY,2027768801,"132,523.00"
Department for Work and Pensions,Corporate,17-Dec-12,NON PRIME UTILITIES,F&C CD DWP GAS & ELECTRICITY PAYMENTS / RECHARGES,BRITISH GAS BUSINESS SCC UTILITIES ONLY,2027775739,"132,328.00"
Department for Work and Pensions,Housing Benefits,14-Dec-12,HOUSING BENEFIT ADMINISTRATION,HB ENGLAND,THANET DISTRICT COUNCIL,2027768675,"132,147.00"
Department for Work and Pensions,Corporate,31-Dec-12,NON-TREDDS IS IT SERVICES (HOSTING),CIO C SS S & E IT DIRECTOR GATEWAY SERVICE DELIVER,ATOS ORIGIN IT SERVICES UK LTD,2027937197,"131,823.00"
Department for Work and Pensions,Corporate,14-Dec-12,CONTRACTED OUT OFFICE SERVICES,PSG OGD SERVICES,CAPITA CUSTOMER MANAGEMENT LTD,2027771445,"131,698.00"
Department for Work and Pensions,Housing Benefits,14-Dec-12,HOUSING BENEFIT ADMINISTRATION,HB ENGLAND,SOUTH TYNESIDE METROPOLITAN BOROUGH COUNCIL,2027768744,"131,006.00"
Department for Work and Pensions,Housing Benefits,14-Dec-12,HOUSING BENEFIT ADMINISTRATION,HB ENGLAND,TRAFFORD BOROUGH COUNCIL,2027768626,"130,692.00"
Department for Work and Pensions,Corporate,07-Dec-12,TREDDS APPS DEV MANDAYS,CHG CP BENEFIT ENQUIRY SERVICE ONLINE,HP ENTERPRISE SERVICES UK LTD,2027686451,"130,337.00"
Department for Work and Pensions,Corporate,17-Dec-12,NON-TREDDS IS IT APPS DEV MANDAY,CHG PIP DELIVERY,IBM UNITED KINGDOM LTD,2027775170,"129,890.00"
Department for Work and Pensions,Housing Benefits,14-Dec-12,HOUSING BENEFIT ADMINISTRATION,HB ENGLAND,SWINDON BOROUGH COUNCIL,2027768695,"129,872.00"
Department for Work and Pensions,Corporate,24-Dec-12,SOFTWARE LICENCES,CIO CSD ITLR HOSTING,ORACLE CORPORATION UK LTD,2027923777,"129,703.00"
Department for Work and Pensions,Housing Benefits,14-Dec-12,HOUSING BENEFIT ADMINISTRATION,HB ENGLAND,LONDON BOROUGH OF MERTON,2027768780,"128,747.00"
Department for Work and Pensions,Child Maintenance and Enforcement Commission,13-Dec-12,REMOTE STORAGE COSTS VAT RECOV,CS CENTRALLY HELD BUDGETS FILESTORES,CAPITA BUSINESS SERVICES LTD,1000163096,"128,689.00"
Department for Work and Pensions,Housing Benefits,14-Dec-12,HOUSING BENEFIT ADMINISTRATION,HB SCOTLAND,NORTH AYRSHIRE COUNCIL,2027768727,"127,368.00"
Department for Work and Pensions,Corporate,04-Dec-12,CIVIL SERVICE OCCUPATIONAL HEALTH SERVICE,HR OHS,ATOS ORIGIN IT SERVICES UK LTD,2027617545,"126,544.00"
Department for Work and Pensions,Employment Programmes,21-Dec-12,RESIDENTIAL TRAINING COSTS,WWEG EP DELIVERY WELFARE TO WORK PRODUCT SUPPORT,RNCB ROYAL NATIONAL COLLEGE FOR BLIND,2027859623,"125,913.00"
Department for Work and Pensions,Housing Benefits,14-Dec-12,HOUSING BENEFIT ADMINISTRATION,HB ENGLAND,BOROUGH OF TELFORD & WREKIN COUNCIL,2027768690,"125,219.00"
Department for Work and Pensions,Corporate,04-Dec-12,ICONS IS IT CONSULTANCY NON ADVICE,CHG UC PROJECT LEDGER CC,BT GLOBAL SERVICES,2027617326,"124,930.00"
Department for Work and Pensions,Corporate,21-Dec-12,PRIME BUSINESS RATES,F&C CD LEEDS QUARRY HOUSE,TELEREAL TRILLIUM,2027859523,"124,699.00"
Department for Work and Pensions,Corporate,21-Dec-12,PRIME FACILITY PRICE,F&C CD BIRCHWOOD,TELEREAL TRILLIUM,2027859524,"124,668.00"
Department for Work and Pensions,Housing Benefits,14-Dec-12,HOUSING BENEFIT ADMINISTRATION,HB ENGLAND,BURY METROPOLITAN BOROUGH COUNCIL,2027768796,"124,347.00"
Department for Work and Pensions,Housing Benefits,14-Dec-12,HOUSING BENEFIT ADMINISTRATION,HB ENGLAND,REDCAR & CLEVELAND BOROUGH  COUNCIL,2027768881,"124,007.00"
Department for Work and Pensions,Housing Benefits,14-Dec-12,HOUSING BENEFIT ADMINISTRATION,HB ENGLAND,BASILDON DISTRICT COUNCIL,2027768939,"123,749.00"
Department for Work and Pensions,Employment Programmes,12-Dec-12,SERVICE FEE,"WWEG EP SUPPORT ESSEX, BEDFORSHIRE AND HERTFORDSHIRE",SEETEC BUSINESS TECHNOLOGY CENTRE LTD,2027760415,"123,678.00"
Department for Work and Pensions,Housing Benefits,14-Dec-12,HOUSING BENEFIT ADMINISTRATION,HB WALES,CAERPHILLY COUNTY BOROUGH COUNCIL,2027768657,"123,102.00"
Department for Work and Pensions,Employment Programmes,12-Dec-12,SERVICE FEE,"WWEG EP SUPPORT CAMBRDIGE AND SUFFOLK, NORFOLK, LINCOLN AND RUTLAND",TNG LTD,2027761256,"122,951.00"
Department for Work and Pensions,Corporate,18-Dec-12,FSF - SUPPORT CONTRACT MODULES FOR JSA JOBSEEKERS,OPS WDC WSD NW GREATER MANCHESTER E AND W DO,STANDGUIDE LTD,2027782959,"122,936.00"
Department for Work and Pensions,Housing Benefits,14-Dec-12,HOUSING BENEFIT ADMINISTRATION,HB ENGLAND,BLACKBURN BOROUGH COUNCIL,2027768943,"122,591.00"
Department for Work and Pensions,Housing Benefits,14-Dec-12,HOUSING BENEFIT ADMINISTRATION,HB ENGLAND,CENTRAL BEDFORDSHIRE DISTRICT COUNCIL,2027768874,"122,530.00"
Department for Work and Pensions,Employment Programmes,21-Dec-12,RESIDENTIAL TRAINING COSTS,WWEG EP DELIVERY WELFARE TO WORK PRODUCT SUPPORT,PORTLAND COLLEGE,2027858667,"122,360.00"
Department for Work and Pensions,Corporate,19-Dec-12,CONTRACTED OUT OFFICE SERVICES,HR CSR,H M REVENUE & CUSTOMS,2003585,"122,100.00"
Department for Work and Pensions,Corporate,31-Dec-12,STAFF RELATED COSTS VAT RECOVERABLE,HR EAP,RIGHT CORECARE,2027937934,"121,807.00"
Department for Work and Pensions,Child Maintenance and Enforcement Commission,11-Dec-12,NETWORK SERVICES,NEW SCHEME TELEPHONY,BT GLOBAL SERVICES,1000162903,"121,366.00"
Department for Work and Pensions,Corporate,18-Dec-12,NON-TREDDS IS IT SERVICES (AMS),CIO CSD ITLR AMS,CAPGEMINI UK PLC,2027782358,"120,646.00"
Department for Work and Pensions,Housing Benefits,14-Dec-12,HOUSING BENEFIT ADMINISTRATION,HB SCOTLAND,WEST LOTHIAN COUNCIL,2027768585,"119,653.00"
Department for Work and Pensions,SHARED SERVICES,17-Dec-12,NON-TREDDS IS IT APPS DEV MANDAY,STRATEGY 14,FUJITSU SERVICES LTD,2027775217,"118,840.00"
Department for Work and Pensions,Housing Benefits,14-Dec-12,HOUSING BENEFIT ADMINISTRATION,HB ENGLAND,TENDRING DISTRICT COUNCIL,2027768685,"118,679.00"
Department for Work and Pensions,Corporate,17-Dec-12,NON-TREDDS IS IT MGT CONSULTANCY NON ADVICE,F&C CD STRATEGY AND BUSINESS MANAGEMENT,GARTNER,2027776568,"118,475.00"
Department for Work and Pensions,Housing Benefits,14-Dec-12,HOUSING BENEFIT ADMINISTRATION,HB ENGLAND,NORWICH CITY COUNCIL,2027768918,"118,229.00"
Department for Work and Pensions,Corporate,27-Dec-12,NON-TREDDS IS IT SERVICES (AMS),CIO CSD ITLR AMS,ACCENTURE UK LTD,2027929178,"118,022.00"
Department for Work and Pensions,Employment Programmes,12-Dec-12,SERVICE FEE,WWEG EP SUPPORT WEST OF ENGLAND,PINNACLE PEOPLE,2027759763,"116,545.00"
Department for Work and Pensions,Housing Benefits,14-Dec-12,HOUSING BENEFIT ADMINISTRATION,HB ENGLAND,LONDON BOROUGH OF SUTTON,2027768820,"116,527.00"
Department for Work and Pensions,Housing Benefits,14-Dec-12,HOUSING BENEFIT ADMINISTRATION,HB WALES,CARMARTHENSHIRE COUNTY COUNCIL,2027768937,"116,072.00"
Department for Work and Pensions,Housing Benefits,14-Dec-12,HOUSING BENEFIT ADMINISTRATION,HB ENGLAND,NORTH LINCOLNSHIRE COUNCIL,2027768803,"115,657.00"
Department for Work and Pensions,Corporate,21-Dec-12,PRIME FACILITY PRICE,F&C CD SHEFFIELD STEEL CITY HOUSE,TELEREAL TRILLIUM,2027859524,"114,746.00"
Department for Work and Pensions,Housing Benefits,14-Dec-12,HOUSING BENEFIT ADMINISTRATION,HB SCOTLAND,ABERDEEN CITY COUNCIL,2027768888,"114,670.00"
Department for Work and Pensions,Housing Benefits,14-Dec-12,HOUSING BENEFIT ADMINISTRATION,HB ENGLAND,WARRINGTON BOROUGH COUNCIL,2027768758,"114,511.00"
Department for Work and Pensions,Corporate,21-Dec-12,PRIME FACILITY PRICE,F&C CD SHEFFIELD KINGS COURT,TELEREAL TRILLIUM,2027859524,"114,409.00"
Department for Work and Pensions,Corporate,05-Dec-12,PROFESSIONAL ADVICE & OPINION VAT RECOVERABLE,PSG LEGAL SERVICES LITIGATION & EMPLOYMENT,TREASURY SOLICITOR TSOL,2027676605,"113,990.00"
Department for Work and Pensions,Housing Benefits,14-Dec-12,HOUSING BENEFIT ADMINISTRATION,HB ENGLAND,ISLE OF WIGHT COUNTY COUNCIL,2027768595,"113,563.00"
Department for Work and Pensions,Corporate,27-Dec-12,FSF - SUPPORT CONTRACT MODULES FOR JSA JOBSEEKERS,OPS WDC WSD LN WEST LONDON DISTRICT OFFICE,A4E LTD,2027928759,"113,296.00"
Department for Work and Pensions,Housing Benefits,14-Dec-12,HOUSING BENEFIT ADMINISTRATION,HB SCOTLAND,DUMFRIES & GALLOWAY COUNCIL,2027768693,"113,117.00"
Department for Work and Pensions,Corporate,18-Dec-12,NEW ENTERPRISE ALLOWANCE MENTOR MATCHING,OPS WDC WSD NW MERSEYSIDE DISTRICT OFFICE,BLUE ORCHID SUPPORT SERVICES,2027782599,"112,870.00"
Department for Work and Pensions,Corporate,21-Dec-12,FSF - TRAINING PAYMENTS TO PROVIDERS - LONE PARENTS,OPS WDC WSD SE THAMES VALLEY DISTRICT OFFICE,A4E LTD,2027862233,"112,110.00"
Department for Work and Pensions,Housing Benefits,14-Dec-12,HOUSING BENEFIT ADMINISTRATION,HB WALES,NEATH PORT TALBOT COUNTY BOROUGH COUNCIL,2027768632,"111,676.00"
Department for Work and Pensions,Housing Benefits,14-Dec-12,HOUSING BENEFIT ADMINISTRATION,HB ENGLAND,SOLIHULL METROPOLITAN BOROUGH COUNCIL,2027768607,"111,632.00"
Department for Work and Pensions,Housing Benefits,14-Dec-12,HOUSING BENEFIT ADMINISTRATION,HB ENGLAND,READING BOROUGH COUNCIL,2027768611,"111,543.00"
Department for Work and Pensions,Corporate,27-Dec-12,NON ICONS NETWORK SERVICES,CIO CSD ITLR NETWORK,TESCO MOBILE LTD,2027928889,"110,729.00"
Department for Work and Pensions,Corporate,12-Dec-12,CONSULTANTS VAT RECOVERABLE,CHG UC PROJECT LEDGER CC,EMERGN LTD,2027760294,"109,542.00"
Department for Work and Pensions,Corporate,03-Dec-12,FSF - PARTNERSHIP GRANTS - TO HELP JSA CLIENTS INTO WORK,OPS WDC WSD SC GLASGOW LANARKSHIRE E DUMBARTONSHIRE DO,NORTH LANARKSHIRE COUNCIL,2027610030,"109,405.00"
Department for Work and Pensions,Corporate,03-Dec-12,PROFESSIONAL ADVICE & OPINION VAT RECOVERABLE,PSG LEGAL SERVICES COMMERCIAL,DLA PIPER UK LLP,2027609368,"109,116.00"
Department for Work and Pensions,Child Maintenance and Enforcement Commission,24-Dec-12,NON-TREDDS IS IT SERVICES (HOSTING),NEW SCHEME SECURITY AND PROTECTIVE MONITORING,QINETIQ LTD,1000164278,"108,546.00"
Department for Work and Pensions,Housing Benefits,14-Dec-12,HOUSING BENEFIT ADMINISTRATION,HB SCOTLAND,ABERDEENSHIRE COUNCIL,2027768603,"108,085.00"
Department for Work and Pensions,Corporate,21-Dec-12,PRIME FACILITY PRICE,F&C CD SHEFFIELD PORTERBROOK HOUSE,TELEREAL TRILLIUM,2027859524,"107,882.00"
Department for Work and Pensions,Employment Programmes,12-Dec-12,SERVICE FEE,"WWEG EP SUPPORT CHESHIRE, HALTON AND WARR, MERSEYSIDE",REED IN PARTNERSHIP LTD,2027760338,"107,713.00"
Department for Work and Pensions,Corporate,19-Dec-12,CONTRACTORS & STAFF SUBSTITUTIONS,CHG UNIVERSAL CREDIT PROG DIRECTOR & PMO,DETICA LTD,2027785722,"107,646.00"
Department for Work and Pensions,European Social Fund,12-Dec-12,MA ESF(D) PROGRAMME EXPENDITURE EC PREFUNDED THIRD PARTIES,WWEG EUROPEAN SOCIAL FUND PROGRAMME 2007-2013,LANCASHIRE COLLEGES CONSORTIUM,5000001223,"107,301.00"
Department for Work and Pensions,Child Maintenance and Enforcement Commission,11-Dec-12,PRIME UTILITIES,PRIME,DWP,2000729,"107,151.00"
Department for Work and Pensions,Housing Benefits,14-Dec-12,HOUSING BENEFIT ADMINISTRATION,HB ENGLAND,BEDFORD BOROUGH COUNCIL,2027768587,"107,035.00"
Department for Work and Pensions,Housing Benefits,14-Dec-12,HOUSING BENEFIT ADMINISTRATION,HB WALES,NEWPORT CITY COUNCIL,2027768887,"106,980.00"
Department for Work and Pensions,Housing Benefits,14-Dec-12,HOUSING BENEFIT ADMINISTRATION,HB ENGLAND,HALTON BOROUGH COUNCIL,2027768868,"106,975.00"
Department for Work and Pensions,Housing Benefits,14-Dec-12,HOUSING BENEFIT ADMINISTRATION,HB SCOTLAND,FALKIRK DISTRICT COUNCIL,2027768837,"105,438.00"
Department for Work and Pensions,Housing Benefits,14-Dec-12,HOUSING BENEFIT ADMINISTRATION,HB ENGLAND,EAST LINDSEY DISTRICT COUNCIL,2027768651,"105,351.00"
Department for Work and Pensions,Housing Benefits,14-Dec-12,HOUSING BENEFIT ADMINISTRATION,HB ENGLAND,SLOUGH BOROUGH COUNCIL,2027768916,"104,922.00"
Department for Work and Pensions,Corporate,27-Dec-12,HOSTING PRINT SERVICES,CIO CSD ITLR HOSTING,HP ENTERPRISE SERVICES UK LTD,2027929535,"104,696.00"
Department for Work and Pensions,Housing Benefits,14-Dec-12,HOUSING BENEFIT ADMINISTRATION,HB ENGLAND,THURROCK BOROUGH COUNCIL,2027768760,"104,548.00"
Department for Work and Pensions,Corporate,18-Dec-12,DLA MEDICAL SERVICE ADVICE,OPS BEN DD DISABILITY CSD OVERLAY,ATOS HEALTHCARE,2027784002,"104,126.00"
Department for Work and Pensions,Child Maintenance and Enforcement Commission,11-Dec-12,PRIME UTILITIES,PRIME,DWP,2000728,"102,958.00"
Department for Work and Pensions,Corporate,07-Dec-12,HOSTING GMS SERVICES,OPS OPE IT WINTER FUEL,HP ENTERPRISE SERVICES UK LTD,2027686451,"102,451.00"
Department for Work and Pensions,Corporate,21-Dec-12,CIVIL SERVICE OCCUPATIONAL HEALTH SERVICE,HR OHS,ATOS ORIGIN IT SERVICES UK LTD,2027858848,"102,076.00"
Department for Work and Pensions,Child Maintenance and Enforcement Commission,04-Dec-12,CONTRACTED OUT OFFICE SERVICES,CS CENTRALLY HELD BUDGETS FACILITIES CONTRACTS,BALFOUR BEATTY WORKPLACE LTD,1000162236,"102,003.00"
Department for Work and Pensions,Housing Benefits,14-Dec-12,HOUSING BENEFIT ADMINISTRATION,HB WALES,BRIDGEND COUNTY BOROUGH COUNCIL,2027768781,"101,555.00"
Department for Work and Pensions,Corporate,31-Dec-12,CONTRACTED OUT OFFICE SERVICES,OPS OPE CENTRAL CONTACTS,XEROX UK LTD 3W,2027937231,"101,198.00"
Department for Work and Pensions,Housing Benefits,14-Dec-12,HOUSING BENEFIT ADMINISTRATION,HB ENGLAND,HASTINGS BOROUGH COUNCIL,2027768783,"100,966.00"
Department for Work and Pensions,Employment Programmes,12-Dec-12,SERVICE FEE,"WWEG EP SUPPORT GRTR MANCHESTER CNTRL, GRTR MANCHESTER E AND W",STANDGUIDE LTD,2027760997,"100,612.00"
Department for Work and Pensions,Employment Programmes,12-Dec-12,SERVICE FEE,"WWEG EP SUPPORT KENT, SURREY AND SUSSEX",PINNACLE PEOPLE,2027759763,"100,021.00"
Department for Work and Pensions,Corporate,13-Dec-12,TREDDS APPS DEV MANDAYS,CIO ODG HMRC,HP ENTERPRISE SERVICES UK LTD,2027764822,"100,018.00"
Department for Work and Pensions,Corporate,10-Dec-12,NON PRIME UTILITIES,F&C CD DWP GAS & ELECTRICITY PAYMENTS / RECHARGES,BRITISH GAS BUSINESS SCC UTILITIES ONLY,1005542,"98,931.00"
Department for Work and Pensions,Corporate,19-Dec-12,NON-TREDDS APPS DEV FIXED PRICE CONTRACTS,OPS OPE IT REL - LMS,STERIA,2027786043,"98,395.00"
Department for Work and Pensions,Housing Benefits,14-Dec-12,HOUSING BENEFIT ADMINISTRATION,HB ENGLAND,HARTLEPOOL BOROUGH COUNCIL,2027768719,"98,183.00"
Department for Work and Pensions,Housing Benefits,14-Dec-12,HOUSING BENEFIT ADMINISTRATION,HB ENGLAND,HEREFORDSHIRE COUNCIL,2027768726,"98,125.00"
Department for Work and Pensions,Housing Benefits,14-Dec-12,HOUSING BENEFIT ADMINISTRATION,HB ENGLAND,PRESTON BOROUGH COUNCIL,2027768631,"97,991.00"
Department for Work and Pensions,Housing Benefits,14-Dec-12,HOUSING BENEFIT ADMINISTRATION,HB SCOTLAND,EAST AYRSHIRE COUNCIL FINANCE DEPARTMENT,2027768814,"97,853.00"
Department for Work and Pensions,Corporate,27-Dec-12,NON-TREDDS IS IT SERVICES (HOSTING),CIO CSD ITLR HOSTING,HMRC,2027929267,"97,708.00"
Department for Work and Pensions,Employment Programmes,21-Dec-12,RESIDENTIAL TRAINING COSTS,WWEG EP DELIVERY WELFARE TO WORK PRODUCT SUPPORT,DONCASTER DEAF TRUST,2027859662,"97,110.00"
Department for Work and Pensions,Corporate,10-Dec-12,TREDDS APPS DEV MANDAYS,CHG TRANSFORMING LABOUR MARKET SERVICES,HP ENTERPRISE SERVICES UK LTD,2027692728,"96,771.00"
Department for Work and Pensions,Corporate,31-Dec-12,TREDDS APPS DEV MANDAYS,CHG UC PROJECT LEDGER CC,HP ENTERPRISE SERVICES UK LTD,2027936965,"96,202.00"
Department for Work and Pensions,Housing Benefits,14-Dec-12,HOUSING BENEFIT ADMINISTRATION,HB ENGLAND,CITY OF YORK COUNCIL,2027768759,"96,173.00"
Department for Work and Pensions,Housing Benefits,14-Dec-12,HOUSING BENEFIT ADMINISTRATION,HB ENGLAND,BATH & NORTH EAST SOMERSET COUNCIL,2027768590,"95,471.00"
Department for Work and Pensions,Corporate,31-Dec-12,AR PRIME RECOVERIES,BALANCE SHEET,TELEREAL TRILLIUM,2027936911,"95,437.00"
Department for Work and Pensions,Corporate,17-Dec-12,NON-TREDDS APPS DEV FIXED PRICE CONTRACTS,CHG TELL US ONCE BIRTH & BEREAVEMENT,ATOS ORIGIN IT SERVICES UK LTD,2027776201,"94,280.00"
Department for Work and Pensions,Employment Programmes,21-Dec-12,RESIDENTIAL TRAINING COSTS,WWEG EP DELIVERY WELFARE TO WORK PRODUCT SUPPORT,QUEEN ALEXANDRA COLLEGE,2027861142,"94,063.00"
Department for Work and Pensions,Housing Benefits,14-Dec-12,HOUSING BENEFIT ADMINISTRATION,HB ENGLAND,SCARBOROUGH BOROUGH COUNCIL,2027768822,"93,492.00"
Department for Work and Pensions,Corporate,31-Dec-12,TREDDS APPS DEV MANDAYS,CHG TRANSFORMING LABOUR MARKET SERVICES,HP ENTERPRISE SERVICES UK LTD,2027936964,"93,330.00"
Department for Work and Pensions,Employment Programmes,12-Dec-12,SERVICE FEE,"WWEG EP SUPPORT N AND E YORKSHIRE AND HUMBER, TEES VALLEY",PERTEMPS,2027761301,"93,270.00"
Department for Work and Pensions,Employment Programmes,12-Dec-12,SERVICE FEE,"WWEG EP SUPPORT HAMPSHIRE AND ISLE OF WIGHT, BERKS, BUCKS AND OXON",A4E LTD,2027759684,"93,043.00"
Department for Work and Pensions,Corporate,14-Dec-12,FSF - TRAINING PAYMENTS TO PROVIDERS - JSA JOBSEEKERS,OPS WDC WSD NW GREATER MANCHESTER E AND W DO,SENCIA LTD,2027773043,"93,000.00"
Department for Work and Pensions,Housing Benefits,14-Dec-12,HOUSING BENEFIT ADMINISTRATION,HB SCOTLAND,WEST DUNBARTONSHIRE COUNCIL,2027768908,"92,845.00"
Department for Work and Pensions,Corporate,07-Dec-12,CONTRACTORS & STAFF SUBSTITUTIONS,CHG UC PROJECT LEDGER CC,CAPITA RESOURCING LTD,2027686447,"92,758.00"
Department for Work and Pensions,Corporate,05-Dec-12,FSF - SUPPORT CONTRACT MODULES FOR JSA JOBSEEKERS,OPS WDC WSD SC WEST OF SCOTLAND DO,JHP GROUP LTD,2027674571,"92,295.00"
Department for Work and Pensions,Housing Benefits,14-Dec-12,HOUSING BENEFIT ADMINISTRATION,HB ENGLAND,COLCHESTER BOROUGH COUNCIL,2027768609,"92,150.00"
Department for Work and Pensions,Housing Benefits,14-Dec-12,HOUSING BENEFIT ADMINISTRATION,HB ENGLAND,KINGS LYNN & WEST NORFOLK BOROUGH COUNCIL,2027768853,"92,095.00"
Department for Work and Pensions,European Social Fund,19-Dec-12,MA ESF(D) PROGRAMME EXPENDITURE EC PREFUNDED L A's,WWEG EUROPEAN SOCIAL FUND PROGRAMME 2007-2013,COVENTRY CITY COUNCIL,5000001225,"92,093.00"
Department for Work and Pensions,Corporate,27-Dec-12,CURRENT GRANTS TO CENTRAL GOVERNMENT,STR CHILD POVERTY UNIT,DEPARTMENT FOR EDUCATION,2003586,"92,000.00"
Department for Work and Pensions,Housing Benefits,14-Dec-12,HOUSING BENEFIT ADMINISTRATION,HB ENGLAND,ARUN DISTRICT COUNCIL,2027768696,"91,811.00"
Department for Work and Pensions,Housing Benefits,14-Dec-12,HOUSING BENEFIT ADMINISTRATION,HB ENGLAND,LONDON BOROUGH OF RICHMOND UPON THAMES,2027768597,"91,702.00"
Department for Work and Pensions,Employment Programmes,12-Dec-12,SERVICE FEE,WWEG EP SUPPORT WEST YORKSHIRE,A4E LTD,2027759684,"90,807.00"
Department for Work and Pensions,Housing Benefits,14-Dec-12,HOUSING BENEFIT ADMINISTRATION,HB ENGLAND,SOUTH SOMERSET DISTRICT COUNCIL,2027768668,"90,487.00"
Department for Work and Pensions,Corporate,04-Dec-12,TREDDS APPS DEV MANDAYS,CHG CP SERVICE ORIENTATED ARCHITECTURE,HP ENTERPRISE SERVICES UK LTD,2027617171,"90,349.00"
Department for Work and Pensions,Corporate,10-Dec-12,FSF - SUPPORT CONTRACT MODULES FOR JSA JOBSEEKERS,OPS WDC WSD LN SOUTH LONDON DISTRICT OFFICE,A4E LTD,2027690641,"90,285.00"
Department for Work and Pensions,Housing Benefits,14-Dec-12,HOUSING BENEFIT ADMINISTRATION,HB ENGLAND,IPSWICH BOROUGH COUNCIL,2027768640,"90,002.00"
Department for Work and Pensions,Corporate,07-Dec-12,BANK COMMISSION & CHARGES,F&C FIN CONT COBAP BANKING,HSBC BANK PLC,2027685818,"89,457.00"
Department for Work and Pensions,Housing Benefits,14-Dec-12,HOUSING BENEFIT ADMINISTRATION,HB ENGLAND,SWALE BOROUGH COUNCIL,2027768946,"89,049.00"
Department for Work and Pensions,Corporate,24-Dec-12,SOC SEC RESEARCH BUDGET,PSG IGS STAT SERVICES,OFFICE FOR NATIONAL STATISTICS,2027922741,"88,750.00"
Department for Work and Pensions,Corporate,17-Dec-12,ADEP AM SERVICES - VAT NON-RECOVERABLE,CIO CSD ITLR ADEP TRANSITION,IBM UNITED KINGDOM LTD,2027775170,"88,075.00"
Department for Work and Pensions,Corporate,19-Dec-12,GENERAL PAYMENTS,CHG EMED NATIONAL ROLLOUT,IN PRACTICES SYSTEMS LTD INPS,2027786421,"87,951.00"
Department for Work and Pensions,Corporate,21-Dec-12,PRIME FACILITY PRICE,F&C CD BRADFORD AMBLER MILL,TELEREAL TRILLIUM,2027859524,"87,942.00"
Department for Work and Pensions,Employment Programmes,12-Dec-12,SERVICE FEE,"WWEG EP SUPPORT NORTHUMBRIA, SOUTH TYNE AND WEAR VALLEY",ESG HOLDINGS LTD,2027759762,"87,730.00"
Department for Work and Pensions,Housing Benefits,14-Dec-12,HOUSING BENEFIT ADMINISTRATION,HB ENGLAND,GREAT YARMOUTH COUNCIL,2027768855,"87,626.00"
Department for Work and Pensions,Housing Benefits,14-Dec-12,HOUSING BENEFIT ADMINISTRATION,HB ENGLAND,BRAINTREE DISTRICT COUNCIL,2027768700,"86,769.00"
Department for Work and Pensions,Corporate,21-Dec-12,PRIME FACILITY PRICE,F&C CD DEARNE VALLEY DISCOVERY HOUSE,TELEREAL TRILLIUM,2027859524,"86,737.00"
Department for Work and Pensions,Child Maintenance and Enforcement Commission,27-Dec-12,NON-TREDDS IS IT SERVICES (HOSTING),NEW SCHEME SECURITY AND PROTECTIVE MONITORING,QINETIQ LTD,1000164399,"86,190.00"
Department for Work and Pensions,Housing Benefits,14-Dec-12,HOUSING BENEFIT ADMINISTRATION,HB ENGLAND,WAVENEY DISTRICT COUNCIL,2027768867,"85,909.00"
Department for Work and Pensions,Corporate,21-Dec-12,PRIME FACILITY PRICE,F&C CD MANCHESTER ANCHORAGE HOUSE,TELEREAL TRILLIUM,2027859524,"85,781.00"
Department for Work and Pensions,Corporate,24-Dec-12,CONTRACTED OUT WINTER FUEL PAYMENTS SERVICES,OPS OPE CENTRAL CONTACTS,PROMOTIONAL LOGISTICS LTD,2027922155,"85,361.00"
Department for Work and Pensions,Housing Benefits,14-Dec-12,HOUSING BENEFIT ADMINISTRATION,HB ENGLAND,ROYAL BOROUGH OF KINGSTON UPON THAMES,2027768582,"85,315.00"
Department for Work and Pensions,Housing Benefits,14-Dec-12,HOUSING BENEFIT ADMINISTRATION,HB ENGLAND,OXFORD CITY COUNCIL,2027768754,"85,086.00"
Department for Work and Pensions,Housing Benefits,14-Dec-12,HOUSING BENEFIT ADMINISTRATION,HB ENGLAND,LANCASTER CITY COUNCIL,2027768747,"85,084.00"
Department for Work and Pensions,Housing Benefits,14-Dec-12,HOUSING BENEFIT ADMINISTRATION,HB ENGLAND,GLOUCESTER CITY COUNCIL,2027768873,"85,060.00"
Department for Work and Pensions,Corporate,07-Dec-12,PROFESSIONAL ADVICE & OPINION VAT RECOVERABLE,IFD ORC,ORC INTERNATIONAL LTD,2027685928,"85,045.00"
Department for Work and Pensions,Corporate,24-Dec-12,PROFESSIONAL ADVICE & OPINION VAT RECOVERABLE,IFD ORC,ORC INTERNATIONAL LTD,2027923954,"85,045.00"
Department for Work and Pensions,European Social Fund,12-Dec-12,MA ESF(D) PROGRAMME EXPENDITURE EC PREFUNDED DWP,WWEG EUROPEAN SOCIAL FUND PROGRAMME 2007-2013,WEST MIDLANDS DWP,5000001220,"85,040.00"
Department for Work and Pensions,Employment Programmes,12-Dec-12,SERVICE FEE,"WWEG EP SUPPORT DERBYSHIRE, SOUTH YORKSHIRE",A4E LTD,2027759684,"84,600.00"
Department for Work and Pensions,Corporate,21-Dec-12,PRIME FACILITY PRICE,F&C CD GLASGOW WEST REGENT HOUSE,TELEREAL TRILLIUM,2027859524,"84,399.00"
Department for Work and Pensions,Corporate,21-Dec-12,PRIME FACILITY PRICE,F&C CD SHEFFIELD ROCKINGHAM HOUSE,TELEREAL TRILLIUM,2027859524,"83,348.00"
Department for Work and Pensions,Corporate,19-Dec-12,MOTABILITY ADMINISTRATION GRANT,STR MOTABILITY,MOTABILITY,1005560,"83,330.00"
Department for Work and Pensions,Corporate,10-Dec-12,MOTABILITY ADMINISTRATION GRANT,STR MOTABILITY,MOTABILITY,1005541,"83,330.00"
Department for Work and Pensions,Housing Benefits,14-Dec-12,HOUSING BENEFIT ADMINISTRATION,HB SCOTLAND,INVERCLYDE DISTRICT COUNCIL,2027768815,"83,142.00"
Department for Work and Pensions,Housing Benefits,14-Dec-12,HOUSING BENEFIT ADMINISTRATION,HB ENGLAND,EASTBOURNE BOROUGH COUNCIL,2027768733,"83,128.00"
Department for Work and Pensions,Corporate,19-Dec-12,PROFESSIONAL ADVICE & OPINION VAT RECOVERABLE,WWG HWWD,INSTITUTE FOR EMPLOYMENT STUDIES,2027787387,"83,000.00"
Department for Work and Pensions,Housing Benefits,14-Dec-12,HOUSING BENEFIT ADMINISTRATION,HB WALES,FLINTSHIRE COUNTY COUNCIL,2027768694,"82,272.00"
Department for Work and Pensions,European Social Fund,31-Dec-12,MA ESF(D) PROGRAMME EXPENDITURE EC PREFUNDED OGDS,WWEG EUROPEAN SOCIAL FUND PROGRAMME 2007-2013,GREATER LONDON AUTHORITY,5000001227,"82,255.00"
Department for Work and Pensions,Housing Benefits,14-Dec-12,HOUSING BENEFIT ADMINISTRATION,HB ENGLAND,POOLE BOROUGH COUNCIL,2027768737,"82,218.00"
Department for Work and Pensions,Housing Benefits,14-Dec-12,HOUSING BENEFIT ADMINISTRATION,HB SCOTLAND,SOUTH AYRSHIRE COUNCIL,2027768674,"82,044.00"
Department for Work and Pensions,Corporate,14-Dec-12,CONTRACTORS & STAFF SUBSTITUTIONS,CIO ADC DIRECTOR,CAPITA RESOURCING LTD,2027772040,"81,879.00"
Department for Work and Pensions,Housing Benefits,14-Dec-12,HOUSING BENEFIT ADMINISTRATION,HB SCOTLAND,PERTH & KINROSS COUNCIL,2027768802,"81,863.00"
Department for Work and Pensions,Housing Benefits,14-Dec-12,HOUSING BENEFIT ADMINISTRATION,HB ENGLAND,BASINGSTOKE DISTRICT COUNCIL,2027768681,"81,796.00"
Department for Work and Pensions,Housing Benefits,14-Dec-12,HOUSING BENEFIT ADMINISTRATION,HB ENGLAND,BURNLEY BOROUGH COUNCIL,2027768941,"81,560.00"
Department for Work and Pensions,Employment Programmes,12-Dec-12,SERVICE FEE,WWEG EP SUPPORT BIRMINGHAM AND SOLIHULL,INGEUS UK LTD,2027759664,"81,483.00"
Department for Work and Pensions,Corporate,17-Dec-12,NON-TREDDS IS IT APPS DEV MANDAY,CHG UC PROJECT LEDGER CC,ACCENTURE UK LTD,2027776560,"81,281.00"
Department for Work and Pensions,Employment Programmes,12-Dec-12,SERVICE FEE,"WWEG EP SUPPORT COVENTRY AND WARWICKSHIRE, MARCHES, STAFFORDSHIRE",JHP GROUP LTD,2027759565,"81,209.00"
Department for Work and Pensions,Corporate,06-Dec-12,NEW ENTERPRISE ALLOWANCE MENTOR MATCHING,OPS WDC WSD NE N AND E YORKS AND HUMBER DISTRICT OFFICE,COLLEGE AT THE GRANGE,2027681713,"80,800.00"
Department for Work and Pensions,Corporate,11-Dec-12,FSF - SUPPORT CONTRACT MODULES FOR JSA JOBSEEKERS,OPS WDC WSD CE EMPLOYER AND PARTNERSHIPS STAFFS & SHROPS,JHP GROUP LTD,2027699060,"80,472.00"
Department for Work and Pensions,Housing Benefits,14-Dec-12,HOUSING BENEFIT ADMINISTRATION,HB ENGLAND,ASHFIELD DISTRICT COUNCIL,2027768605,"80,364.00"
Department for Work and Pensions,Housing Benefits,14-Dec-12,HOUSING BENEFIT ADMINISTRATION,HB ENGLAND,DARLINGTON BOROUGH COUNCIL,2027768647,"79,957.00"
Department for Work and Pensions,SHARED SERVICES,11-Dec-12,SOFTWARE LICENCES,STRATEGY 11,SPECIALIST COMPUTER CENTRES PLC,2027697968,"79,802.00"
Department for Work and Pensions,Corporate,14-Dec-12,CONTRACTORS & STAFF SUBSTITUTIONS,CHG UC PROJECT LEDGER CC,CAPITA RESOURCING LTD,2027772040,"79,701.00"
Department for Work and Pensions,Corporate,19-Dec-12,CONSULTANTS VAT RECOVERABLE,CHG UC PROJECT LEDGER CC,EMERGN LTD,2027786392,"79,700.00"
Department for Work and Pensions,Housing Benefits,14-Dec-12,HOUSING BENEFIT ADMINISTRATION,HB WALES,WREXHAM COUNTY BOROUGH COUNCIL,2027768942,"79,492.00"
Department for Work and Pensions,Housing Benefits,14-Dec-12,HOUSING BENEFIT ADMINISTRATION,HB ENGLAND,NUNEATON BOROUGH COUNCIL,2027768928,"79,355.00"
Department for Work and Pensions,Housing Benefits,14-Dec-12,HOUSING BENEFIT ADMINISTRATION,HB ENGLAND,AYLESBURY VALE DISTRICT COUNCIL,2027768843,"79,059.00"
Department for Work and Pensions,Child Maintenance and Enforcement Commission,31-Dec-12,NON-TREDDS IS IT SERVICES (DESKTOP),LEGACY SYSTEMS IT RUNNING COSTS - IOL,DEPARTMENT FOR WORK & PENSIONS,2000749,"78,822.00"
Department for Work and Pensions,Housing Benefits,14-Dec-12,HOUSING BENEFIT ADMINISTRATION,HB WALES,CONWY COUNTY BOROUGH  COUNCIL,2027768848,"78,775.00"
Department for Work and Pensions,Corporate,17-Dec-12,POSTAGE,OPS WDC WSD NATIONAL ACCESS TO WORK PROGRAMME,ROYAL MAIL GROUP PLC,2027775228,"78,557.00"
Department for Work and Pensions,SHARED SERVICES,14-Dec-12,CONTRACTED OUT OFFICE SERVICES,OFFICE SERVICES,BALFOUR BEATTY WORKPLACE LTD,2027772584,"78,550.00"
Department for Work and Pensions,Housing Benefits,14-Dec-12,HOUSING BENEFIT ADMINISTRATION,HB ENGLAND,NEW FOREST DISTRICT COUNCIL,2027768658,"78,394.00"
Department for Work and Pensions,Housing Benefits,14-Dec-12,HOUSING BENEFIT ADMINISTRATION,HB ENGLAND,HUNTINGDON DISTRICT COUNCIL,2027768884,"78,248.00"
Department for Work and Pensions,Housing Benefits,14-Dec-12,HOUSING BENEFIT ADMINISTRATION,HB ENGLAND,WYCOMBE DISTRICT COUNCIL,2027768902,"78,208.00"
Department for Work and Pensions,Housing Benefits,14-Dec-12,HOUSING BENEFIT ADMINISTRATION,HB ENGLAND,MANSFIELD DISTRICT COUNCIL,2027768716,"78,067.00"
Department for Work and Pensions,Corporate,06-Dec-12,STAFF TRAINING VAT RECOVERABLE,HR CONTRACTUAL L AND D,FLETCHER CONSULTANCY,2027682451,"77,910.00"
Department for Work and Pensions,Housing Benefits,14-Dec-12,HOUSING BENEFIT ADMINISTRATION,HB ENGLAND,CANTERBURY CITY COUNCIL,2027768593,"77,500.00"
Department for Work and Pensions,Corporate,21-Dec-12,PRIME FACILITY PRICE,F&C CD NUNEATON DISCOVERY HOUSE,TELEREAL TRILLIUM,2027859524,"77,313.00"
Department for Work and Pensions,Housing Benefits,14-Dec-12,HOUSING BENEFIT ADMINISTRATION,HB ENGLAND,CRAWLEY BOROUGH COUNCIL,2027768906,"77,143.00"
Department for Work and Pensions,Corporate,13-Dec-12,FSF - SUPPORT CONTRACT MODULES FOR JSA JOBSEEKERS,OPS WDC WSD LN KENT DISTRICT OFFICE,PINNACLE PEOPLE,2027764224,"77,051.00"
Department for Work and Pensions,Housing Benefits,14-Dec-12,HOUSING BENEFIT ADMINISTRATION,HB SCOTLAND,SCOTTISH BORDERS COUNCIL,2027768745,"76,727.00"
Department for Work and Pensions,Corporate,06-Dec-12,NON-TREDDS APPS DEV FIXED PRICE CONTRACTS,OPS OPE IT REL - LMS,STERIA,2027681620,"76,676.00"
Department for Work and Pensions,Housing Benefits,14-Dec-12,HOUSING BENEFIT ADMINISTRATION,HB ENGLAND,SHEPWAY DISTRICT COUNCIL,2027768720,"76,614.00"
Department for Work and Pensions,Housing Benefits,14-Dec-12,HOUSING BENEFIT ADMINISTRATION,HB ENGLAND,CHESTERFIELD BOROUGH COUNCIL,2027768717,"76,446.00"
Department for Work and Pensions,Child Maintenance and Enforcement Commission,14-Dec-12,CORPORATE COSTS,DWP RECHARGE - SHARED SERVICES,DEPARTMENT FOR WORK & PENSIONS,2000733,"76,205.00"
Department for Work and Pensions,Housing Benefits,14-Dec-12,HOUSING BENEFIT ADMINISTRATION,HB ENGLAND,HAVANT BOROUGH COUNCIL,2027768613,"76,124.00"
Department for Work and Pensions,Child Maintenance and Enforcement Commission,04-Dec-12,TREDDS APPS DEV FIXED PRICE CONTRACTS,NEW SCHEME SECURITY AND PROTECTIVE MONITORING,HP ENTERPRISE SERVICES UK LTD,1000162237,"75,959.00"
Department for Work and Pensions,Housing Benefits,14-Dec-12,HOUSING BENEFIT ADMINISTRATION,HB ENGLAND,DACORUM BOROUGH COUNCIL,2027768678,"75,825.00"
Department for Work and Pensions,Housing Benefits,14-Dec-12,HOUSING BENEFIT ADMINISTRATION,HB ENGLAND,BRECKLAND DISTRICT COUNCIL,2027768875,"75,773.00"
Department for Work and Pensions,Housing Benefits,14-Dec-12,HOUSING BENEFIT ADMINISTRATION,HB ENGLAND,CHELMSFORD BOROUGH COUNCIL,2027768705,"75,471.00"
Department for Work and Pensions,Corporate,27-Dec-12,NEW ENTERPRISE ALLOWANCE MENTOR MATCHING,OPS WDC WSD NW GTR MANCHESTER CENTRAL AND CHESHIRE DO,BLUE ORCHID,2027928874,"75,440.00"
Department for Work and Pensions,Corporate,19-Dec-12,COST VARIANCE ACCOUNT,CHG PIP PROG MANAGEMENT,CAPGEMINI UK PLC,2027786512,"75,276.00"
Department for Work and Pensions,Housing Benefits,14-Dec-12,HOUSING BENEFIT ADMINISTRATION,HB ENGLAND,WYRE BOROUGH COUNCIL,2027768749,"74,962.00"
Department for Work and Pensions,Employment Programmes,21-Dec-12,WP JSA 25+ SUSTAINMENT OUTCOME PAYMENT,WWEG EP SCOTLAND INGEUS UK,INGEUS UK LTD,2027861995,"74,605.00"
Department for Work and Pensions,Housing Benefits,14-Dec-12,HOUSING BENEFIT ADMINISTRATION,HB WALES,GWYNEDD COUNCIL,2027768934,"74,334.00"
Department for Work and Pensions,Housing Benefits,14-Dec-12,HOUSING BENEFIT ADMINISTRATION,HB ENGLAND,MAIDSTONE BOROUGH COUNCIL,2027768591,"74,298.00"
Department for Work and Pensions,Housing Benefits,14-Dec-12,HOUSING BENEFIT ADMINISTRATION,HB WALES,TORFAEN BOROUGH COUNCIL,2027768860,"74,129.00"
Department for Work and Pensions,Corporate,13-Dec-12,NETWORK SERVICES,CIO CSD AD HOC ITLR PROJECTS,BT GLOBAL SERVICES,2027764755,"73,954.00"
Department for Work and Pensions,Corporate,21-Dec-12,STAFF RELATED COSTS,HR EYECARE,ASE CORPORATE EYECARE LTD,2027860005,"73,418.00"
Department for Work and Pensions,Housing Benefits,14-Dec-12,HOUSING BENEFIT ADMINISTRATION,HB ENGLAND,CHARNWOOD BOROUGH COUNCIL,2027768849,"73,389.00"
Department for Work and Pensions,Housing Benefits,14-Dec-12,HOUSING BENEFIT ADMINISTRATION,HB ENGLAND,CHERWELL DISTRICT COUNCIL,2027768864,"73,329.00"
Department for Work and Pensions,Housing Benefits,14-Dec-12,HOUSING BENEFIT ADMINISTRATION,HB ENGLAND,PENDLE BOROUGH COUNCIL,2027768782,"73,287.00"
Department for Work and Pensions,Housing Benefits,14-Dec-12,HOUSING BENEFIT ADMINISTRATION,HB ENGLAND,DOVER DISTRICT COUNCIL,2027768592,"73,275.00"
Department for Work and Pensions,Housing Benefits,14-Dec-12,HOUSING BENEFIT ADMINISTRATION,HB WALES,VALE OF GLAMORGAN COUNCIL,2027768894,"73,225.00"
Department for Work and Pensions,Housing Benefits,14-Dec-12,HOUSING BENEFIT ADMINISTRATION,HB WALES,PEMBROKESHIRE COUNTY COUNCIL,2027768650,"73,133.00"
Department for Work and Pensions,Corporate,07-Dec-12,NON-TREDDS IS IT SERVICES (DESKTOP),CIO CSD ITLR SUSTAINABLE PRINT SERVICE,XEROX UK LTD 3W,2027687157,"72,846.00"
Department for Work and Pensions,Corporate,04-Dec-12,CONTRACTED OUT OFFICE SERVICES,F&C CD OFFICE SERVICES,BALFOUR BEATTY WORKPLACE LTD,2027616394,"72,433.00"
Department for Work and Pensions,Housing Benefits,14-Dec-12,HOUSING BENEFIT ADMINISTRATION,HB ENGLAND,TEIGNBRIDGE DISTRICT COUNCIL,2027768767,"72,287.00"
Department for Work and Pensions,Corporate,21-Dec-12,CONTRACTORS & STAFF SUBSTITUTIONS,CHG UC PROJECT LEDGER CC,CAPITA RESOURCING LTD,2027858886,"71,393.00"
Department for Work and Pensions,Housing Benefits,14-Dec-12,HOUSING BENEFIT ADMINISTRATION,HB ENGLAND,LINCOLN CITY COUNCIL,2027768878,"71,372.00"
Department for Work and Pensions,Corporate,21-Dec-12,PRIME FACILITY PRICE,F&C CD SHEFFIELD MAYFIELD COURT,TELEREAL TRILLIUM,2027859524,"71,232.00"
Department for Work and Pensions,Housing Benefits,14-Dec-12,HOUSING BENEFIT ADMINISTRATION,HB ENGLAND,WEST BERKSHIRE COUNCIL,2027768579,"71,224.00"
Department for Work and Pensions,Employment Programmes,12-Dec-12,SERVICE FEE,"WWEG EP SUPPORT ADGI,EDIN,LOTH AND BORDRS,LNRK AND EAST DUN",JHP GROUP LTD,2027759565,"71,121.00"
Department for Work and Pensions,Housing Benefits,14-Dec-12,HOUSING BENEFIT ADMINISTRATION,HB ENGLAND,HYNDBURN BOROUGH COUNCIL,2027768923,"70,995.00"
Department for Work and Pensions,Housing Benefits,14-Dec-12,HOUSING BENEFIT ADMINISTRATION,HB ENGLAND,SEDGEMOOR DISTRICT COUNCIL,2027768679,"70,950.00"
Department for Work and Pensions,Housing Benefits,14-Dec-12,HOUSING BENEFIT ADMINISTRATION,HB ENGLAND,EXETER CITY COUNCIL,2027768787,"70,768.00"
Department for Work and Pensions,Housing Benefits,14-Dec-12,HOUSING BENEFIT ADMINISTRATION,HB ENGLAND,EREWASH BOROUGH COUNCIL,2027768810,"70,614.00"
Department for Work and Pensions,Corporate,07-Dec-12,ADEP AM SERVICES - VAT NON-RECOVERABLE,CHG UC RESTRUCTURE RESIDUAL,IBM UNITED KINGDOM LTD,2027685788,"70,585.00"
Department for Work and Pensions,Corporate,11-Dec-12,SOC SEC RESEARCH BUDGET,EG CPAD RESEARCH AND EVALUATION,INSTITUTE FOR SOCIAL & ECONOMIC RESEARCH,2027699014,"70,485.00"
Department for Work and Pensions,Corporate,05-Dec-12,FSF - SUPPORT CONTRACT MODULES FOR JSA JOBSEEKERS,OPS WDC WSD SE SURREY AND SUSSEX EXTERNAL RELATIONS TEAM,PINNACLE PEOPLE,2027675339,"70,464.00"
Department for Work and Pensions,Corporate,13-Dec-12,FSF - SUPPORT CONTRACT MODULES FOR JSA JOBSEEKERS,OPS WDC WSD SE SURREY AND SUSSEX EXTERNAL RELATIONS TEAM,PINNACLE PEOPLE,2027764224,"70,464.00"
Department for Work and Pensions,Corporate,27-Dec-12,NON-TREDDS IS IT APPS DEV MANDAY,CHG PIP DELIVERY,ACCENTURE UK LTD,2027929178,"70,068.00"
Department for Work and Pensions,Corporate,04-Dec-12,PRIME BILLABLE EXTRAS PRIME CONTRACT MANAGEMENT (PCM),GFD TOP SR10 ESTATES LONDON CORPORATE CENTRE,TELEREAL TRILLIUM,2027616462,"70,000.00"
Department for Work and Pensions,Housing Benefits,14-Dec-12,HOUSING BENEFIT ADMINISTRATION,HB ENGLAND,NORTH HERTFORDSHIRE DISTRICT COUNCIL,2027768581,"69,960.00"
Department for Work and Pensions,Employment Programmes,12-Dec-12,SERVICE FEE,"WWEG EP SUPP H ISLS,C COAST AND GRAM,F VALL,FIFE AND TSID",JHP GROUP LTD,2027759565,"69,918.00"
Department for Work and Pensions,Housing Benefits,14-Dec-12,HOUSING BENEFIT ADMINISTRATION,HB ENGLAND,AMBER VALLEY BOROUGH COUNCIL,2027768851,"69,682.00"
Department for Work and Pensions,Corporate,07-Dec-12,MANAGED SERVICE UNIVERSAL JOBMATCH,CHG TRANSFORMING LABOUR MARKET SERVICES,MONSTER GOVERNMENT SOLUTIONS,2027687533,"69,670.00"
Department for Work and Pensions,Housing Benefits,14-Dec-12,HOUSING BENEFIT ADMINISTRATION,HB SCOTLAND,ANGUS COUNCIL,2027768723,"69,523.00"
Department for Work and Pensions,Housing Benefits,14-Dec-12,HOUSING BENEFIT ADMINISTRATION,HB ENGLAND,HARROGATE BOROUGH COUNCIL,2027768828,"69,476.00"
Department for Work and Pensions,Housing Benefits,14-Dec-12,HOUSING BENEFIT ADMINISTRATION,HB ENGLAND,NEWCASTLE UNDER LYME BOROUGH COUNCIL,2027768664,"69,072.00"
Department for Work and Pensions,Housing Benefits,14-Dec-12,HOUSING BENEFIT ADMINISTRATION,HB ENGLAND,FENLAND DISTRICT COUNCIL,2027768761,"68,796.00"
Department for Work and Pensions,Employment Programmes,21-Dec-12,WP JSA 25+ JOB OUTCOME PAYMENTWP JSA 25+ JOB OUTCOME PAYMENT,WWEG EP SCOTLAND WORKING LINKS,WORKING LINKS,2027862060,"68,400.00"
Department for Work and Pensions,Housing Benefits,14-Dec-12,HOUSING BENEFIT ADMINISTRATION,HB WALES,POWYS COUNTY COUNCIL,2027768752,"68,266.00"
Department for Work and Pensions,Corporate,13-Dec-12,FSF - PARTNERSHIP GRANTS - TO HELP LONE PARENTS INTO WORK,OPS WDC WSD SC EAST AND SOUTH EAST SCOTLAND DO,WOMEN ONTO WORK,2027764106,"68,000.00"
Department for Work and Pensions,Housing Benefits,14-Dec-12,HOUSING BENEFIT ADMINISTRATION,HB ENGLAND,BASSETLAW DISTRICT COUNCIL,2027768715,"67,921.00"
Department for Work and Pensions,Housing Benefits,14-Dec-12,HOUSING BENEFIT ADMINISTRATION,HB ENGLAND,WYRE FOREST DISTRICT COUNCIL,2027768635,"67,842.00"
Department for Work and Pensions,Housing Benefits,14-Dec-12,HOUSING BENEFIT ADMINISTRATION,HB ENGLAND,SOUTH KESTEVEN DISTRICT COUNCIL,2027768877,"67,354.00"
Department for Work and Pensions,Corporate,24-Dec-12,PUBLICITY ADVERTISING MEDIA,CHG ERSP COMMS,M4C,2027923823,"66,776.00"
Department for Work and Pensions,Corporate,31-Dec-12,NON-TREDDS IS IT APPS DEV MANDAY,CIO C SS S & E IT DIRECTOR GATEWAY DEVELOPMENT,ATOS ORIGIN IT SERVICES UK LTD,2027937197,"66,605.00"
Department for Work and Pensions,Housing Benefits,14-Dec-12,HOUSING BENEFIT ADMINISTRATION,HB WALES,DENBIGHSHIRE COUNTY COUNCIL,2027768633,"66,454.00"
Department for Work and Pensions,Corporate,17-Dec-12,TREDDS APPS DEV MANDAYS,CIO NISSA OGD,HP ENTERPRISE SERVICES UK LTD,2027775513,"66,387.00"
Department for Work and Pensions,Corporate,21-Dec-12,PRIME BUSINESS RATES,F&C CD PEEL PARK,TELEREAL TRILLIUM,2027859523,"65,979.00"
Department for Work and Pensions,Corporate,17-Dec-12,PROFESSIONAL ADVICE & OPINION VAT RECOVERABLE,CHG NATIONAL ROLLOUT OF CREDIT REF AGENCY,EXPERIAN LTD,2027775320,"65,918.00"
Department for Work and Pensions,Child Maintenance and Enforcement Commission,11-Dec-12,TREDDS APPS DEV MANDAYS,LEGACY SYSTEMS IT RUNNING COSTS - DIRECT,HP ENTERPRISE SERVICES UK LTD,1000162905,"65,860.00"
Department for Work and Pensions,Housing Benefits,14-Dec-12,HOUSING BENEFIT ADMINISTRATION,HB ENGLAND,EAST STAFFORDSHIRE DISTRICT COUNCIL,2027768666,"65,671.00"
Department for Work and Pensions,Corporate,21-Dec-12,NON-TREDDS IS IT APPS DEV MANDAY,CHG DELIVERING THE IRIS ORGANISATION,CAPGEMINI UK PLC,2027859864,"65,523.00"
Department for Work and Pensions,Corporate,04-Dec-12,TREDDS APPS DEV MANDAYS,CHG STATE PENSION REFORM 2,HP ENTERPRISE SERVICES UK LTD,2027617171,"65,282.00"
Department for Work and Pensions,Housing Benefits,14-Dec-12,HOUSING BENEFIT ADMINISTRATION,HB ENGLAND,CHELTENHAM BOROUGH COUNCIL,2027768910,"65,235.00"
Department for Work and Pensions,Corporate,21-Dec-12,CONTRACTORS & STAFF SUBSTITUTIONS,CIO ADC DIRECTOR,CAPITA RESOURCING LTD,2027858886,"65,176.00"
Department for Work and Pensions,Housing Benefits,14-Dec-12,HOUSING BENEFIT ADMINISTRATION,HB ENGLAND,WORTHING BOROUGH COUNCIL,2027768904,"65,147.00"
Department for Work and Pensions,Child Maintenance and Enforcement Commission,10-Dec-12,TREDDS APPS DEV MANDAYS,NEW SCHEME TRANSITION,HP ENTERPRISE SERVICES UK LTD,1000162805,"65,033.00"
Department for Work and Pensions,Housing Benefits,14-Dec-12,HOUSING BENEFIT ADMINISTRATION,HB ENGLAND,HARLOW DISTRICT COUNCIL,2027768728,"64,662.00"
Department for Work and Pensions,Employment Programmes,21-Dec-12,WP JSA 25+ SUSTAINMENT OUTCOME PAYMENT,WWEG EP EAST OF ENGLAND INGEUS UK,INGEUS UK LTD,2027861995,"64,500.00"
Department for Work and Pensions,Housing Benefits,14-Dec-12,HOUSING BENEFIT ADMINISTRATION,HB ENGLAND,GEDLING BOROUGH COUNCIL,2027768713,"64,177.00"
Department for Work and Pensions,Corporate,18-Dec-12,SOC SEC RESEARCH BUDGET,CHG UC PROJECT LEDGER CC,JIGSAW RESEARCH LTD,2027782044,"63,771.00"
Department for Work and Pensions,Housing Benefits,14-Dec-12,HOUSING BENEFIT ADMINISTRATION,HB WALES,BLAENAU GWENT COUNTY BOROUGH COUNCIL,2027768917,"63,646.00"
Department for Work and Pensions,Housing Benefits,14-Dec-12,HOUSING BENEFIT ADMINISTRATION,HB ENGLAND,EAST DEVON DISTRICT COUNCIL,2027768788,"63,560.00"
Department for Work and Pensions,Housing Benefits,14-Dec-12,HOUSING BENEFIT ADMINISTRATION,HB ENGLAND,CAMBRIDGE CITY COUNCIL,2027768746,"63,309.00"
Department for Work and Pensions,Housing Benefits,14-Dec-12,HOUSING BENEFIT ADMINISTRATION,HB ENGLAND,NORTH DEVON DISTRICT COUNCIL,2027768786,"63,245.00"
Department for Work and Pensions,Housing Benefits,14-Dec-12,HOUSING BENEFIT ADMINISTRATION,HB ENGLAND,GRAVESHAM BOROUGH COUNCIL,2027768655,"63,174.00"
Department for Work and Pensions,Housing Benefits,14-Dec-12,HOUSING BENEFIT ADMINISTRATION,HB ENGLAND,WORCESTER CITY COUNCIL,2027768589,"63,132.00"
Department for Work and Pensions,Corporate,10-Dec-12,TREDDS APPS DEV MANDAYS,CHG CONTRACTED EMPLOYMENT PROG MI,HP ENTERPRISE SERVICES UK LTD,2027692728,"63,045.00"
Department for Work and Pensions,Housing Benefits,14-Dec-12,HOUSING BENEFIT ADMINISTRATION,HB ENGLAND,WARWICK DISTRICT COUNCIL,2027768931,"62,924.00"
Department for Work and Pensions,Employment Programmes,21-Dec-12,WP JSA 25+ JOB OUTCOME PAYMENTWP JSA 25+ JOB OUTCOME PAYMENT,WWEG EP EAST LONDON CAREERS DEVELOPMENT GROUP,CAREERS DEVELOPMENT GROUP,2027859785,"62,700.00"
Department for Work and Pensions,Housing Benefits,14-Dec-12,HOUSING BENEFIT ADMINISTRATION,HB ENGLAND,CANNOCK CHASE DISTRICT COUNCIL,2027768667,"62,431.00"
Department for Work and Pensions,Employment Programmes,21-Dec-12,WP JSA 25+ JOB OUTCOME PAYMENTWP JSA 25+ JOB OUTCOME PAYMENT,WWEG EP EAST OF ENGLAND INGEUS UK,INGEUS UK LTD,2027861995,"62,400.00"
Department for Work and Pensions,Employment Programmes,12-Dec-12,SERVICE FEE,WWEG EP SUPPORT BLACK COUNTRY,A4E LTD,2027759684,"62,320.00"
Department for Work and Pensions,Housing Benefits,14-Dec-12,HOUSING BENEFIT ADMINISTRATION,HB ENGLAND,BROXBOURNE BOROUGH COUNCIL,2027768634,"62,245.00"
Department for Work and Pensions,Housing Benefits,14-Dec-12,HOUSING BENEFIT ADMINISTRATION,HB ENGLAND,WEST LANCASHIRE DISTRICT COUNCIL,2027768919,"62,200.00"
Department for Work and Pensions,Housing Benefits,14-Dec-12,HOUSING BENEFIT ADMINISTRATION,HB ENGLAND,ASHFORD BOROUGH COUNCIL,2027768594,"61,810.00"
Department for Work and Pensions,Housing Benefits,14-Dec-12,HOUSING BENEFIT ADMINISTRATION,HB ENGLAND,MENDIP DISTRICT COUNCIL,2027768689,"61,794.00"
Department for Work and Pensions,Corporate,17-Dec-12,SOC SEC RESEARCH BUDGET,STR AGEING SOC DIRECTOR AND SUPPORT,TNS BMRB,2027776564,"61,792.00"
Department for Work and Pensions,Corporate,13-Dec-12,PROFESSIONAL ADVICE & OPINION VAT RECOVERABLE,CHG SOCIAL FUND REFORM,BIRMINGHAM CITY COUNCIL,2027764966,"61,706.00"
Department for Work and Pensions,Corporate,21-Dec-12,PRIME BUSINESS RATES,F&C CD NORCROSS,TELEREAL TRILLIUM,2027859523,"61,702.00"
Department for Work and Pensions,Corporate,18-Dec-12,NEW ENTERPRISE ALLOWANCE MENTOR MATCHING,OPS WDC WSD LN SOUTH LONDON DISTRICT OFFICE,IXION HOLDINGS LTD,2027784225,"61,632.00"
Department for Work and Pensions,Corporate,13-Dec-12,NEW ENTERPRISE ALLOWANCE MENTOR MATCHING,OPS WDC WSD LN SOUTH LONDON DISTRICT OFFICE,IXION HOLDINGS LTD,2027765026,"61,632.00"
Department for Work and Pensions,Housing Benefits,14-Dec-12,HOUSING BENEFIT ADMINISTRATION,HB ENGLAND,CITY OF CARLISLE DISTRICT COUNCIL,2027768813,"61,310.00"
Department for Work and Pensions,Housing Benefits,14-Dec-12,HOUSING BENEFIT ADMINISTRATION,HB ENGLAND,REIGATE & BANSTEAD BOROUGH COUNCIL,2027768952,"61,289.00"
Department for Work and Pensions,Housing Benefits,14-Dec-12,HOUSING BENEFIT ADMINISTRATION,HB ENGLAND,TAUNTON DEANE BOROUGH COUNCIL,2027768688,"61,067.00"
Department for Work and Pensions,Corporate,31-Dec-12,TREDDS APPS DEV MANDAYS,CHG STATE PENSION REFORM 2,HP ENTERPRISE SERVICES UK LTD,2027936965,"60,767.00"
Department for Work and Pensions,Corporate,24-Dec-12,FSF - SUPPORT CONTRACT MODULES FOR JSA JOBSEEKERS,OPS WDC WSD WL NORTH AND MID WALES DISTRICT OFFICE,A4E LTD,2027923688,"60,262.00"
Department for Work and Pensions,Housing Benefits,14-Dec-12,HOUSING BENEFIT ADMINISTRATION,HB ENGLAND,GUILDFORD BOROUGH COUNCIL,2027768954,"60,063.00"
Department for Work and Pensions,Housing Benefits,14-Dec-12,HOUSING BENEFIT ADMINISTRATION,HB ENGLAND,NEWARK DISTRICT COUNCIL,2027768712,"59,902.00"
Department for Work and Pensions,Housing Benefits,14-Dec-12,HOUSING BENEFIT ADMINISTRATION,HB ENGLAND,NORTH NORFOLK DISTRICT COUNCIL,2027768854,"59,891.00"
Department for Work and Pensions,Housing Benefits,14-Dec-12,HOUSING BENEFIT ADMINISTRATION,HB ENGLAND,EPPING FOREST DISTRICT COUNCIL,2027768704,"59,847.00"
Department for Work and Pensions,Corporate,11-Dec-12,STAFF TRAINING VAT RECOVERABLE,HR CONTRACTUAL L AND D,CAPITA CIVIL SERVICE LEARNING,2027699800,"59,413.00"
Department for Work and Pensions,Corporate,11-Dec-12,PRINTING/BINDING,F&C CD CORPORATE CHARGES,XEROX UK LTD 3W,2027699754,"59,309.00"
Department for Work and Pensions,Housing Benefits,14-Dec-12,HOUSING BENEFIT ADMINISTRATION,HB ENGLAND,WELWYN HATFIELD DISTRICT COUNCIL,2027768615,"59,247.00"
Department for Work and Pensions,Employment Programmes,21-Dec-12,WP JSA 25+ JOB OUTCOME PAYMENTWP JSA 25+ JOB OUTCOME PAYMENT,WWEG EP SCOTLAND INGEUS UK,INGEUS UK LTD,2027861995,"59,125.00"
Department for Work and Pensions,Housing Benefits,14-Dec-12,HOUSING BENEFIT ADMINISTRATION,HB ENGLAND,SOUTH NORFOLK DISTRICT COUNCIL,2027768841,"59,012.00"
Department for Work and Pensions,Child Maintenance and Enforcement Commission,10-Dec-12,DWP COURT FEES & RELATED EXPENSES,EXTERNAL CONTRACTS HARPER MACLEOD,HARPER MACLEOD LLP,1000162807,"58,991.00"
Department for Work and Pensions,Housing Benefits,14-Dec-12,HOUSING BENEFIT ADMINISTRATION,HB SCOTLAND,ARGYLL & BUTE COUNCIL,2027768625,"58,710.00"
Department for Work and Pensions,Child Maintenance and Enforcement Commission,17-Dec-12,IT Owned Additions Cost,NEW SCHEME TCS RESOURCE,SPECIALIST COMPUTER CENTRES PLC,1000163494,"58,698.00"
Department for Work and Pensions,Housing Benefits,14-Dec-12,HOUSING BENEFIT ADMINISTRATION,HB ENGLAND,WEALDEN DISTRICT COUNCIL,2027768708,"58,526.00"
Department for Work and Pensions,Housing Benefits,14-Dec-12,HOUSING BENEFIT ADMINISTRATION,HB ENGLAND,CHICHESTER DISTRICT COUNCIL,2027768907,"58,509.00"
Department for Work and Pensions,Corporate,12-Dec-12,HOSTING PRINT SERVICES,CIO CSD ITLR HOSTING,HP ENTERPRISE SERVICES UK LTD,2027760520,"58,173.00"
Department for Work and Pensions,Housing Benefits,14-Dec-12,HOUSING BENEFIT ADMINISTRATION,HB ENGLAND,WINDSOR & MAIDENHEAD BOROUGH COUNCIL,2027768578,"58,134.00"
Department for Work and Pensions,Corporate,21-Dec-12,PRIME FACILITY PRICE,F&C CD PRESTON HOLBORN HOUSE,TELEREAL TRILLIUM,2027859524,"58,096.00"
Department for Work and Pensions,Housing Benefits,14-Dec-12,HOUSING BENEFIT ADMINISTRATION,HB ENGLAND,GOSPORT BOROUGH COUNCIL,2027768660,"57,962.00"
Department for Work and Pensions,Housing Benefits,14-Dec-12,HOUSING BENEFIT ADMINISTRATION,HB ENGLAND,BRACKNELL FOREST BOROUGH COUNCIL,2027768580,"57,845.00"
Department for Work and Pensions,Employment Programmes,12-Dec-12,SERVICE FEE,WWEG EP SUPPORT CUMBRIA AND LANCASHIRE,JHP GROUP LTD,2027759565,"57,676.00"
Department for Work and Pensions,Housing Benefits,14-Dec-12,HOUSING BENEFIT ADMINISTRATION,HB ENGLAND,HERTSMERE BOROUGH COUNCIL,2027768618,"57,098.00"
Department for Work and Pensions,Corporate,31-Dec-12,PRIME UTILITIES,OPS OPE ESTATES RECESSION,TELEREAL TRILLIUM,2027936911,"57,095.00"
Department for Work and Pensions,Housing Benefits,14-Dec-12,HOUSING BENEFIT ADMINISTRATION,HB ENGLAND,STRATFORD ON AVON DISTRICT COUNCIL,2027768926,"56,842.00"
Department for Work and Pensions,Corporate,21-Dec-12,PRIME FACILITY PRICE,F&C CD CORBY DISCOVERY HOUSE,TELEREAL TRILLIUM,2027859524,"56,761.00"
Department for Work and Pensions,Housing Benefits,14-Dec-12,HOUSING BENEFIT ADMINISTRATION,HB SCOTLAND,EAST LOTHIAN DISTRICT COUNCIL,2027768836,"56,678.00"
Department for Work and Pensions,Housing Benefits,14-Dec-12,HOUSING BENEFIT ADMINISTRATION,HB ENGLAND,WATFORD BOROUGH COUNCIL,2027768775,"56,664.00"
Department for Work and Pensions,Housing Benefits,14-Dec-12,HOUSING BENEFIT ADMINISTRATION,HB ENGLAND,STEVENAGE BOROUGH COUNCIL,2027768617,"56,463.00"
Department for Work and Pensions,Housing Benefits,14-Dec-12,HOUSING BENEFIT ADMINISTRATION,HB ENGLAND,RUGBY BOROUGH COUNCIL,2027768927,"56,410.00"
Department for Work and Pensions,Corporate,31-Dec-12,FSF - SUPPORT CONTRACT MODULES FOR JSA JOBSEEKERS,OPS WDC WSD NW MERSEYSIDE DISTRICT OFFICE,REED IN PARTNERSHIP LTD,2027938304,"56,409.00"
Department for Work and Pensions,Corporate,31-Dec-12,CONSULTANTS VAT RECOVERABLE,CHG UC PROJECT LEDGER CC,COMPASS MANAGEMENT CONSULTING,2027937931,"56,250.00"
Department for Work and Pensions,Employment Programmes,12-Dec-12,SERVICE FEE,"WWEG EP SUPPORT SOUTH EAST WALES, NORTH AND MID WALES",A4E LTD,2027759684,"56,174.00"
Department for Work and Pensions,Housing Benefits,14-Dec-12,HOUSING BENEFIT ADMINISTRATION,HB ENGLAND,EAST HERTFORDSHIRE DISTRICT COUNCIL,2027768649,"56,153.00"
Department for Work and Pensions,Housing Benefits,14-Dec-12,HOUSING BENEFIT ADMINISTRATION,HB ENGLAND,TONBRIDGE & MALLING DISTRICT COUNCIL,2027768945,"56,129.00"
Department for Work and Pensions,Housing Benefits,14-Dec-12,HOUSING BENEFIT ADMINISTRATION,HB ENGLAND,ALLERDALE DISTRICT COUNCIL,2027768862,"55,986.00"
Department for Work and Pensions,Corporate,21-Dec-12,NON-TREDDS IS IT SERVICES (HOSTING),CHG EMED NATIONAL ROLLOUT,MICROTEST LTD,2027859879,"55,873.00"
Department for Work and Pensions,Housing Benefits,14-Dec-12,HOUSING BENEFIT ADMINISTRATION,HB ENGLAND,SUFFOLK COASTAL DISTRICT COUNCIL,2027768622,"55,789.00"
Department for Work and Pensions,Housing Benefits,14-Dec-12,HOUSING BENEFIT ADMINISTRATION,HB ENGLAND,RUSHMOOR BOROUGH COUNCIL,2027768639,"55,721.00"
Department for Work and Pensions,Housing Benefits,14-Dec-12,HOUSING BENEFIT ADMINISTRATION,HB ENGLAND,BOROUGH OF REDDITCH,2027768636,"55,674.00"
Department for Work and Pensions,Housing Benefits,14-Dec-12,HOUSING BENEFIT ADMINISTRATION,HB ENGLAND,BROXTOWE BOROUGH COUNCIL,2027768714,"55,343.00"
Department for Work and Pensions,Corporate,24-Dec-12,CONSULTANTS VAT RECOVERABLE,CHG UC SERVICE DESIGN,CAPGEMINI UK PLC,2027923321,"55,025.00"
Department for Work and Pensions,Corporate,19-Dec-12,CONTRACTED OUT OFFICE SERVICES,F&C OPS FIN DM ENFORCEMENT,COMMERCIAL COLLECTION SERVICES LTD,2027787672,"54,637.00"
Department for Work and Pensions,Child Maintenance and Enforcement Commission,10-Dec-12,POSTAGE,CS CENTRALLY HELD BUDGETS FACILITIES CONTRACTS,ROYAL MAIL GROUP PLC,1000162806,"54,339.00"
Department for Work and Pensions,Corporate,04-Dec-12,TREDDS APPS DEV FIXED PRICE CONTRACTS,CHG PIP DELIVERY,HP ENTERPRISE SERVICES UK LTD,2027617171,"54,130.00"
Department for Work and Pensions,Housing Benefits,14-Dec-12,HOUSING BENEFIT ADMINISTRATION,HB ENGLAND,CHORLEY BOROUGH COUNCIL,2027768924,"53,774.00"
Department for Work and Pensions,Corporate,18-Dec-12,POSTAGE,F&C CD NEWCASTLE ESTATE,UK MAIL,2027782260,"53,747.00"
Department for Work and Pensions,Housing Benefits,14-Dec-12,HOUSING BENEFIT ADMINISTRATION,HB ENGLAND,ST EDMUNDSBURY BOROUGH COUNCIL,2027768729,"53,711.00"
Department for Work and Pensions,Corporate,24-Dec-12,PROFESSIONAL ADVICE & OPINION VAT RECOVERABLE,OPS OPE FS DISCRETE BUGET CONTROL,LGC LTD,2027923269,"53,659.00"
Department for Work and Pensions,Housing Benefits,14-Dec-12,HOUSING BENEFIT ADMINISTRATION,HB ENGLAND,ROTHER DISTRICT COUNCIL,2027768709,"53,653.00"
Department for Work and Pensions,Housing Benefits,14-Dec-12,HOUSING BENEFIT ADMINISTRATION,HB ENGLAND,STAFFORD BOROUGH COUNCIL,2027768932,"53,489.00"
Department for Work and Pensions,Housing Benefits,14-Dec-12,HOUSING BENEFIT ADMINISTRATION,HB ENGLAND,WEST LINDSEY DISTRICT COUNCIL,2027768876,"53,356.00"
Department for Work and Pensions,Housing Benefits,14-Dec-12,HOUSING BENEFIT ADMINISTRATION,HB ENGLAND,TUNBRIDGE WELLS BOROUGH COUNCIL,2027768944,"53,252.00"
Department for Work and Pensions,Corporate,17-Dec-12,NON-TREDDS IS IT APPS DEV MANDAY,CHG TRANSFORMING LABOUR MARKET SERVICES,IBM UNITED KINGDOM LTD,2027775170,"53,152.00"
Department for Work and Pensions,Corporate,17-Dec-12,NEW ENTERPRISE ALLOWANCE MENTOR MATCHING,OPS WDC WSD NW GREATER MANCHESTER E AND W DO,BLUE ORCHID,2027774487,"52,900.00"
Department for Work and Pensions,Housing Benefits,14-Dec-12,HOUSING BENEFIT ADMINISTRATION,HB ENGLAND,SOUTH RIBBLE BOROUGH COUNCIL C,2027768920,"52,827.00"
Department for Work and Pensions,Corporate,04-Dec-12,NON-TREDDS IS IT APPS DEV MANDAY,CHG PIP DELIVERY,IBM UNITED KINGDOM LTD,2027616959,"52,665.00"
Department for Work and Pensions,Corporate,17-Dec-12,PROFESSIONAL ADVICE & OPINION VAT RECOVERABLE,PSG LEGAL SERVICES COMMERCIAL,DLA PIPER UK LLP,2027775206,"52,604.00"
Department for Work and Pensions,Housing Benefits,14-Dec-12,HOUSING BENEFIT ADMINISTRATION,HB ENGLAND,KETTERING BOROUGH COUNCIL,2027768832,"52,602.00"
Department for Work and Pensions,Housing Benefits,14-Dec-12,HOUSING BENEFIT ADMINISTRATION,HB ENGLAND,EASTLEIGH BOROUGH COUNCIL,2027768662,"52,502.00"
Department for Work and Pensions,Housing Benefits,14-Dec-12,HOUSING BENEFIT ADMINISTRATION,HB ENGLAND,LEWES DISTRICT COUNCIL,2027768866,"52,490.00"
Department for Work and Pensions,Housing Benefits,14-Dec-12,HOUSING BENEFIT ADMINISTRATION,HB ENGLAND,WYCHAVON DISTRICT COUNCIL,2027768731,"52,350.00"
Department for Work and Pensions,Employment Programmes,21-Dec-12,WP JSA 25+ SUSTAINMENT OUTCOME PAYMENT,WWEG EP NORTH WEST MERS HAL CUMB AND LANCS INGEUS UK,INGEUS UK LTD,2027861995,"52,030.00"
Department for Work and Pensions,Housing Benefits,14-Dec-12,HOUSING BENEFIT ADMINISTRATION,HB ENGLAND,BOROUGH OF WELLINGBOROUGH,2027768830,"51,753.00"
Department for Work and Pensions,Housing Benefits,14-Dec-12,HOUSING BENEFIT ADMINISTRATION,HB ENGLAND,TEST VALLEY BOROUGH COUNCIL,2027768629,"51,681.00"
Department for Work and Pensions,Housing Benefits,14-Dec-12,HOUSING BENEFIT ADMINISTRATION,HB ENGLAND,ELMBRIDGE BOROUGH COUNCIL,2027768621,"51,651.00"
Department for Work and Pensions,Housing Benefits,14-Dec-12,HOUSING BENEFIT ADMINISTRATION,HB ENGLAND,BARROW BOROUGH COUNCIL,2027768909,"51,498.00"
Department for Work and Pensions,Housing Benefits,14-Dec-12,HOUSING BENEFIT ADMINISTRATION,HB SCOTLAND,MIDLOTHIAN COUNCIL,2027768602,"51,422.00"
Department for Work and Pensions,Corporate,12-Dec-12,STAFF TRAINING VAT RECOVERABLE,HR CONTRACTUAL L AND D,CAPITA CIVIL SERVICE LEARNING,2027761635,"51,421.00"
Department for Work and Pensions,Employment Programmes,12-Dec-12,SERVICE FEE,WWEG EP SUPPORT LEICESTERSHIRE AND NORTHAMPTONSHIRE,INGEUS UK LTD,2027759664,"50,998.00"
Department for Work and Pensions,Corporate,12-Dec-12,CONSULTANTS VAT RECOVERABLE,CIO CSD INFRASTRUCTURE & SERVICE REMEDIATION,DELOITTE MCS LTD,2027761508,"50,878.00"
Department for Work and Pensions,Child Maintenance and Enforcement Commission,31-Dec-12,DESKTOP FIXED PRICE CONTRACTS,LEGACY SYSTEMS IT RUNNING COSTS - IOL,DEPARTMENT FOR WORK & PENSIONS,2000749,"50,871.00"
Department for Work and Pensions,Corporate,24-Dec-12,PRIME BILLABLE EXTRAS PRIME CONTRACT MANAGEMENT (PCM),GFD TOP SR10 ESTATES EXIT COSTS JCP,TELEREAL TRILLIUM,2027923541,"50,848.00"
Department for Work and Pensions,Corporate,11-Dec-12,NEW ENTERPRISE ALLOWANCE MENTOR MATCHING,OPS WDC WSD NE WEST YORKSHIRE DISTRICT OFFICE,WYEA LTD,2027699161,"50,760.00"
Department for Work and Pensions,Employment Programmes,21-Dec-12,WP JSA 25+ SUSTAINMENT OUTCOME PAYMENT,WWEG EP NORTH EAST AVANTA ENTERPRISE,AVANTA ENTERPRISE LTD,2027858684,"50,740.00"
Department for Work and Pensions,Housing Benefits,14-Dec-12,HOUSING BENEFIT ADMINISTRATION,HB ENGLAND,DARTFORD BOROUGH COUNCIL,2027768842,"50,651.00"
Department for Work and Pensions,Housing Benefits,14-Dec-12,HOUSING BENEFIT ADMINISTRATION,HB ENGLAND,HIGH PEAK BOROUGH COUNCIL,2027768791,"50,418.00"
Department for Work and Pensions,Housing Benefits,14-Dec-12,HOUSING BENEFIT ADMINISTRATION,HB WALES,MERTHYR TYDFIL BOROUGH COUNCIL,2027768858,"50,309.00"
Department for Work and Pensions,Corporate,07-Dec-12,FSF - SUPPORT CONTRACT MODULES FOR JSA JOBSEEKERS,OPS WDC WSD NW MERSEYSIDE DISTRICT OFFICE,REED IN PARTNERSHIP LTD,2027686455,"50,268.00"
Department for Work and Pensions,Housing Benefits,14-Dec-12,HOUSING BENEFIT ADMINISTRATION,HB ENGLAND,WEYMOUTH & PORTLAND BOROUGH COUNCIL,2027768734,"50,220.00"
Department for Work and Pensions,Corporate,11-Dec-12,NEW ENTERPRISE ALLOWANCE LOAN PAYMENT (DEL CAPITAL),OPS WDC WSD DEL PROG REPORTING,GREATER LONDON ENTERPRISE,2027698562,"50,000.00"
Department for Work and Pensions,Housing Benefits,14-Dec-12,HOUSING BENEFIT ADMINISTRATION,HB ENGLAND,STROUD DISTRICT COUNCIL,2027768683,"49,998.00"
Department for Work and Pensions,Housing Benefits,14-Dec-12,HOUSING BENEFIT ADMINISTRATION,HB ENGLAND,WEST DORSET DISTRICT COUNCIL,2027768735,"49,977.00"
Department for Work and Pensions,Housing Benefits,14-Dec-12,HOUSING BENEFIT ADMINISTRATION,HB ENGLAND,NORTH EAST DERBYSHIRE DISTRICT COUNCIL,2027768790,"49,905.00"
Department for Work and Pensions,Child Maintenance and Enforcement Commission,14-Dec-12,CONSULTANTS VAT RECOVERABLE,NEW SCHEME DEVELOPMENT AND CLIENT SIDE SUPPORT,CAPGEMINI UK PLC,1000163291,"49,890.00"
Department for Work and Pensions,Employment Programmes,03-Dec-12,WP JSA 25+ SUSTAINMENT OUTCOME PAYMENT,WWEG EP EAST LONDON SEETEC,SEETEC BUSINESS TECHNOLOGY CENTRE LTD,2027609835,"49,450.00"
Department for Work and Pensions,Housing Benefits,14-Dec-12,HOUSING BENEFIT ADMINISTRATION,HB ENGLAND,SEVENOAKS DISTRICT COUNCIL,2027768947,"49,450.00"
Department for Work and Pensions,Housing Benefits,14-Dec-12,HOUSING BENEFIT ADMINISTRATION,HB ENGLAND,MID SUSSEX DISTRICT COUNCIL,2027768656,"49,336.00"
Department for Work and Pensions,Employment Programmes,14-Dec-12,WP JSA 25+ SUSTAINMENT OUTCOME PAYMENT,WWEG EP SCOTLAND INGEUS UK,INGEUS UK LTD,2027773083,"49,235.00"
Department for Work and Pensions,Employment Programmes,21-Dec-12,WP JSA 25+ SUSTAINMENT OUTCOME PAYMENT,WWEG EP NORTH WEST MERS HAL CUMB AND LANCS A4E,A4E LTD,2027862235,"49,235.00"
Department for Work and Pensions,Housing Benefits,14-Dec-12,HOUSING BENEFIT ADMINISTRATION,HB ENGLAND,BROADLAND DISTRICT COUNCIL,2027768856,"49,174.00"
Department for Work and Pensions,Housing Benefits,14-Dec-12,HOUSING BENEFIT ADMINISTRATION,HB ENGLAND,BOLSOVER DISTRICT COUNCIL,2027768911,"48,827.00"
Department for Work and Pensions,Housing Benefits,14-Dec-12,HOUSING BENEFIT ADMINISTRATION,HB ENGLAND,CASTLE POINT DISTRICT COUNCIL,2027768706,"48,812.00"
Department for Work and Pensions,Housing Benefits,14-Dec-12,HOUSING BENEFIT ADMINISTRATION,HB ENGLAND,CORBY BOROUGH COUNCIL,2027768584,"48,758.00"
Department for Work and Pensions,Corporate,12-Dec-12,VOCA Charges,F&C FIN CONT COBAP BANKING,VOCALINK,2027761619,"48,626.00"
Department for Work and Pensions,Corporate,17-Dec-12,SIMPLE PAYMENT SERVICE,F&C FIN CONT COBAP CHEQUES,CITIBANK GLOBAL CORPORATE BANKING,2027775871,"48,536.00"
Department for Work and Pensions,Housing Benefits,14-Dec-12,HOUSING BENEFIT ADMINISTRATION,HB ENGLAND,SOUTH STAFFORDSHIRE DISTRICT COUNCIL,2027768645,"48,234.00"
Department for Work and Pensions,Housing Benefits,14-Dec-12,HOUSING BENEFIT ADMINISTRATION,HB ENGLAND,ST ALBANS DISTRICT COUNCIL,2027768756,"48,096.00"
Department for Work and Pensions,Housing Benefits,14-Dec-12,HOUSING BENEFIT ADMINISTRATION,HB ENGLAND,ROSSENDALE BOROUGH COUNCIL,2027768921,"47,921.00"
Department for Work and Pensions,Housing Benefits,14-Dec-12,HOUSING BENEFIT ADMINISTRATION,HB ENGLAND,SOUTH HOLLAND DISTRICT COUNCIL,2027768933,"47,918.00"
Department for Work and Pensions,Employment Programmes,21-Dec-12,WP JSA 25+ JOB OUTCOME PAYMENTWP JSA 25+ JOB OUTCOME PAYMENT,WWEG EP SOUTH EAST SURR SUSSX AND KENT AVANTA ENTERPRISE,AVANTA ENTERPRISE LTD,2027858684,"47,880.00"
Department for Work and Pensions,Child Maintenance and Enforcement Commission,10-Dec-12,PRIME BILLABLE EXTRAS PRIME CONTRACT MANAGEMENT (PCM),CS CENTRALLY HELD BUDGETS ESTATES RATIONALISATION,TELEREAL TRILLIUM,1000162800,"47,834.00"
Department for Work and Pensions,Corporate,17-Dec-12,NETWORK SERVICES,OPS WDC DIRECTOR AND SUPPORT OFFICE,BT GLOBAL SERVICES,2027775229,"47,791.00"
Department for Work and Pensions,Corporate,12-Dec-12,TREDDS APPS DEV MANDAYS,CHG CHANGES TO FRAUD SANC & ERROR PENALTY,HP ENTERPRISE SERVICES UK LTD,2027760520,"47,788.00"
Department for Work and Pensions,Employment Programmes,12-Dec-12,SERVICE FEE,"WWEG EP SUPPORT SOUTH WEST WALES, SOUTH WALES VALLEYS",CAPITAL TRAINING GROUP LTD,2027761132,"47,730.00"
Department for Work and Pensions,Corporate,17-Dec-12,POSTAGE,F&C CD NEWCASTLE ESTATE,ROYAL MAIL GROUP PLC,2027775228,"47,668.00"
Department for Work and Pensions,Housing Benefits,14-Dec-12,HOUSING BENEFIT ADMINISTRATION,HB ENGLAND,VALE OF WHITE HORSE DISTRICT COUNCIL,2027768710,"47,330.00"
Department for Work and Pensions,Corporate,27-Dec-12,ACCOUNTS PAYABLE UNAPPROVED INVOICES,OPS WDC WSD LN BEDS AND HERTS DISTRICT OFFICE,SEETEC,2027928495,"47,236.00"
Department for Work and Pensions,Corporate,21-Dec-12,NON ICONS NETWORK SERVICES,CIO CSD ITLR NETWORK,HUTCHISON 3G UK LTD,2027860980,"47,118.00"
Department for Work and Pensions,Housing Benefits,14-Dec-12,HOUSING BENEFIT ADMINISTRATION,HB ENGLAND,EAST HAMPSHIRE DISTRICT COUNCIL,2027768663,"47,117.00"
Department for Work and Pensions,Employment Programmes,21-Dec-12,WP JSA 25+ SUSTAINMENT OUTCOME PAYMENT,WWEG EP WEST LONDON INGEUS UK,INGEUS UK LTD,2027861995,"47,085.00"
Department for Work and Pensions,Employment Programmes,14-Dec-12,WP JSA 25+ SUSTAINMENT OUTCOME PAYMENT,WWEG EP EAST OF ENGLAND SEETEC,SEETEC BUSINESS TECHNOLOGY CENTRE LTD,2027772572,"47,085.00"
Department for Work and Pensions,Housing Benefits,14-Dec-12,HOUSING BENEFIT ADMINISTRATION,HB ENGLAND,HORSHAM DISTRICT COUNCIL,2027768905,"46,865.00"
Department for Work and Pensions,Corporate,18-Dec-12,INNOVATION FUND,CHG INNOVATION FUND SOCIAL INV BONDS,THINK FORWARD SOCIAL IMPACT 1 LTD,2027784100,"46,749.00"
Department for Work and Pensions,Corporate,11-Dec-12,IPC FOREIGN ARREARS PAYMENTS,BALANCE SHEET,J SMYTH,2027698051,"46,623.00"
Department for Work and Pensions,Housing Benefits,14-Dec-12,HOUSING BENEFIT ADMINISTRATION,HB ENGLAND,FOREST OF DEAN DISTRICT COUNCIL,2027768684,"46,610.00"
Department for Work and Pensions,Corporate,21-Dec-12,PRIME FACILITY PRICE,F&C CD CLARKE HOUSE,TELEREAL TRILLIUM,2027859524,"46,439.00"
Department for Work and Pensions,Housing Benefits,14-Dec-12,HOUSING BENEFIT ADMINISTRATION,HB ENGLAND,SOUTH CAMBRIDGESHIRE DISTRICT COUNCIL,2027768883,"46,370.00"
Department for Work and Pensions,Housing Benefits,14-Dec-12,HOUSING BENEFIT ADMINISTRATION,HB ENGLAND,NORTH KESTEVEN DISTRICT COUNCIL,2027768755,"46,213.00"
Department for Work and Pensions,Corporate,21-Dec-12,DESKTOP SERVICES,CIO CSD ITLR DESKTOP,HP ENTERPRISE SERVICES UK LTD,2027859771,"46,105.00"
Department for Work and Pensions,Corporate,17-Dec-12,STAFF RELATED COSTS,HR EYECARE,ASE CORPORATE EYECARE LTD,2027776018,"46,015.00"
Department for Work and Pensions,Corporate,11-Dec-12,NON-TREDDS IS IT APPS DEV MANDAY,CHG PIP DELIVERY,IBM UNITED KINGDOM LTD,2027698861,"45,943.00"
Department for Work and Pensions,Housing Benefits,14-Dec-12,HOUSING BENEFIT ADMINISTRATION,HB SCOTLAND,THE MORAY COUNCIL,2027768692,"45,822.00"
Department for Work and Pensions,Corporate,17-Dec-12,POSTAGE,OPS BEN DD BENEFITS GROUP 3 SEO 2 SUPPORT 1,ROYAL MAIL GROUP PLC,2027775228,"45,719.00"
Department for Work and Pensions,Corporate,18-Dec-12,CONTRACTED OUT OFFICE SERVICES,F&C OPS FIN DM ENFORCEMENT,IQOR RECOVERY SERVICES LTD,2027782675,"45,645.00"
Department for Work and Pensions,Housing Benefits,14-Dec-12,HOUSING BENEFIT ADMINISTRATION,HB ENGLAND,SOUTH OXFORDSHIRE DISTRICT COUNCIL,2027768711,"45,320.00"
Department for Work and Pensions,Employment Programmes,21-Dec-12,WP JSA 25+ SUSTAINMENT OUTCOME PAYMENT,WWEG EP EAST OF ENGLAND SEETEC,SEETEC BUSINESS TECHNOLOGY CENTRE LTD,2027859759,"45,150.00"
Department for Work and Pensions,Housing Benefits,14-Dec-12,HOUSING BENEFIT ADMINISTRATION,HB ENGLAND,HINCKLEY & BOSWORTH BOROUGH COUNCIL,2027768900,"45,113.00"
Department for Work and Pensions,Housing Benefits,14-Dec-12,HOUSING BENEFIT ADMINISTRATION,HB ENGLAND,NORTH WEST LEICESTER DISTRICT COUNCIL,2027768898,"45,046.00"
Department for Work and Pensions,Housing Benefits,14-Dec-12,HOUSING BENEFIT ADMINISTRATION,HB ENGLAND,WAVERLEY BOROUGH COUNCIL,2027768669,"44,903.00"
Department for Work and Pensions,Housing Benefits,14-Dec-12,HOUSING BENEFIT ADMINISTRATION,HB ENGLAND,LICHFIELD DISTRICT COUNCIL,2027768665,"44,719.00"
Department for Work and Pensions,Corporate,21-Dec-12,PRIME FACILITY PRICE,F&C CD BIRMINGHAM CITY C POD IRS,TELEREAL TRILLIUM,2027859524,"44,701.00"
Department for Work and Pensions,Housing Benefits,14-Dec-12,HOUSING BENEFIT ADMINISTRATION,HB WALES,MONMOUTHSHIRE COUNTY  COUNCIL,2027768861,"44,693.00"
Department for Work and Pensions,Corporate,31-Dec-12,RECURRENT PUBLICITY,CHG ERSP COMMS,DDB LONDON DIVISION OF DDB UK LTD,2027937429,"44,462.00"
Department for Work and Pensions,Corporate,07-Dec-12,TREDDS APPS DEV MANDAYS,CHG UC PROJECT LEDGER CC,HP ENTERPRISE SERVICES UK LTD,2027686451,"44,444.00"
Department for Work and Pensions,Employment Programmes,12-Dec-12,SERVICE FEE,WWEG EP SUPPORT CORNWALL AND DEVON,WORKING LINKS,2027759697,"44,410.00"
Department for Work and Pensions,Housing Benefits,14-Dec-12,HOUSING BENEFIT ADMINISTRATION,HB ENGLAND,SOUTH HAMS DISTRICT COUNCIL,2027768768,"44,367.00"
Department for Work and Pensions,Housing Benefits,14-Dec-12,HOUSING BENEFIT ADMINISTRATION,HB ENGLAND,SPELTHORNE BOROUGH COUNCIL,2027768950,"44,270.00"
Department for Work and Pensions,Corporate,03-Dec-12,CONTRACTORS & STAFF SUBSTITUTIONS,CHG UC PROJECT LEDGER CC,CAPITA RESOURCING LTD,2027608984,"44,266.00"
Department for Work and Pensions,Employment Programmes,21-Dec-12,WP JSA 25+ JOB OUTCOME PAYMENTWP JSA 25+ JOB OUTCOME PAYMENT,WWEG EP SOUTH EAST TV HANTS AND IOW A4E,A4E LTD,2027862235,"44,160.00"
Department for Work and Pensions,Housing Benefits,14-Dec-12,HOUSING BENEFIT ADMINISTRATION,HB SCOTLAND,EAST DUNBARTONSHIRE COUNCIL,2027768872,"44,113.00"
Department for Work and Pensions,Housing Benefits,14-Dec-12,HOUSING BENEFIT ADMINISTRATION,HB SCOTLAND,STIRLING COUNCIL,2027768826,"43,811.00"
Department for Work and Pensions,Corporate,14-Dec-12,NEW ENTERPRISE ALLOWANCE MENTOR MATCHING,OPS WDC WSD NW MERSEYSIDE DISTRICT OFFICE,BLUE ORCHID,2027771830,"43,657.00"
Department for Work and Pensions,Housing Benefits,14-Dec-12,HOUSING BENEFIT ADMINISTRATION,HB ENGLAND,WINCHESTER CITY COUNCIL,2027768638,"43,634.00"
Department for Work and Pensions,Housing Benefits,14-Dec-12,HOUSING BENEFIT ADMINISTRATION,HB ENGLAND,COPELAND BOROUGH COUNCIL,2027768812,"43,522.00"
Department for Work and Pensions,Housing Benefits,14-Dec-12,HOUSING BENEFIT ADMINISTRATION,HB ENGLAND,WOKINGHAM DISTRICT COUNCIL,2027768702,"43,489.00"
Department for Work and Pensions,Corporate,04-Dec-12,PRINTING/BINDING,OPS CCS MEDICAL SERVICES,XEROX UK LTD 3W,2027616182,"43,379.00"
Department for Work and Pensions,Corporate,17-Dec-12,CONTRACTED OUT WINTER FUEL PAYMENTS SERVICES,OPS OPE CENTRAL CONTACTS,PROMOTIONAL LOGISTICS LTD,2027774503,"43,374.00"
Department for Work and Pensions,Housing Benefits,14-Dec-12,HOUSING BENEFIT ADMINISTRATION,HB ENGLAND,WEST OXFORDSHIRE DISTRICT COUNCIL,2027768691,"43,287.00"
Department for Work and Pensions,Housing Benefits,14-Dec-12,HOUSING BENEFIT ADMINISTRATION,HB WALES,ISLE OF ANGLESEY COUNTY COUNCIL,2027768859,"43,263.00"
Department for Work and Pensions,Employment Programmes,21-Dec-12,WP JSA 18-24 JOB OUTCOME PAYMENT,WWEG EP SCOTLAND WORKING LINKS,WORKING LINKS,2027862060,"43,200.00"
Department for Work and Pensions,Corporate,18-Dec-12,TREDDS APPS DEV MANDAYS,OPS OPE IT REL - OTHER,HP ENTERPRISE SERVICES UK LTD,2027782356,"43,051.00"
Department for Work and Pensions,Corporate,12-Dec-12,INNOVATION FUND,CHG INNOVATION FUND SOCIAL INV BONDS,INDIGO PROJECT SOLUTIONS LTD,2027759449,"43,000.00"
Department for Work and Pensions,Employment Programmes,10-Dec-12,WP JSA 25+ SUSTAINMENT OUTCOME PAYMENT,WWEG EP SCOTLAND INGEUS UK,INGEUS UK LTD,2027691024,"43,000.00"
Department for Work and Pensions,Housing Benefits,14-Dec-12,HOUSING BENEFIT ADMINISTRATION,HB ENGLAND,BOSTON BOROUGH COUNCIL,2027768879,"42,980.00"
Department for Work and Pensions,Housing Benefits,14-Dec-12,HOUSING BENEFIT ADMINISTRATION,HB ENGLAND,WOKING BOROUGH COUNCIL,2027768930,"42,862.00"
Department for Work and Pensions,Employment Programmes,03-Dec-12,WP JSA 25+ SUSTAINMENT OUTCOME PAYMENT,WWEG EP EAST OF ENGLAND SEETEC,SEETEC BUSINESS TECHNOLOGY CENTRE LTD,2027609835,"42,785.00"
Department for Work and Pensions,Corporate,03-Dec-12,CONTRACTED OUT OFFICE SERVICES,F&C OPS FIN DM ENFORCEMENT,IQOR RECOVERY SERVICES LTD,2027608611,"42,705.00"
Department for Work and Pensions,Housing Benefits,14-Dec-12,HOUSING BENEFIT ADMINISTRATION,HB ENGLAND,TAMWORTH BOROUGH COUNCIL,2027768643,"42,671.00"
Department for Work and Pensions,Corporate,04-Dec-12,NON-TREDDS IS IT SERVICES (HOSTING),CIO CSD ITLR HOSTING,HMRC,2027617409,"42,397.00"
Department for Work and Pensions,Corporate,11-Dec-12,FSF - SUPPORT CONTRACT MODULES FOR JSA JOBSEEKERS,OPS WDC WSD CE MERCIA DISTRICT OFFICE,JHP GROUP LTD,2027699060,"42,152.00"
Department for Work and Pensions,Housing Benefits,14-Dec-12,HOUSING BENEFIT ADMINISTRATION,HB ENGLAND,EAST NORTHANTS DISTRICT COUNCIL,2027768833,"42,116.00"
Department for Work and Pensions,European Social Fund,12-Dec-12,MA ESF(D) PROGRAMME EXPENDITURE EC PREFUNDED DWP,WWEG EUROPEAN SOCIAL FUND PROGRAMME 2007-2013,NORTH WEST DWP,5000001222,"42,003.00"
Department for Work and Pensions,Corporate,21-Dec-12,FSF - SUPPORT CONTRACT MODULES FOR JSA JOBSEEKERS,OPS WDC WSD LN WEST LONDON DISTRICT OFFICE,A4E LTD,2027862234,"42,000.00"
Department for Work and Pensions,Corporate,04-Dec-12,CONTRACTED OUT OFFICE SERVICES,F&C OPS FIN DM ENFORCEMENT,CREDIT SOLUTIONS LTD,2027617199,"41,940.00"
Department for Work and Pensions,Corporate,05-Dec-12,FSF - PARTNERSHIP GRANTS - TO HELP JSA CLIENTS INTO WORK,OPS WDC WSD NE DURHAM AND TEES VALLEY DISTRICT OFFICE,HARTLEPOOL BOROUGH COUNCIL,2027675551,"41,666.00"
Department for Work and Pensions,Housing Benefits,14-Dec-12,HOUSING BENEFIT ADMINISTRATION,HB ENGLAND,BABERGH DISTRICT COUNCIL,2027768642,"41,433.00"
Department for Work and Pensions,Corporate,19-Dec-12,NEW ENTERPRISE ALLOWANCE MENTOR MATCHING,OPS WDC WSD CE EAST ANGLIA DISTRICT OFFICE,IXION HOLDINGS LTD,2027786602,"41,200.00"
Department for Work and Pensions,Employment Programmes,14-Dec-12,WP JSA 25+ SUSTAINMENT OUTCOME PAYMENT,WWEG EP EAST OF ENGLAND INGEUS UK,INGEUS UK LTD,2027773083,"40,850.00"
Department for Work and Pensions,Housing Benefits,14-Dec-12,HOUSING BENEFIT ADMINISTRATION,HB ENGLAND,STAFFORDSHIRE MOORLANDS DISTRICT COUNCIL,2027768644,"40,751.00"
Department for Work and Pensions,Housing Benefits,14-Dec-12,HOUSING BENEFIT ADMINISTRATION,HB WALES,CEREDIGION COUNTY COUNCIL,2027768630,"40,737.00"
Department for Work and Pensions,Employment Programmes,21-Dec-12,WP JSA 25+ SUSTAINMENT OUTCOME PAYMENT,WWEG EP EAST MIDLANDS INGEUS UK,INGEUS UK LTD,2027861995,"40,635.00"
Department for Work and Pensions,Housing Benefits,14-Dec-12,HOUSING BENEFIT ADMINISTRATION,HB ENGLAND,TORRIDGE DISTRICT COUNCIL,2027768764,"40,415.00"
Department for Work and Pensions,Housing Benefits,14-Dec-12,HOUSING BENEFIT ADMINISTRATION,HB ENGLAND,FAREHAM BOROUGH COUNCIL,2027768661,"40,282.00"
Department for Work and Pensions,Housing Benefits,14-Dec-12,HOUSING BENEFIT ADMINISTRATION,HB ENGLAND,RUNNYMEDE BOROUGH COUNCIL,2027768951,"40,250.00"
Department for Work and Pensions,Employment Programmes,31-Dec-12,RESIDENTIAL TRAINING COSTS,WWEG EP DELIVERY WELFARE TO WORK PRODUCT SUPPORT,RNIB ROYAL NATIONAL INSTITUTE FOR THE BLIND,2027936098,"40,143.00"
Department for Work and Pensions,Employment Programmes,12-Dec-12,SERVICE FEE,WWEG EP SUPPORT NOTTINGHAM,INGEUS UK LTD,2027759664,"40,087.00"
Department for Work and Pensions,Corporate,07-Dec-12,TREDDS IS IT CONSULTANCY (HOSTING) NON ADVICE,CHG DELIVERING THE IRIS ORGANISATION,HP ENTERPRISE SERVICES UK LTD,2027686451,"39,907.00"
Department for Work and Pensions,Employment Programmes,21-Dec-12,WP JSA 25+ JOB OUTCOME PAYMENTWP JSA 25+ JOB OUTCOME PAYMENT,WWEG EP NORTH EAST AVANTA ENTERPRISE,AVANTA ENTERPRISE LTD,2027858684,"39,900.00"
Department for Work and Pensions,Corporate,17-Dec-12,POSTAGE,OPS BEN BD DIRECTORS RESIDUAL,ROYAL MAIL GROUP PLC,2027775228,"39,654.00"
Department for Work and Pensions,Corporate,10-Dec-12,FSF - PARTNERSHIP GRANTS - TO HELP JSA CLIENTS INTO WORK,OPS WDC WSD CE BIRMINGHAM AND SOLIHULL DISTRICT OFFICE,BIRMINGHAM CITY COUNCIL,2027691218,"39,636.00"
Department for Work and Pensions,Employment Programmes,21-Dec-12,WP JSA 25+ SUSTAINMENT OUTCOME PAYMENT,WWEG EP WEST YORKSHIRE INGEUS UK,INGEUS UK LTD,2027861995,"39,560.00"
Department for Work and Pensions,Employment Programmes,31-Dec-12,WP JSA 25+ SUSTAINMENT OUTCOME PAYMENT,WWEG EP SCOTLAND WORKING LINKS,WORKING LINKS,2027937224,"39,560.00"
Department for Work and Pensions,Corporate,07-Dec-12,CONTRACTORS & STAFF SUBSTITUTIONS,CIO ADC DIRECTOR,CAPITA RESOURCING LTD,2027686447,"39,493.00"
Department for Work and Pensions,Corporate,12-Dec-12,SOFTWARE LICENCES,CIO CSD ITLR DESKTOP,HP ENTERPRISE SERVICES UK LTD,2027760520,"39,382.00"
Department for Work and Pensions,Housing Benefits,14-Dec-12,HOUSING BENEFIT ADMINISTRATION,HB ENGLAND,THREE RIVERS DISTRICT COUNCIL,2027768616,"39,377.00"
Department for Work and Pensions,Employment Programmes,10-Dec-12,WP JSA 25+ SUSTAINMENT OUTCOME PAYMENT,WWEG EP EAST OF ENGLAND INGEUS UK,INGEUS UK LTD,2027691024,"39,345.00"
Department for Work and Pensions,Corporate,04-Dec-12,TREDDS APPS DEV MANDAYS,CHG DEBT TRANSFORMATION PROG,HP ENTERPRISE SERVICES UK LTD,2027617171,"39,329.00"
Department for Work and Pensions,Employment Programmes,05-Dec-12,WP JSA 25+ SUSTAINMENT OUTCOME PAYMENT,WWEG EP EAST LONDON CAREERS DEVELOPMENT GROUP,CAREERS DEVELOPMENT GROUP,2027674913,"39,130.00"
Department for Work and Pensions,Housing Benefits,14-Dec-12,HOUSING BENEFIT ADMINISTRATION,HB ENGLAND,MID DEVON DISTRICT COUNCIL,2027768766,"39,036.00"
Department for Work and Pensions,Corporate,21-Dec-12,AMS MANDAYS,CIO CSD ITLR ADEP TRANSITION,HP ENTERPRISE SERVICES UK LTD,2027859771,"38,929.00"
Department for Work and Pensions,Employment Programmes,31-Dec-12,WP JSA 25+ SUSTAINMENT OUTCOME PAYMENT,WWEG EP EAST OF ENGLAND SEETEC,SEETEC BUSINESS TECHNOLOGY CENTRE LTD,2027937628,"38,915.00"
Department for Work and Pensions,Employment Programmes,21-Dec-12,WP JSA 25+ JOB OUTCOME PAYMENTWP JSA 25+ JOB OUTCOME PAYMENT,WWEG EP EAST LONDON A4E,A4E LTD,2027862235,"38,760.00"
Department for Work and Pensions,Housing Benefits,14-Dec-12,HOUSING BENEFIT ADMINISTRATION,HB ENGLAND,COTSWOLD DISTRICT COUNCIL,2027768935,"38,748.00"
Department for Work and Pensions,Employment Programmes,13-Dec-12,WP JSA 25+ SUSTAINMENT OUTCOME PAYMENT,WWEG EP NORTH WEST GM CHES AND WARR SEETEC,SEETEC BUSINESS TECHNOLOGY CENTRE LTD,2027765156,"38,700.00"
Department for Work and Pensions,Housing Benefits,14-Dec-12,HOUSING BENEFIT ADMINISTRATION,HB ENGLAND,HAMBLETON DISTRICT COUNCIL,2027768829,"38,598.00"
Department for Work and Pensions,Corporate,18-Dec-12,FSF - PARTNERSHIP GRANTS - TO HELP JSA CLIENTS INTO WORK,OPS WDC WSD WL SOUTH WEST WALES DISTRICT OFFICE,RIGHT DIRECTION SOLUTIONS CIC,2027782666,"38,556.00"
Department for Work and Pensions,Housing Benefits,14-Dec-12,HOUSING BENEFIT ADMINISTRATION,HB ENGLAND,EAST CAMBRIDGESHIRE DISTRICT COUNCIL,2027768885,"38,521.00"
Department for Work and Pensions,Housing Benefits,14-Dec-12,HOUSING BENEFIT ADMINISTRATION,HB ENGLAND,RUSHCLIFFE BOROUGH COUNCIL,2027768893,"38,483.00"
Department for Work and Pensions,Corporate,19-Dec-12,Inter DWP debtor - Payments to Foreign bank accounts,BALANCE SHEET,M THOMAS,3012556,"38,396.00"
Department for Work and Pensions,Housing Benefits,14-Dec-12,HOUSING BENEFIT ADMINISTRATION,HB ENGLAND,SOUTH DERBYSHIRE DISTRICT COUNCIL,2027768648,"38,315.00"
Department for Work and Pensions,Employment Programmes,21-Dec-12,WP JSA 25+ SUSTAINMENT OUTCOME PAYMENT,WWEG EP EAST LONDON SEETEC,SEETEC BUSINESS TECHNOLOGY CENTRE LTD,2027859759,"38,270.00"
Department for Work and Pensions,Housing Benefits,14-Dec-12,HOUSING BENEFIT ADMINISTRATION,HB ENGLAND,SOUTH LAKELAND DISTRICT COUNCIL,2027768840,"38,232.00"
Department for Work and Pensions,Corporate,07-Dec-12,Pay on Acct & AUC - Intangible Additions - VAT recoverable Cost,CHG UC PROJECT LEDGER CC,CAPITA RESOURCING LTD,2027686447,"38,203.00"
Department for Work and Pensions,Housing Benefits,14-Dec-12,HOUSING BENEFIT ADMINISTRATION,HB ENGLAND,TEWKESBURY BOROUGH COUNCIL,2027768682,"38,007.00"
Department for Work and Pensions,Corporate,18-Dec-12,NEW ENTERPRISE ALLOWANCE MENTOR MATCHING,OPS WDC WSD CE BIRMINGHAM AND SOLIHULL DISTRICT OFFICE,A4E LTD,2027784239,"37,745.00"
Department for Work and Pensions,Corporate,31-Dec-12,NEW ENTERPRISE ALLOWANCE MENTOR MATCHING,OPS WDC WSD CE BIRMINGHAM AND SOLIHULL DISTRICT OFFICE,A4ENTERPRISE LTD,2027937126,"37,745.00"
Department for Work and Pensions,Corporate,18-Dec-12,CIVIL SERVICE OCCUPATIONAL HEALTH SERVICE,HR OHS,ATOS ORIGIN IT SERVICES UK LTD,2027784072,"37,673.00"
Department for Work and Pensions,Housing Benefits,14-Dec-12,HOUSING BENEFIT ADMINISTRATION,HB SCOTLAND,CLACKMANNANSHIRE COUNCIL,2027768751,"37,639.00"
Department for Work and Pensions,Employment Programmes,21-Dec-12,WP JSA 18-24 JOB OUTCOME PAYMENT,WWEG EP NORTH EAST AVANTA ENTERPRISE,AVANTA ENTERPRISE LTD,2027858684,"37,620.00"
Department for Work and Pensions,Employment Programmes,21-Dec-12,WP JSA 25+ JOB OUTCOME PAYMENTWP JSA 25+ JOB OUTCOME PAYMENT,WWEG EP EAST LONDON SEETEC,SEETEC BUSINESS TECHNOLOGY CENTRE LTD,2027859759,"37,440.00"
Department for Work and Pensions,Employment Programmes,21-Dec-12,WP JSA 25+ JOB OUTCOME PAYMENTWP JSA 25+ JOB OUTCOME PAYMENT,WWEG EP EAST OF ENGLAND SEETEC,SEETEC BUSINESS TECHNOLOGY CENTRE LTD,2027859759,"37,440.00"
Department for Work and Pensions,Child Maintenance and Enforcement Commission,19-Dec-12,DNA TESTING,EXTERNAL CONTRACTS CENTRALLY HELD DNA,CELLMARK,1000163769,"37,334.00"
Department for Work and Pensions,Housing Benefits,14-Dec-12,HOUSING BENEFIT ADMINISTRATION,HB ENGLAND,SELBY DISTRICT COUNCIL,2027768753,"37,280.00"
Department for Work and Pensions,Housing Benefits,14-Dec-12,HOUSING BENEFIT ADMINISTRATION,HB ENGLAND,FYLDE BOROUGH COUNCIL,2027768819,"37,224.00"
Department for Work and Pensions,Corporate,14-Dec-12,SOC SEC RESEARCH BUDGET,PSG ANALYSIS CAD,TNS BMRB,2027772631,"37,070.00"
Department for Work and Pensions,Child Maintenance and Enforcement Commission,11-Dec-12,CFERS PAID TO HM TREASURY,BALANCE SHEET,CONSOLIDATED FUND,2000731,"37,025.00"
Department for Work and Pensions,Employment Programmes,21-Dec-12,WP JSA 25+ ATTACHMENT FEE,WWEG EP SCOTLAND INGEUS UK,INGEUS UK LTD,2027861995,"37,000.00"
Department for Work and Pensions,Corporate,13-Dec-12,PROFESSIONAL ADVICE & OPINION VAT RECOVERABLE,OPS PEN PS INTERNATIONAL PC,XEROX UK LTD 3W,2027764677,"36,914.00"
Department for Work and Pensions,Corporate,03-Dec-12,Pay on Acct & AUC - Intangible Additions - VAT recoverable Cost,CHG UC PROJECT LEDGER CC,CAPITA RESOURCING LTD,2027608984,"36,847.00"
Department for Work and Pensions,Employment Programmes,21-Dec-12,WP JSA 25+ SUSTAINMENT OUTCOME PAYMENT,WWEG EP EAST LONDON A4E,A4E LTD,2027862235,"36,765.00"
Department for Work and Pensions,Employment Programmes,21-Dec-12,WP JSA CLAIMING 22 OF 24MTHS SUSTAINMENT OUTCOME PAYMENT,WWEG EP WALES REHAB JOB FIT,REHAB JOBFIT,2027860046,"36,750.00"
Department for Work and Pensions,Corporate,18-Dec-12,INNOVATION FUND,CHG INNOVATION FUND SOCIAL INV BONDS,ADVANCED PERSONNEL MANAGEMENT,2027784101,"36,640.00"
Department for Work and Pensions,Employment Programmes,21-Dec-12,WP JSA 25+ SUSTAINMENT OUTCOME PAYMENT,WWEG EP SCOTLAND WORKING LINKS,WORKING LINKS,2027862060,"36,550.00"
Department for Work and Pensions,Corporate,17-Dec-12,"FURNITURE, FIXTURES & FITTINGS (PRIME)",UC PROJECT CENTRE OF EXCELLENCE,TELEREAL TRILLIUM,2027775730,"36,202.00"
Department for Work and Pensions,Housing Benefits,14-Dec-12,HOUSING BENEFIT ADMINISTRATION,HB ENGLAND,BLABY DISTRICT COUNCIL,2027768850,"36,051.00"
Department for Work and Pensions,Corporate,10-Dec-12,CFERS PAID TO HM TREASURY,BALANCE SHEET,CONSOLIDATED FUND,2003552,"36,040.00"
Department for Work and Pensions,Employment Programmes,21-Dec-12,WP JSA 18-24 JOB OUTCOME PAYMENT,WWEG EP EAST MIDLANDS INGEUS UK,INGEUS UK LTD,2027861995,"36,000.00"
Department for Work and Pensions,Housing Benefits,14-Dec-12,HOUSING BENEFIT ADMINISTRATION,HB ENGLAND,MID SUFFOLK DISTRICT COUNCIL,2027768623,"35,692.00"
Department for Work and Pensions,Employment Programmes,14-Dec-12,WP JSA 25+ SUSTAINMENT OUTCOME PAYMENT,WWEG EP WEST LONDON INGEUS UK,INGEUS UK LTD,2027773083,"35,690.00"
Department for Work and Pensions,Employment Programmes,14-Dec-12,WP JSA 25+ SUSTAINMENT OUTCOME PAYMENT,WWEG EP NORTH WEST MERS HAL CUMB AND LANCS INGEUS UK,INGEUS UK LTD,2027773083,"35,690.00"
Department for Work and Pensions,Employment Programmes,07-Dec-12,SUSTAINMENT FEE,WWEG EP WORK CHOICE SURREY AND SUSSEX KENT,WORKING LINKS,2027686792,"35,622.00"
Department for Work and Pensions,Housing Benefits,14-Dec-12,HOUSING BENEFIT ADMINISTRATION,HB ENGLAND,MALVERN HILLS DISTRICT COUNCIL,2027768827,"35,375.00"
Department for Work and Pensions,Corporate,31-Dec-12,HOSTING GMS SERVICES,PSG INFO SERVICES,HP ENTERPRISE SERVICES UK LTD,2027936965,"35,370.00"
Department for Work and Pensions,Housing Benefits,14-Dec-12,HOUSING BENEFIT ADMINISTRATION,HB ENGLAND,EAST DORSET DISTRICT COUNCIL,2027768610,"35,366.00"
Department for Work and Pensions,Corporate,13-Dec-12,PROFESSIONAL ADVICE & OPINION VAT RECOVERABLE,CHG SOCIAL FUND REFORM,LIVERPOOL CITY COUNCIL,2027764636,"35,339.00"
Department for Work and Pensions,Employment Programmes,06-Dec-12,WP JSA 25+ JOB OUTCOME PAYMENTWP JSA 25+ JOB OUTCOME PAYMENT,WWEG EP S WEST GLOS WILTS AND W OF E JHP GROUP,JHP GROUP LTD,2027681474,"35,280.00"
Department for Work and Pensions,Child Maintenance and Enforcement Commission,28-Dec-12,PRINTING/BINDING,CS CENTRALLY HELD BUDGETS FACILITIES CONTRACTS,DWP,2000747,"35,225.00"
Department for Work and Pensions,Child Maintenance and Enforcement Commission,21-Dec-12,PRINTING/BINDING,CS CENTRALLY HELD BUDGETS FACILITIES CONTRACTS,DWP,2000739,"35,225.00"
Department for Work and Pensions,Employment Programmes,21-Dec-12,WP JSA 25+ ATTACHMENT FEE,WWEG EP SCOTLAND WORKING LINKS,WORKING LINKS,2027862060,"35,200.00"
Department for Work and Pensions,Employment Programmes,07-Dec-12,ACCESS TO WORK - PAYMENT FOR SUPPORT WORKERS,WWEG EP LONDON REGION,THE ROYAL ASSOCIATION FOR DEAF PEOPLE,2027686315,"35,193.00"
Department for Work and Pensions,Employment Programmes,27-Dec-12,WP JSA 25+ SUSTAINMENT OUTCOME PAYMENT,WWEG EP SCOTLAND WORKING LINKS,WORKING LINKS,2027928854,"35,045.00"
Department for Work and Pensions,Employment Programmes,13-Dec-12,WP JSA CLAIMING 22 OF 24MTHS SUSTAINMENT OUTCOME PAYMENT,WWEG EP NORTH WEST GM CHES AND WARR SEETEC,SEETEC BUSINESS TECHNOLOGY CENTRE LTD,2027765156,"35,000.00"
Department for Work and Pensions,SHARED SERVICES,03-Dec-12,NON-TREDDS IS IT APPS DEV MANDAY,IT COSTS,FUJITSU SERVICES LTD,2027609363,"34,787.00"
Department for Work and Pensions,Housing Benefits,14-Dec-12,HOUSING BENEFIT ADMINISTRATION,HB ENGLAND,BROMSGROVE DISTRICT COUNCIL,2027768637,"34,771.00"
Department for Work and Pensions,Housing Benefits,14-Dec-12,HOUSING BENEFIT ADMINISTRATION,HB ENGLAND,ROCHFORD DISTRICT COUNCIL,2027768686,"34,763.00"
Department for Work and Pensions,Corporate,21-Dec-12,NEW ENTERPRISE ALLOWANCE MENTOR MATCHING,OPS WDC WSD LN EAST LONDON DISTRICT OFFICE,NETWORK PROJECTS LTD,2027859656,"34,476.00"
Department for Work and Pensions,Corporate,05-Dec-12,NON PRIME PROPERTY COSTS,OPS OPE ESTATES BASELINE,COPELAND BOROUGH COUNCIL,2027676386,"34,428.00"
Department for Work and Pensions,Corporate,04-Dec-12,CONTRACTED OUT OFFICE SERVICES,F&C OPS FIN DM CONTRACTS,BALFOUR BEATTY WORKPLACE LTD,2027616394,"34,320.00"
Department for Work and Pensions,Employment Programmes,21-Dec-12,WP JSA 25+ JOB OUTCOME PAYMENTWP JSA 25+ JOB OUTCOME PAYMENT,WWEG EP NORTH WEST MERS HAL CUMB AND LANCS INGEUS UK,INGEUS UK LTD,2027861995,"34,260.00"
Department for Work and Pensions,Employment Programmes,21-Dec-12,WP JSA 18-24 JOB OUTCOME PAYMENT,WWEG EP EAST LONDON CAREERS DEVELOPMENT GROUP,CAREERS DEVELOPMENT GROUP,2027859785,"34,200.00"
Department for Work and Pensions,Employment Programmes,31-Dec-12,WP JSA 25+ JOB OUTCOME PAYMENTWP JSA 25+ JOB OUTCOME PAYMENT,WWEG EP EAST LONDON CAREERS DEVELOPMENT GROUP,CAREERS DEVELOPMENT GROUP,2027936888,"34,200.00"
Department for Work and Pensions,Corporate,31-Dec-12,FSF - SUPPORT CONTRACT MODULES FOR JSA JOBSEEKERS,OPS WDC WSD CE BLACK COUNTRY DISTRICT OFFICE,A4E LTD,2027937789,"34,120.00"
Department for Work and Pensions,Corporate,19-Dec-12,MEDICAL SERVICES FIXED COSTS,OPS CCS MEDICAL SERVICES,ATOS HEALTHCARE,2027786653,"33,904.00"
Department for Work and Pensions,Employment Programmes,12-Dec-12,ESF 2011-13 SUPPORT FOR FAMILIES WITH MULTIPLE PROBLEMS ESA/NON CLAIMANTS CUSTOMERS PROGRESS MEASURE PAYMENT,CPA10 CORN AND THE IS OF SCIL ONLY PARAGON CONCORD INT,PARAGON CONCORD LTD,2027760135,"33,834.00"
Department for Work and Pensions,Employment Programmes,21-Dec-12,WP JSA 25+ SUSTAINMENT OUTCOME PAYMENT,WWEG EP NORTH EAST INGEUS UK,INGEUS UK LTD,2027861995,"33,755.00"
Department for Work and Pensions,Housing Benefits,14-Dec-12,HOUSING BENEFIT ADMINISTRATION,HB ENGLAND,ADUR DISTRICT COUNCIL,2027768925,"33,752.00"
Department for Work and Pensions,Corporate,18-Dec-12,CIVIL SERVICE OCCUPATIONAL HEALTH SERVICE,HR OHS,ATOS ORIGIN IT SERVICES UK,2027782337,"33,635.00"
Department for Work and Pensions,Corporate,18-Dec-12,Inter DWP debtor - Payments to Foreign bank accounts,BALANCE SHEET,I  BAILEY,3012525,"33,570.00"
Department for Work and Pensions,Employment Programmes,06-Dec-12,WP JSA 25+ SUSTAINMENT OUTCOME PAYMENT,WWEG EP EAST LONDON CAREERS DEVELOPMENT GROUP,CAREERS DEVELOPMENT GROUP,2027681702,"33,540.00"
Department for Work and Pensions,Employment Programmes,18-Dec-12,RESIDENTIAL TRAINING COSTS,WWEG EP DELIVERY WELFARE TO WORK PRODUCT SUPPORT,ENHAM,2027783936,"33,462.00"
Department for Work and Pensions,Housing Benefits,14-Dec-12,HOUSING BENEFIT ADMINISTRATION,HB ENGLAND,CHILTERN DISTRICT COUNCIL,2027768576,"33,462.00"
Department for Work and Pensions,Employment Programmes,21-Dec-12,WP JSA 25+ ATTACHMENT FEE,WWEG EP EAST MIDLANDS A4E,A4E LTD,2027862235,"33,400.00"
Department for Work and Pensions,Housing Benefits,14-Dec-12,HOUSING BENEFIT ADMINISTRATION,HB ENGLAND,FOREST HEATH DISTRICT COUNCIL,2027768641,"33,394.00"
Department for Work and Pensions,Corporate,10-Dec-12,TREDDS APPS DEV MANDAYS,F&C FIN CONT FIN SYSTEMS INT CONTROL GROUP,HP ENTERPRISE SERVICES UK LTD,2027692728,"33,114.00"
Department for Work and Pensions,Employment Programmes,21-Dec-12,WP JSA 25+ ATTACHMENT FEE,WWEG EP EAST OF ENGLAND SEETEC,SEETEC BUSINESS TECHNOLOGY CENTRE LTD,2027859759,"33,100.00"
Department for Work and Pensions,Housing Benefits,14-Dec-12,HOUSING BENEFIT ADMINISTRATION,HB ENGLAND,DAVENTRY DISTRICT COUNCIL,2027768852,"33,096.00"
Department for Work and Pensions,Employment Programmes,21-Dec-12,ESF PRIORITY 1 EXTENDING EMPLOYMENT OPPORTUNITIES,WWEG EP LONDON REGION,CAREERS DEVELOPMENT GROUP,2027859785,"33,065.00"
Department for Work and Pensions,Child Maintenance and Enforcement Commission,11-Dec-12,CONSULTANTS VAT RECOVERABLE,FAMILY SUPPORT SERVICES,THE TAVISTOCK CENTRE FOR COUPLE RELATIONSHIPS,1000162902,"33,000.00"
Department for Work and Pensions,Corporate,31-Dec-12,CONTRACTED OUT OFFICE SERVICES,F&C OPS FIN DM ENFORCEMENT,DRYDENS LTD,2027935786,"32,852.00"
Department for Work and Pensions,Corporate,31-Dec-12,CONTRACTED OUT OFFICE SERVICES,F&C OPS FIN DM ENFORCEMENT,DRYDENS LTD,2027935786,"32,852.00"
Department for Work and Pensions,Corporate,07-Dec-12,Pay on Acct & AUC - Intangible Additions - VAT recoverable Cost,UC PROJECT CENTRE OF EXCELLENCE,CAPITA RESOURCING LTD,2027686447,"32,787.00"
Department for Work and Pensions,Employment Programmes,21-Dec-12,SERVICE FEE,WWEG EP CORE MWA CPA YORKSHIRE AND HUMBER,INTERSERVE WORKING FUTURES,2027860132,"32,733.00"
Department for Work and Pensions,Housing Benefits,14-Dec-12,HOUSING BENEFIT ADMINISTRATION,HB ENGLAND,NORTH WARWICKSHIRE DISTRICT COUNCIL,2027768929,"32,479.00"
Department for Work and Pensions,Employment Programmes,21-Dec-12,WP JSA 18-24 JOB OUTCOME PAYMENT,WWEG EP EAST OF ENGLAND INGEUS UK,INGEUS UK LTD,2027861995,"32,400.00"
Department for Work and Pensions,Employment Programmes,21-Dec-12,WP JSA 25+ JOB OUTCOME PAYMENTWP JSA 25+ JOB OUTCOME PAYMENT,WWEG EP WEST LONDON INGEUS UK,INGEUS UK LTD,2027861995,"32,400.00"
Department for Work and Pensions,Employment Programmes,21-Dec-12,WP JSA 25+ JOB OUTCOME PAYMENTWP JSA 25+ JOB OUTCOME PAYMENT,WWEG EP EAST MIDLANDS INGEUS UK,INGEUS UK LTD,2027861995,"32,400.00"
Department for Work and Pensions,Corporate,10-Dec-12,FSF - SUPPORT CONTRACT MODULES FOR JSA JOBSEEKERS,OPS WDC WSD CE BIRMINGHAM AND SOLIHULL DISTRICT OFFICE,INGEUS UK LTD,2027691025,"32,221.00"
Department for Work and Pensions,Corporate,21-Dec-12,PRIME BUSINESS RATES,F&C CD SHEFFIELD KINGS COURT,TELEREAL TRILLIUM,2027859523,"32,060.00"
Department for Work and Pensions,Employment Programmes,10-Dec-12,WP JSA 25+ SUSTAINMENT OUTCOME PAYMENT,WWEG EP WEST LONDON INGEUS UK,INGEUS UK LTD,2027691024,"32,035.00"
Department for Work and Pensions,Employment Programmes,12-Dec-12,ACCESS TO WORK - PAYMENT FOR SUPPORT WORKERS,WWEG EP NORTH WEST,EAST LANCASHIRE DEAF SOCIETY,2027761033,"31,994.00"
Department for Work and Pensions,Employment Programmes,21-Dec-12,WP JSA 25+ JOB OUTCOME PAYMENTWP JSA 25+ JOB OUTCOME PAYMENT,WWEG EP NORTH WEST GM CHES AND WARR AVANTA ENTERPRISE,AVANTA ENTERPRISE LTD,2027858684,"31,920.00"
Department for Work and Pensions,Housing Benefits,14-Dec-12,HOUSING BENEFIT ADMINISTRATION,HB SCOTLAND,EAST RENFREWSHIRE COUNCIL,2027768718,"31,881.00"
Department for Work and Pensions,Housing Benefits,14-Dec-12,HOUSING BENEFIT ADMINISTRATION,HB ENGLAND,TANDRIDGE DISTRICT COUNCIL,2027768670,"31,811.00"
Department for Work and Pensions,Corporate,24-Dec-12,POSTAGE,PSG OGD SERVICES,UK MAIL,2027923064,"31,779.00"
Department for Work and Pensions,Housing Benefits,14-Dec-12,HOUSING BENEFIT ADMINISTRATION,HB ENGLAND,MOLE VALLEY DISTRICT COUNCIL,2027768953,"31,651.00"
Department for Work and Pensions,Corporate,03-Dec-12,CONTRACTORS & STAFF SUBSTITUTIONS,CIO ADC DIRECTOR,CAPITA RESOURCING LTD,2027608984,"31,603.00"
Department for Work and Pensions,Housing Benefits,14-Dec-12,HOUSING BENEFIT ADMINISTRATION,HB ENGLAND,SURREY HEATH BOROUGH COUNCIL,2027768949,"31,427.00"
Department for Work and Pensions,Corporate,19-Dec-12,FSF - LOCAL INITIATIVES TO HELP JSA CLIENTS INTO WORK,OPS WDC WSD NW GTR MANCHESTER CENTRAL AND CHESHIRE DO,MANCHESTER CITY COUNCIL,1005561,"31,250.00"
Department for Work and Pensions,European Social Fund,31-Dec-12,MA ESF(D) PROGRAMME EXPENDITURE EC PREFUNDED THIRD PARTIES,WWEG EUROPEAN SOCIAL FUND PROGRAMME 2007-2013,COMMUNITY SERVICE VOLUNTEERS CVS,5000001226,"31,176.00"
Department for Work and Pensions,Employment Programmes,12-Dec-12,SERVICE FEE,WWEG EP SUPPORT GLASGOW,REED IN PARTNERSHIP LTD,2027760338,"31,164.00"
Department for Work and Pensions,Corporate,18-Dec-12,NEW ENTERPRISE ALLOWANCE MENTOR MATCHING,OPS WDC WSD NE DURHAM AND TEES VALLEY DISTRICT OFFICE,NORTH EAST ENTERPRISE AGENCIES LTD,2027782261,"31,086.00"
Department for Work and Pensions,Corporate,05-Dec-12,NEW ENTERPRISE ALLOWANCE MENTOR MATCHING,OPS WDC WSD NE DURHAM AND TEES VALLEY DISTRICT OFFICE,NORTH EAST ENTERPRISE AGENCIES LTD,2027675880,"31,086.00"
Department for Work and Pensions,Employment Programmes,07-Dec-12,ACCESS TO WORK - OTHER PAYMENTS TO CLIENTS,WWEG EP NORTH EAST,BISON STORAGE SERVICES LTD,2027687255,"31,050.00"
Department for Work and Pensions,Corporate,07-Dec-12,FSF - PARTNERSHIP GRANTS - TO HELP JSA CLIENTS INTO WORK,OPS WDC WSD CE DERBYSHIRE DISTRICT OFFICE,DERBYSHIRE AND NOTTINGHAMSHIRE CHAMBER,2027686958,"31,005.00"
Department for Work and Pensions,Corporate,07-Dec-12,NEW ENTERPRISE ALLOWANCE MENTOR MATCHING,OPS WDC WSD NE EMPLOYER AND PARTNERSHIPS,GATESHEAD COUNCIL,2027686117,"30,831.00"
Department for Work and Pensions,Corporate,27-Dec-12,NEW ENTERPRISE ALLOWANCE MENTOR MATCHING,OPS WDC WSD SE SURREY AND SUSSEX DISTRICT OFFICE,LETS DO BUSINESS,2027928548,"30,829.00"
Department for Work and Pensions,Employment Programmes,31-Dec-12,WP JSA 25+ SUSTAINMENT OUTCOME PAYMENT,WWEG EP EAST LONDON CAREERS DEVELOPMENT GROUP,CAREERS DEVELOPMENT GROUP,2027936888,"30,745.00"
Department for Work and Pensions,Corporate,31-Dec-12,NEW ENTERPRISE ALLOWANCE MENTOR MATCHING,OPS WDC WSD CE BLACK COUNTRY DISTRICT OFFICE,BLACK COUNTRY CHAMBER OF COMMERCE,2027935881,"30,678.00"
Department for Work and Pensions,Corporate,11-Dec-12,PRIME BILLABLE EXTRAS PRIME CONTRACT MANAGEMENT (PCM),OPS CCS MEDICAL SERVICES,TELEREAL TRILLIUM,2027699611,"30,630.00"
Department for Work and Pensions,Employment Programmes,04-Dec-12,SERVICE FEE,WWEG EP CORE MWA CPA LONDON,SEETEC BUSINESS TECHNOLOGY CENTRE LTD,2027616497,"30,442.00"
Department for Work and Pensions,Corporate,31-Dec-12,NON-TREDDS IS IT APPS DEV MANDAY,CIO C SS S & E IT DIRECTOR GATEWAY CORE,ATOS ORIGIN IT SERVICES UK LTD,2027937197,"30,426.00"
Department for Work and Pensions,Employment Programmes,21-Dec-12,WP JSA 25+ SUSTAINMENT OUTCOME PAYMENT,WWEG EP SOUTH EAST TV HANTS AND IOW A4E,A4E LTD,2027862235,"30,315.00"
Department for Work and Pensions,Employment Programmes,21-Dec-12,WP JSA CLAIMING 22 OF 24MTHS SUSTAINMENT OUTCOME PAYMENT,WWEG EP SOUTH EAST SURR SUSSX AND KENT G4S,G4S REGIONAL MANAGEMENT UK & I LTD,2027860697,"30,250.00"
Department for Work and Pensions,Corporate,14-Dec-12,AGENCY PAYMENTS TO LOCAL AUTHORITIES,CHG UC IMPLEMENTATION & DELIVERY,CITY OF EDINBURGH COUNCIL,2027771846,"30,216.00"
Department for Work and Pensions,Corporate,06-Dec-12,POSTAGE,F&C CD ACC POSTAGE,POST OFFICE LTD,2027682640,"30,200.00"
Department for Work and Pensions,Employment Programmes,21-Dec-12,WP JSA 18-24 JOB OUTCOME PAYMENT,WWEG EP SCOTLAND INGEUS UK,INGEUS UK LTD,2027861995,"30,100.00"
Department for Work and Pensions,Corporate,14-Dec-12,PRINTING/BINDING,F&C OPS FIN DM CONTRACTS,XEROX UK LTD 3W,2027772274,"30,071.00"
Department for Work and Pensions,Employment Programmes,07-Dec-12,WP JSA 25+ JOB OUTCOME PAYMENTWP JSA 25+ JOB OUTCOME PAYMENT,WWEG EP SOUTH EAST SURR SUSSX AND KENT G4S,G4S REGIONAL MANAGEMENT UK & I LTD,2027687621,"30,000.00"
Department for Work and Pensions,Employment Programmes,14-Dec-12,WP JSA 25+ JOB OUTCOME PAYMENTWP JSA 25+ JOB OUTCOME PAYMENT,WWEG EP SCOTLAND WORKING LINKS,WORKING LINKS,2027773085,"30,000.00"
Department for Work and Pensions,Corporate,31-Dec-12,FSF - LOCAL INITIATIVES TO HELP JSA CLIENTS INTO WORK,OPS WDC WSD NW GREATER MANCHESTER E AND W DO,TAMESIDE MBC,1005575,"30,000.00"
Department for Work and Pensions,Housing Benefits,14-Dec-12,HOUSING BENEFIT ADMINISTRATION,HB ENGLAND,NORTH DORSET DISTRICT COUNCIL,2027768738,"29,975.00"
Department for Work and Pensions,Corporate,12-Dec-12,FSF - TRAINING PAYMENTS TO PROVIDERS - JSA JOBSEEKERS,OPS WDC WSD SE GLOUCESTERSHIRE AND WEST OF ENGLAND DO,PINNACLE PEOPLE,2027759764,"29,853.00"
Department for Work and Pensions,Corporate,10-Dec-12,FSF - TRAINING PAYMENTS TO PROVIDERS - JSA JOBSEEKERS,OPS WDC WSD SE GLOUCESTERSHIRE AND WEST OF ENGLAND DO,PINNACLE PEOPLE,2027690483,"29,853.00"
Department for Work and Pensions,Corporate,10-Dec-12,CIVIL SERVICE OCCUPATIONAL HEALTH SERVICE,HR OHS,ATOS ORIGIN IT SERVICES UK LTD,2027691212,"29,788.00"
Department for Work and Pensions,Corporate,18-Dec-12,FSF - PARTNERSHIP GRANTS - TO HELP JSA CLIENTS INTO WORK,OPS WDC WSD CE BIRMINGHAM AND SOLIHULL DISTRICT OFFICE,THE PRINCES TRUST,2027782957,"29,717.00"
Department for Work and Pensions,Housing Benefits,14-Dec-12,HOUSING BENEFIT ADMINISTRATION,HB ENGLAND,BRENTWOOD DISTRICT COUNCIL,2027768707,"29,689.00"
Department for Work and Pensions,Corporate,04-Dec-12,TREDDS APPS DEV MANDAYS,OPS OPE IT AND OTHER MAINTENANCE,HP ENTERPRISE SERVICES UK LTD,2027617171,"29,593.00"
Department for Work and Pensions,Housing Benefits,14-Dec-12,HOUSING BENEFIT ADMINISTRATION,HB ENGLAND,EPSOM & EWELL BOROUGH COUNCIL,2027768575,"29,563.00"
Department for Work and Pensions,Corporate,18-Dec-12,FSF - SUPPORT CONTRACT MODULES FOR JSA JOBSEEKERS,OPS WDC WSD WL SOUTH WEST WALES DISTRICT OFFICE,CAPITAL TRAINING GROUP,2027782635,"29,471.00"
Department for Work and Pensions,Housing Benefits,14-Dec-12,HOUSING BENEFIT ADMINISTRATION,HB ENGLAND,MALDON DISTRICT COUNCIL,2027768653,"29,403.00"
Department for Work and Pensions,Corporate,27-Dec-12,NETWORK SERVICES,CHG CP DWP ENQUIRY SERVICE,BT GLOBAL SERVICES,2027929442,"29,391.00"
Department for Work and Pensions,Corporate,13-Dec-12,PROFESSIONAL ADVICE & OPINION VAT RECOVERABLE,CHG SOCIAL FUND REFORM,LANCASHIRE COUNCIL,2027767335,"29,368.00"
Department for Work and Pensions,Corporate,17-Dec-12,POSTAGE,OPS BEN BD SF BELLE VALE,ROYAL MAIL GROUP PLC,2027775228,"29,292.00"
Department for Work and Pensions,Employment Programmes,21-Dec-12,WP JSA 25+ ATTACHMENT FEE,WWEG EP WEST YORKSHIRE BEST LTD,INTERSERVE WORKING FUTURES,2027860132,"29,200.00"
Department for Work and Pensions,Corporate,17-Dec-12,POSTAGE,OPS BEN BD SF PERRY BARR,ROYAL MAIL GROUP PLC,2027775228,"29,104.00"
Department for Work and Pensions,Child Maintenance and Enforcement Commission,31-Dec-12,CONTRACTORS & STAFF SUBSTITUTIONS,NEW SCHEME TELEPHONY,CAPITA RESOURCING LTD,1000164503,"29,075.00"
Department for Work and Pensions,Corporate,05-Dec-12,SOC SEC RESEARCH BUDGET,PSG ANALYSIS CAD,NATCEN,2027674600,"29,040.00"
Department for Work and Pensions,Employment Programmes,17-Dec-12,WP JSA 25+ SUSTAINMENT OUTCOME PAYMENT,WWEG EP NORTH WEST GM CHES AND WARR SEETEC,SEETEC BUSINESS TECHNOLOGY CENTRE LTD,2027775125,"29,025.00"
Department for Work and Pensions,Employment Programmes,06-Dec-12,WP JSA 25+ ATTACHMENT FEE,WWEG EP SCOTLAND WORKING LINKS,WORKING LINKS,2027682684,"28,900.00"
Department for Work and Pensions,Corporate,17-Dec-12,FSF - SUPPORT CONTRACT MODULES FOR JSA JOBSEEKERS,OPS WDC WSD LN NORTH LONDON DISTRICT OFFICE,A4E LTD,2027775174,"28,887.00"
Department for Work and Pensions,Corporate,13-Dec-12,PROFESSIONAL ADVICE & OPINION VAT RECOVERABLE,CHG SOCIAL FUND REFORM,LEEDS CITY COUNCIL,2027764702,"28,861.00"
Department for Work and Pensions,Employment Programmes,21-Dec-12,WP JSA 25+ SUSTAINMENT OUTCOME PAYMENT,WWEG EP WALES REHAB JOB FIT,REHAB JOBFIT,2027860046,"28,810.00"
Department for Work and Pensions,Employment Programmes,21-Dec-12,WP JSA 25+ JOB OUTCOME PAYMENTWP JSA 25+ JOB OUTCOME PAYMENT,WWEG EP SOUTH EAST SURR SUSSX AND KENT G4S,G4S REGIONAL MANAGEMENT UK & I LTD,2027860697,"28,800.00"
Department for Work and Pensions,Employment Programmes,21-Dec-12,WP JSA CLAIMING 22 OF 24MTHS JOB OUTCOME PAYMENT,WWEG EP SCOTLAND WORKING LINKS,WORKING LINKS,2027862060,"28,800.00"
Department for Work and Pensions,Corporate,14-Dec-12,PRIME BILLABLE EXTRAS CUSTOMER SERVICE CENTRE (CSC),CHG ESTATES RATIONALISATION NORTH WEST,TELEREAL TRILLIUM,2027772734,"28,760.00"
Department for Work and Pensions,Corporate,17-Dec-12,PROFESSIONAL ADVICE & OPINION VAT RECOVERABLE,CHG SOCIAL FUND REFORM,KENT COUNTY COUNCIL,2027774668,"28,638.00"
Department for Work and Pensions,Employment Programmes,10-Dec-12,WP JSA 25+ SUSTAINMENT OUTCOME PAYMENT,WWEG EP EAST MIDLANDS INGEUS UK,INGEUS UK LTD,2027691024,"28,595.00"
Department for Work and Pensions,Corporate,27-Dec-12,NEW ENTERPRISE ALLOWANCE MENTOR MATCHING,OPS WDC WSD CE MERCIA DISTRICT OFFICE,BUSINESS ENTERPRISE SUPPORT LTD,2027929550,"28,571.00"
Department for Work and Pensions,European Social Fund,06-Dec-12,MA ESF(D) PROGRAMME EXPENDITURE EC PREFUNDED DWP,WWEG EUROPEAN SOCIAL FUND PROGRAMME 2007-2013,EAST OF ENGLAND DWP,5000001216,"28,388.00"
Department for Work and Pensions,Corporate,21-Dec-12,NON-TREDDS IS IT APPS DEV MANDAY,CIO C SS S & E IT DIRECTOR GATEWAY CORE,ATOS ORIGIN IT SERVICES UK LTD,2027858848,"28,351.00"
Department for Work and Pensions,Employment Programmes,17-Dec-12,WP JSA CLAIMING 22 OF 24MTHS SUSTAINMENT OUTCOME PAYMENT,WWEG EP NORTH WEST GM CHES AND WARR SEETEC,SEETEC BUSINESS TECHNOLOGY CENTRE LTD,2027775125,"28,250.00"
Department for Work and Pensions,Employment Programmes,14-Dec-12,SERVICE FEE,WWEG EP CORE MWA CPA SOUTH WEST,TBG LEARNING LTD,2027772207,"28,200.00"
Department for Work and Pensions,Housing Benefits,14-Dec-12,HOUSING BENEFIT ADMINISTRATION,HB ENGLAND,HARBOROUGH DISTRICT COUNCIL,2027768901,"28,174.00"
Department for Work and Pensions,Employment Programmes,10-Dec-12,WP JSA 25+ SUSTAINMENT OUTCOME PAYMENT,WWEG EP WEST YORKSHIRE INGEUS UK,INGEUS UK LTD,2027691024,"28,165.00"
Department for Work and Pensions,Corporate,21-Dec-12,PRIME FACILITY PRICE,F&C CD NOTTINGHAM EQUINOX HOUSE DEL A,TELEREAL TRILLIUM,2027859524,"28,129.00"
Department for Work and Pensions,Corporate,31-Dec-12,PROFESSIONAL ADVICE & OPINION VAT RECOVERABLE,STR INDEPNT LIVING DIRECTOR SUPPORT,ESSEX COALITION OF DISABLED PEOPLE,2027936993,"27,951.00"
Department for Work and Pensions,Employment Programmes,14-Dec-12,WP JSA 25+ SUSTAINMENT OUTCOME PAYMENT,WWEG EP EAST MIDLANDS INGEUS UK,INGEUS UK LTD,2027773083,"27,950.00"
Department for Work and Pensions,Corporate,17-Dec-12,POSTAGE,OPS BEN BD SC GLASGOW NORTHGATE,ROYAL MAIL GROUP PLC,2027775228,"27,776.00"
Department for Work and Pensions,Housing Benefits,14-Dec-12,HOUSING BENEFIT ADMINISTRATION,HB ENGLAND,WEST DEVON BOROUGH COUNCIL,2027768676,"27,749.00"
Department for Work and Pensions,Employment Programmes,14-Dec-12,WP JSA 25+ SUSTAINMENT OUTCOME PAYMENT,WWEG EP WEST YORKSHIRE INGEUS UK,INGEUS UK LTD,2027773083,"27,735.00"
Department for Work and Pensions,Child Maintenance and Enforcement Commission,18-Dec-12,NON-TREDDS IS IT SERVICES (AMS),MI PROJECT WAREHOUSE,CAPGEMINI UK PLC,1000163597,"27,678.00"
Department for Work and Pensions,Employment Programmes,05-Dec-12,WP JSA 18-24 JOB OUTCOME PAYMENT,WWEG EP EAST MIDLANDS INGEUS UK,INGEUS UK LTD,2027675525,"27,600.00"
Department for Work and Pensions,Employment Programmes,21-Dec-12,WP JSA 25+ JOB OUTCOME PAYMENTWP JSA 25+ JOB OUTCOME PAYMENT,WWEG EP NORTH EAST INGEUS UK,INGEUS UK LTD,2027861995,"27,600.00"
Department for Work and Pensions,Employment Programmes,21-Dec-12,WP JSA 18-24 JOB OUTCOME PAYMENT,WWEG EP EAST MIDLANDS A4E,A4E LTD,2027862235,"27,600.00"
Department for Work and Pensions,Employment Programmes,21-Dec-12,WP JSA 25+ JOB OUTCOME PAYMENTWP JSA 25+ JOB OUTCOME PAYMENT,WWEG EP WALES WORKING LINKS WALES,WORKING LINKS,2027862060,"27,600.00"
Department for Work and Pensions,Employment Programmes,21-Dec-12,WP JSA 25+ ATTACHMENT FEE,WWEG EP EAST LONDON SEETEC,SEETEC BUSINESS TECHNOLOGY CENTRE LTD,2027859759,"27,600.00"
Department for Work and Pensions,Corporate,31-Dec-12,TREDDS APPS DEV MANDAYS,OPS OPE IT REL - PSCS,HP ENTERPRISE SERVICES UK LTD,2027936965,"27,592.00"
Department for Work and Pensions,Corporate,13-Dec-12,FSF - PARTNERSHIP GRANTS - TO HELP JSA CLIENTS INTO WORK,OPS WDC WSD SC GLASGOW LANARKSHIRE E DUMBARTONSHIRE DO,THE WISE GROUP,2027764218,"27,475.00"
Department for Work and Pensions,Corporate,21-Dec-12,NEW ENTERPRISE ALLOWANCE MENTOR MATCHING,OPS WDC WSD LN NORTH LONDON DISTRICT OFFICE,NORTH LONDON LTD,2027860397,"27,432.00"
Department for Work and Pensions,Housing Benefits,14-Dec-12,HOUSING BENEFIT ADMINISTRATION,HB ENGLAND,DERBYSHIRE DALES DISTRICT COUNCIL,2027768789,"27,378.00"
Department for Work and Pensions,Employment Programmes,17-Dec-12,WP JSA 25+ JOB OUTCOME PAYMENTWP JSA 25+ JOB OUTCOME PAYMENT,WWEG EP SOUTH EAST SURR SUSSX AND KENT AVANTA ENTERPRISE,AVANTA ENTERPRISE LTD,2027775872,"27,360.00"
Department for Work and Pensions,Corporate,19-Dec-12,FSF - PARTNERSHIP GRANTS - TO HELP JSA CLIENTS INTO WORK,OPS WDC WSD LN WEST LONDON DISTRICT OFFICE,TWIN TRAINING INTERNATIONAL LTD,1005557,"27,360.00"
Department for Work and Pensions,Corporate,21-Dec-12,CIVIL SERVICE OCCUPATIONAL HEALTH SERVICE,HR OHS,ATOS ORIGIN IT SERVICES UK LTD,2027858849,"27,351.00"
Department for Work and Pensions,Housing Benefits,14-Dec-12,HOUSING BENEFIT ADMINISTRATION,HB ENGLAND,UTTLESFORD DISTRICT COUNCIL,2027768871,"27,348.00"
Department for Work and Pensions,Employment Programmes,18-Dec-12,WP JSA 25+ SUSTAINMENT OUTCOME PAYMENT,WWEG EP WEST LONDON REED IN PARTNERSHIP,REED IN PARTNERSHIP LTD,2027782311,"27,305.00"
Department for Work and Pensions,Child Maintenance and Enforcement Commission,31-Dec-12,OVERTIME,CLIENT SERVICE AREA MANAGEMENT OFFICE,DSD GROUP ACCOUNT,1001169,"27,253.00"
Department for Work and Pensions,Corporate,13-Dec-12,PROFESSIONAL ADVICE & OPINION VAT RECOVERABLE,CHG SOCIAL FUND REFORM,MANCHESTER CITY COUNCIL,2027764635,"27,219.00"
Department for Work and Pensions,Corporate,06-Dec-12,NEW ENTERPRISE ALLOWANCE MENTOR MATCHING,OPS WDC WSD LN WEST LONDON DISTRICT OFFICE,GREATER LONDON ENTERPRISE,2027682532,"27,132.00"
Department for Work and Pensions,Corporate,21-Dec-12,NEW ENTERPRISE ALLOWANCE MENTOR MATCHING,OPS WDC WSD LN WEST LONDON DISTRICT OFFICE,ONE LONDON LTD,2027861928,"27,132.00"
Department for Work and Pensions,Employment Programmes,18-Dec-12,WP JSA 25+ SUSTAINMENT OUTCOME PAYMENT,WWEG EP NORTH EAST AVANTA ENTERPRISE,AVANTA ENTERPRISE LTD,2027782622,"27,090.00"
Department for Work and Pensions,Employment Programmes,21-Dec-12,WP JSA 25+ SUSTAINMENT OUTCOME PAYMENT,WWEG EP W MIDLANDS COV WARW STAFFS AND MARCHES ESG,ESG HOLDINGS LIMITED,2027861734,"27,090.00"
Department for Work and Pensions,Employment Programmes,21-Dec-12,WP JSA 25+ ATTACHMENT FEE,WWEG EP EAST OF ENGLAND INGEUS UK,INGEUS UK LTD,2027861995,"27,000.00"
Department for Work and Pensions,Corporate,10-Dec-12,FSF - PARTNERSHIP GRANTS - TO HELP JSA CLIENTS INTO WORK,OPS WDC WSD LN ESSEX DISTRICT OFFICE,GOALS UK CIC,2027690734,"27,000.00"
Department for Work and Pensions,Employment Programmes,21-Dec-12,WP JSA CLAIMING 22 OF 24MTHS JOB OUTCOME PAYMENT,WWEG EP NORTH WEST GM CHES AND WARR SEETEC,SEETEC BUSINESS TECHNOLOGY CENTRE LTD,2027859759,"27,000.00"
Department for Work and Pensions,SHARED SERVICES,04-Dec-12,NON-TREDDS APPS DEV FIXED PRICE CONTRACTS,AS P2P BLACKPOOL,FUJITSU SERVICES LTD,2027616282,"26,960.00"
Department for Work and Pensions,Corporate,31-Dec-12,FSF - SUPPORT CONTRACT MODULES FOR JSA JOBSEEKERS,OPS WDC WSD CE EMPLOYER AND PARTNERSHIPS STAFFS & SHROPS,JHP GROUP LTD,2027938178,"26,824.00"
Department for Work and Pensions,Employment Programmes,18-Dec-12,SERVICE FEE,WWEG EP CORE MWA CPA LONDON,SEETEC BUSINESS TECHNOLOGY CENTRE LTD,2027782206,"26,752.00"
Department for Work and Pensions,Corporate,17-Dec-12,FSF - PARTNERSHIP GRANTS - TO HELP JSA CLIENTS INTO WORK,OPS WDC WSD LN NORTH LONDON DISTRICT OFFICE,KENSINGTON & CHELSEA COLLEGE,2027775845,"26,723.00"
Department for Work and Pensions,Employment Programmes,21-Dec-12,WP JSA 18-24 JOB SUSTAINMENT OUTCOME PAYMENT,WWEG EP NORTH EAST AVANTA ENTERPRISE,AVANTA ENTERPRISE LTD,2027858684,"26,690.00"
Department for Work and Pensions,Employment Programmes,11-Dec-12,ACCESS TO WORK - PAYMENT FOR SUPPORT WORKERS,WWEG EP LONDON REGION,REMARK,2027699035,"26,680.00"
Department for Work and Pensions,Employment Programmes,18-Dec-12,WP JSA 25+ SUSTAINMENT OUTCOME PAYMENT,WWEG EP EAST LONDON CAREERS DEVELOPMENT GROUP,CAREERS DEVELOPMENT GROUP,2027782136,"26,660.00"
Department for Work and Pensions,Employment Programmes,06-Dec-12,WP JSA 25+ JOB OUTCOME PAYMENTWP JSA 25+ JOB OUTCOME PAYMENT,WWEG EP SOUTH EAST TV HANTS AND IOW MAXIMUS EMPLOYMENT,MAXIMUS EMPLOYMENT UK LTD,2027682221,"26,640.00"
Department for Work and Pensions,Housing Benefits,14-Dec-12,HOUSING BENEFIT ADMINISTRATION,HB ENGLAND,CHRISTCHURCH BOROUGH COUNCIL,2027768763,"26,629.00"
Department for Work and Pensions,Employment Programmes,21-Dec-12,SERVICE FEE,WWEG EP CORE MWA CPA WEST MIDLANDS,ESG HOLDINGS LTD,2027862113,"26,566.00"
Department for Work and Pensions,Employment Programmes,21-Dec-12,SERVICE FEE,WWEG EP CORE MWA CPA SOUTH EAST,ATOS IT SERVICES UK LTD,2027858896,"26,535.00"
Department for Work and Pensions,Employment Programmes,05-Dec-12,WP JSA 25+ JOB OUTCOME PAYMENTWP JSA 25+ JOB OUTCOME PAYMENT,WWEG EP EAST OF ENGLAND SEETEC,SEETEC BUSINESS TECHNOLOGY CENTRE LTD,2027675218,"26,520.00"
Department for Work and Pensions,Corporate,07-Dec-12,NEW ENTERPRISE ALLOWANCE MENTOR MATCHING,OPS WDC WSD NW GREATER MANCHESTER E AND W DO,BLUE ORCHID,2027687112,"26,450.00"
Department for Work and Pensions,Employment Programmes,21-Dec-12,WP JSA 25+ SUSTAINMENT OUTCOME PAYMENT,WWEG EP EAST MIDLANDS A4E,A4E LTD,2027862235,"26,445.00"
Department for Work and Pensions,Employment Programmes,14-Dec-12,WP JSA 18-24 JOB OUTCOME PAYMENT,WWEG EP SCOTLAND WORKING LINKS,WORKING LINKS,2027773085,"26,400.00"
Department for Work and Pensions,Housing Benefits,14-Dec-12,HOUSING BENEFIT ADMINISTRATION,HB ENGLAND,SOUTH NORTHANTS COUNCIL,2027768831,"26,356.00"
Department for Work and Pensions,Corporate,21-Dec-12,PRIME BUSINESS RATES,F&C CD SHEFFIELD STEEL CITY HOUSE,TELEREAL TRILLIUM,2027859523,"26,335.00"
Department for Work and Pensions,Child Maintenance and Enforcement Commission,11-Dec-12,TREDDS APPS DEV FIXED PRICE CONTRACTS,LEGACY SYSTEMS IT RUNNING COSTS - IOL,HP ENTERPRISE SERVICES UK LTD,1000162905,"26,300.00"
Department for Work and Pensions,Corporate,06-Dec-12,NEW ENTERPRISE ALLOWANCE MENTOR MATCHING,OPS WDC WSD SC EAST AND SOUTH EAST SCOTLAND DO,WEST LOTHIAN COUNCIL,2027681985,"26,285.00"
Department for Work and Pensions,Corporate,27-Dec-12,NEW ENTERPRISE ALLOWANCE MENTOR MATCHING,OPS WDC WSD NW GTR MANCHESTER CENTRAL AND CHESHIRE DO,BLUE ORCHID MANAGEMENT CONSULTANTS LTD,2027929533,"26,220.00"
Department for Work and Pensions,Employment Programmes,21-Dec-12,WP JSA 18-24 JOB OUTCOME PAYMENT,WWEG EP SOUTH EAST SURR SUSSX AND KENT AVANTA ENTERPRISE,AVANTA ENTERPRISE LTD,2027858684,"26,220.00"
Department for Work and Pensions,Corporate,21-Dec-12,PRIME BUSINESS RATES,F&C CD BIRCHWOOD,TELEREAL TRILLIUM,2027859523,"26,106.00"
Department for Work and Pensions,Employment Programmes,21-Dec-12,WP JSA 25+ SUSTAINMENT OUTCOME PAYMENT,WWEG EP SOUTH EAST TV HANTS AND IOW MAXIMUS EMPLOYMENT,MAXIMUS EMPLOYMENT UK LTD,2027861771,"26,015.00"
Department for Work and Pensions,Employment Programmes,31-Dec-12,WP JSA CLAIMING 22 OF 24MTHS SUSTAINMENT OUTCOME PAYMENT,WWEG EP SOUTH EAST SURR SUSSX AND KENT G4S,G4S REGIONAL MANAGEMENT UK & I LTD,2027936642,"26,000.00"
Department for Work and Pensions,Corporate,17-Dec-12,FSF - SUPPORT CONTRACT MODULES FOR JSA JOBSEEKERS,OPS WDC WSD WL SOUTH EAST WALES DISTRICT OFFICE,CAPITAL TRAINING GROUP,2027775697,"25,920.00"
Department for Work and Pensions,Corporate,05-Dec-12,NEW ENTERPRISE ALLOWANCE MENTOR MATCHING,OPS WDC WSD NE SOUTH YORKSHIRE DISTRICT OFFICE,DONCASTER CHAMBER,2027675063,"25,831.00"
Department for Work and Pensions,Corporate,21-Dec-12,NEW ENTERPRISE ALLOWANCE MENTOR MATCHING,OPS WDC WSD NE SOUTH YORKSHIRE DISTRICT OFFICE,DONCASTER CHAMBER,2027861963,"25,831.00"
Department for Work and Pensions,Employment Programmes,10-Dec-12,WP JSA 25+ SUSTAINMENT OUTCOME PAYMENT,WWEG EP NORTH WEST MERS HAL CUMB AND LANCS INGEUS UK,INGEUS UK LTD,2027691024,"25,585.00"
Department for Work and Pensions,Housing Benefits,14-Dec-12,HOUSING BENEFIT ADMINISTRATION,HB ENGLAND,WEST SOMERSET DISTRICT COUNCIL,2027768687,"25,533.00"
Department for Work and Pensions,Corporate,19-Dec-12,NON-TREDDS IS IT APPS DEV MANDAY,OPS CCS HDD,IBM UNITED KINGDOM LTD,2027786567,"25,515.00"
Department for Work and Pensions,Employment Programmes,21-Dec-12,WP JSA 18-24 ATTACHMENT FEE,WWEG EP NORTH WEST MERS HAL CUMB AND LANCS INGEUS UK,INGEUS UK LTD,2027861995,"25,500.00"
Department for Work and Pensions,Corporate,21-Dec-12,Pay on Acct & AUC - Intangible Additions - VAT recoverable Cost,CHG UC PROJECT LEDGER CC,CAPITA RESOURCING LTD,2027858886,"25,436.00"
Department for Work and Pensions,Employment Programmes,21-Dec-12,WP JSA 25+ JOB OUTCOME PAYMENTWP JSA 25+ JOB OUTCOME PAYMENT,WWEG EP EAST MIDLANDS A4E,A4E LTD,2027862235,"25,392.00"
Department for Work and Pensions,Housing Benefits,14-Dec-12,HOUSING BENEFIT ADMINISTRATION,HB ENGLAND,RYEDALE DISTRICT COUNCIL,2027768739,"25,235.00"
Department for Work and Pensions,Corporate,21-Dec-12,NON-TREDDS IS IT SERVICES (AMS),CIO C SS S & E IT DIRECTOR GATEWAY DEVELOPMENT,ATOS ORIGIN IT SERVICES UK LTD,2027858848,"25,220.00"
Department for Work and Pensions,Employment Programmes,31-Dec-12,WP JSA 25+ JOB OUTCOME PAYMENTWP JSA 25+ JOB OUTCOME PAYMENT,WWEG EP SOUTH EAST SURR SUSSX AND KENT G4S,G4S REGIONAL MANAGEMENT UK & I LTD,2027936642,"25,200.00"
Department for Work and Pensions,Employment Programmes,21-Dec-12,WP JSA 25+ JOB OUTCOME PAYMENTWP JSA 25+ JOB OUTCOME PAYMENT,WWEG EP WEST YORKSHIRE INGEUS UK,INGEUS UK LTD,2027861995,"25,200.00"
Department for Work and Pensions,Employment Programmes,04-Dec-12,WP JSA 25+ JOB OUTCOME PAYMENTWP JSA 25+ JOB OUTCOME PAYMENT,WWEG EP SOUTH EAST SURR SUSSX AND KENT G4S,G4S REGIONAL MANAGEMENT UK & I LTD,2027615271,"25,200.00"
Department for Work and Pensions,Employment Programmes,07-Dec-12,WP JSA 25+ SUSTAINMENT OUTCOME PAYMENT,WWEG EP EAST LONDON SEETEC,SEETEC BUSINESS TECHNOLOGY CENTRE LTD,2027686959,"25,155.00"
Department for Work and Pensions,Employment Programmes,27-Dec-12,WP JSA 25+ JOB OUTCOME PAYMENTWP JSA 25+ JOB OUTCOME PAYMENT,WWEG EP EAST LONDON CAREERS DEVELOPMENT GROUP,CAREERS DEVELOPMENT GROUP,2027929271,"25,080.00"
Department for Work and Pensions,Corporate,07-Dec-12,NON-TREDDS IS IT APPS DEV MANDAY,CHG UC RESTRUCTURE RESIDUAL,IBM UNITED KINGDOM LTD,2027685788,"24,920.00"
Department for Work and Pensions,Corporate,17-Dec-12,REMOTE STORAGE COSTS VAT RECOV,F&C OPS FIN DM CONTRACTS,CAPITA BUSINESS SERVICES LTD,2027776494,"24,895.00"
Department for Work and Pensions,Employment Programmes,21-Dec-12,WP JSA 18-24 JOB SUSTAINMENT OUTCOME PAYMENT,WWEG EP WALES REHAB JOB FIT,REHAB JOBFIT,2027860046,"24,820.00"
Department for Work and Pensions,Employment Programmes,21-Dec-12,WP JSA 25+ SUSTAINMENT OUTCOME PAYMENT,WWEG EP SOUTH EAST SURR SUSSX AND KENT AVANTA ENTERPRISE,AVANTA ENTERPRISE LTD,2027858684,"24,725.00"
Department for Work and Pensions,Employment Programmes,04-Dec-12,WP JSA 25+ JOB OUTCOME PAYMENTWP JSA 25+ JOB OUTCOME PAYMENT,WWEG EP SCOTLAND INGEUS UK,INGEUS UK LTD,2027617593,"24,725.00"
Department for Work and Pensions,Child Maintenance and Enforcement Commission,19-Dec-12,CONTRACTED OUT OFFICE SERVICES,EXTERNAL CONTRACTS ORDER FOR SALE,DRYDENS LTD,1000163759,"24,662.00"
Department for Work and Pensions,Child Maintenance and Enforcement Commission,19-Dec-12,CONTRACTED OUT OFFICE SERVICES,EXTERNAL CONTRACTS ORDER FOR SALE,DRYDENS LTD,1000163759,"24,662.00"
Department for Work and Pensions,Corporate,17-Dec-12,PUBLICITY ADVERTISING MEDIA,CHG ERSP COMMS,M4C,2027776204,"24,641.00"
Department for Work and Pensions,Corporate,13-Dec-12,NETWORK SERVICES,CHG PIP DELIVERY,BT GLOBAL SERVICES,2027764755,"24,468.00"
Department for Work and Pensions,Employment Programmes,17-Dec-12,ACCESS TO WORK - MISC EXPENSES,WWEG EP SOUTH EAST,ROYAL BRITISH LEGION INDUSTRIES,2027775933,"24,457.00"
Department for Work and Pensions,Corporate,31-Dec-12,TREDDS IS IT CONSULTANCY NON ADVICE,CHG TRANSFORMING LABOUR MARKET SERVICES,HP ENTERPRISE SERVICES UK LTD,2027936965,"24,389.00"
Department for Work and Pensions,Housing Benefits,14-Dec-12,HOUSING BENEFIT ADMINISTRATION,HB ENGLAND,HART DISTRICT COUNCIL,2027768659,"24,304.00"
Department for Work and Pensions,Employment Programmes,19-Dec-12,WP JSA 25+ SUSTAINMENT OUTCOME PAYMENT,WWEG EP EAST OF ENGLAND SEETEC,SEETEC BUSINESS TECHNOLOGY CENTRE LTD,2027785964,"24,295.00"
Department for Work and Pensions,Employment Programmes,12-Dec-12,WP JSA 25+ SUSTAINMENT OUTCOME PAYMENT,WWEG EP EAST OF ENGLAND SEETEC,SEETEC BUSINESS TECHNOLOGY CENTRE LTD,2027760415,"24,295.00"
Department for Work and Pensions,Employment Programmes,21-Dec-12,WP JSA 25+ JOB OUTCOME PAYMENTWP JSA 25+ JOB OUTCOME PAYMENT,WWEG EP NORTH WEST MERS HAL CUMB AND LANCS A4E,A4E LTD,2027862235,"24,288.00"
Department for Work and Pensions,Employment Programmes,21-Dec-12,WP JSA CLAIMING 22 OF 24MTHS SUSTAINMENT OUTCOME PAYMENT,WWEG EP EAST MIDLANDS INGEUS UK,INGEUS UK LTD,2027861995,"24,250.00"
Department for Work and Pensions,Corporate,17-Dec-12,NON-TREDDS IS IT APPS DEV MANDAY,CIO CSD ITLR ADEP TRANSITION,IBM UNITED KINGDOM LTD,2027775170,"24,038.00"
Department for Work and Pensions,Corporate,24-Dec-12,NEW ENTERPRISE ALLOWANCE SERVICE FEE TO PROVIDERS (DEL P),OPS WDC WSD DEL PROG REPORTING,GREATER LONDON ENTERPRISE,2027923955,"24,019.00"
Department for Work and Pensions,Housing Benefits,14-Dec-12,HOUSING BENEFIT ADMINISTRATION,HB ENGLAND,CRAVEN DISTRICT COUNCIL,2027768673,"24,016.00"
Department for Work and Pensions,Corporate,17-Dec-12,POSTAGE,OPS BEN BD SF BALHAM,ROYAL MAIL GROUP PLC,2027775228,"24,001.00"
Department for Work and Pensions,Employment Programmes,27-Dec-12,WP JSA 25+ JOB OUTCOME PAYMENTWP JSA 25+ JOB OUTCOME PAYMENT,WWEG EP WEST LONDON MAXIMUS EMPLOYMENT UK,MAXIMUS EMPLOYMENT UK LTD,2027929297,"24,000.00"
Department for Work and Pensions,Employment Programmes,21-Dec-12,WP JSA CLAIMING 22 OF 24MTHS SUSTAINMENT OUTCOME PAYMENT,WWEG EP SCOTLAND INGEUS UK,INGEUS UK LTD,2027861995,"24,000.00"
Department for Work and Pensions,Employment Programmes,21-Dec-12,WP JSA CLAIMING 22 OF 24MTHS JOB OUTCOME PAYMENT,WWEG EP WALES WORKING LINKS WALES,WORKING LINKS,2027862060,"24,000.00"
Department for Work and Pensions,Employment Programmes,17-Dec-12,WP JSA 25+ JOB OUTCOME PAYMENTWP JSA 25+ JOB OUTCOME PAYMENT,WWEG EP NORTH WEST GM CHES AND WARR AVANTA ENTERPRISE,AVANTA ENTERPRISE LTD,2027775872,"23,940.00"
Department for Work and Pensions,Employment Programmes,14-Dec-12,WP JSA 25+ JOB OUTCOME PAYMENTWP JSA 25+ JOB OUTCOME PAYMENT,WWEG EP NORTH EAST AVANTA ENTERPRISE,AVANTA ENTERPRISE LTD,2027772595,"23,940.00"
Department for Work and Pensions,Employment Programmes,21-Dec-12,WP JSA 25+ JOB OUTCOME PAYMENTWP JSA 25+ JOB OUTCOME PAYMENT,WWEG EP WEST LONDON REED IN PARTNERSHIP,REED IN PARTNERSHIP LTD,2027859582,"23,940.00"
Department for Work and Pensions,Corporate,10-Dec-12,FSF - PARTNERSHIP GRANTS - TO HELP JSA CLIENTS INTO WORK,OPS WDC WSD CE LEICESTERSHIRE AND NORTHAMPTONSHIRE DO,GOALS UK CIC,2027690734,"23,827.00"
Department for Work and Pensions,Corporate,13-Dec-12,CONTRACTED OUT OFFICE SERVICES,F&C OPS FIN DM ENFORCEMENT,DRYDENS LTD,2027765469,"23,816.00"
Department for Work and Pensions,Corporate,13-Dec-12,CONTRACTED OUT OFFICE SERVICES,F&C OPS FIN DM ENFORCEMENT,DRYDENS LTD,2027765469,"23,816.00"
Department for Work and Pensions,Corporate,11-Dec-12,TREDDS APPS DEV FIXED PRICE CONTRACTS,OPS BEN BD DIRECTORS OFFICE,HP ENTERPRISE SERVICES UK LTD,2027699104,"23,807.00"
Department for Work and Pensions,Housing Benefits,14-Dec-12,HOUSING BENEFIT ADMINISTRATION,HB ENGLAND,SOUTH BUCKS DISTRICT COUNCIL,2027768577,"23,756.00"
Department for Work and Pensions,Child Maintenance and Enforcement Commission,31-Dec-12,TREDDS APPS DEV MANDAYS,FUTURE SYSTEM IT RUNNING COSTS - DIRECT,HP ENTERPRISE SERVICES UK LTD,1000164507,"23,719.00"
Department for Work and Pensions,Employment Programmes,21-Dec-12,WP JSA 25+ ATTACHMENT FEE,WWEG EP NORTH EAST AVANTA ENTERPRISE,AVANTA ENTERPRISE LTD,2027858684,"23,700.00"
Department for Work and Pensions,Employment Programmes,21-Dec-12,WP JSA 25+ SUSTAINMENT OUTCOME PAYMENT,WWEG EP SOUTH EAST SURR SUSSX AND KENT G4S,G4S REGIONAL MANAGEMENT UK & I LTD,2027860697,"23,650.00"
Department for Work and Pensions,Employment Programmes,21-Dec-12,WP JSA 18-24 JOB SUSTAINMENT OUTCOME PAYMENT,WWEG EP SCOTLAND INGEUS UK,INGEUS UK LTD,2027861995,"23,460.00"
Department for Work and Pensions,Corporate,21-Dec-12,PRIME BUSINESS RATES,F&C CD MANCHESTER ANCHORAGE HOUSE,TELEREAL TRILLIUM,2027859523,"23,358.00"
Department for Work and Pensions,Employment Programmes,21-Dec-12,WP JSA CLAIMING 22 OF 24MTHS SUSTAINMENT OUTCOME PAYMENT,WWEG EP NORTH WEST GM CHES AND WARR SEETEC,SEETEC BUSINESS TECHNOLOGY CENTRE LTD,2027859759,"23,250.00"
Department for Work and Pensions,Child Maintenance and Enforcement Commission,11-Dec-12,TREDDS APPS DEV MANDAYS,FUTURE SYSTEM IT RUNNING COSTS - DIRECT,HP ENTERPRISE SERVICES UK LTD,1000162905,"23,239.00"
Department for Work and Pensions,Corporate,17-Dec-12,POSTAGE,OPS PEN PS CAU,ROYAL MAIL GROUP PLC,2027775228,"23,190.00"
Department for Work and Pensions,Employment Programmes,03-Dec-12,WP JSA 25+ JOB OUTCOME PAYMENTWP JSA 25+ JOB OUTCOME PAYMENT,WWEG EP SOUTH EAST TV HANTS AND IOW A4E,A4E LTD,2027609221,"23,184.00"
Department for Work and Pensions,Employment Programmes,03-Dec-12,WP JSA 25+ JOB OUTCOME PAYMENTWP JSA 25+ JOB OUTCOME PAYMENT,WWEG EP NORTH WEST MERS HAL CUMB AND LANCS A4E,A4E LTD,2027609221,"23,184.00"
Department for Work and Pensions,Corporate,17-Dec-12,POSTAGE,OPS BEN DD BOOTLE DBC NEW CLAIMS,ROYAL MAIL GROUP PLC,2027775228,"23,081.00"
Department for Work and Pensions,Housing Benefits,14-Dec-12,HOUSING BENEFIT ADMINISTRATION,HB ENGLAND,PURBECK DISTRICT COUNCIL,2027768736,"23,016.00"
Department for Work and Pensions,Employment Programmes,10-Dec-12,WP JSA CLAIMING 22 OF 24MTHS SUSTAINMENT OUTCOME PAYMENT,WWEG EP EAST MIDLANDS INGEUS UK,INGEUS UK LTD,2027691024,"23,000.00"
Department for Work and Pensions,Employment Programmes,21-Dec-12,WP JSA CLAIMING 22 OF 24MTHS SUSTAINMENT OUTCOME PAYMENT,WWEG EP WALES WORKING LINKS WALES,WORKING LINKS,2027862060,"23,000.00"
Department for Work and Pensions,Employment Programmes,21-Dec-12,WP JSA 25+ ATTACHMENT FEE,WWEG EP NORTH EAST INGEUS UK,INGEUS UK LTD,2027861995,"22,900.00"
Department for Work and Pensions,Employment Programmes,06-Dec-12,WP JSA 25+ JOB OUTCOME PAYMENTWP JSA 25+ JOB OUTCOME PAYMENT,WWEG EP WEST LONDON MAXIMUS EMPLOYMENT UK,MAXIMUS EMPLOYMENT UK LTD,2027682221,"22,800.00"
Department for Work and Pensions,Employment Programmes,17-Dec-12,WP JSA 25+ JOB OUTCOME PAYMENTWP JSA 25+ JOB OUTCOME PAYMENT,WWEG EP EAST OF ENGLAND INGEUS UK,INGEUS UK LTD,2027775659,"22,800.00"
Department for Work and Pensions,Employment Programmes,21-Dec-12,WP JSA 25+ JOB OUTCOME PAYMENTWP JSA 25+ JOB OUTCOME PAYMENT,WWEG EP NORTH WEST GM CHES AND WARR G4S,G4S REGIONAL MANAGEMENT UK & I LTD,2027860697,"22,800.00"
Department for Work and Pensions,Employment Programmes,07-Dec-12,WP JSA 25+ JOB OUTCOME PAYMENTWP JSA 25+ JOB OUTCOME PAYMENT,WWEG EP SCOTLAND WORKING LINKS,WORKING LINKS,2027686792,"22,800.00"
Department for Work and Pensions,Employment Programmes,21-Dec-12,WP JSA 25+ ATTACHMENT FEE,WWEG EP EAST MIDLANDS INGEUS UK,INGEUS UK LTD,2027861995,"22,600.00"
Department for Work and Pensions,Employment Programmes,31-Dec-12,WP JSA 25+ JOB OUTCOME PAYMENTWP JSA 25+ JOB OUTCOME PAYMENT,WWEG EP SCOTLAND INGEUS UK,INGEUS UK LTD,2027937131,"22,575.00"
Department for Work and Pensions,Employment Programmes,21-Dec-12,WP JSA 25+ SUSTAINMENT OUTCOME PAYMENT,WWEG EP S WEST GLOS WILTS AND W OF E REHAB JOB FIT,REHAB JOBFIT,2027860046,"22,575.00"
Department for Work and Pensions,Housing Benefits,14-Dec-12,HOUSING BENEFIT ADMINISTRATION,HB ENGLAND,OADBY & WIGSTON BOROUGH COUNCIL,2027768897,"22,509.00"
Department for Work and Pensions,Employment Programmes,21-Dec-12,WP JSA CLAIMING 22 OF 24MTHS JOB OUTCOME PAYMENT,WWEG EP W MIDLANDS BIRM SOL BC FOURSTAR EMP AND SKILLS,EOS WORKS LTD,2027861772,"22,440.00"
Department for Work and Pensions,Employment Programmes,14-Dec-12,WP JSA 25+ SUSTAINMENT OUTCOME PAYMENT,WWEG EP WEST LONDON REED IN PARTNERSHIP,REED IN PARTNERSHIP LTD,2027771913,"22,360.00"
Department for Work and Pensions,Corporate,17-Dec-12,POSTAGE,OPS BEN BD WL WREXHAM,ROYAL MAIL GROUP PLC,2027775228,"22,251.00"
Department for Work and Pensions,Employment Programmes,18-Dec-12,WP JSA 25+ JOB OUTCOME PAYMENTWP JSA 25+ JOB OUTCOME PAYMENT,WWEG EP SOUTH EAST TV HANTS AND IOW MAXIMUS EMPLOYMENT,MAXIMUS EMPLOYMENT UK LTD,2027784615,"22,200.00"
Department for Work and Pensions,Employment Programmes,06-Dec-12,WP JSA CLAIMING 22 OF 24MTHS SUSTAINMENT OUTCOME PAYMENT,WWEG EP SOUTH EAST SURR SUSSX AND KENT G4S,G4S REGIONAL MANAGEMENT UK & I LTD,2027682006,"22,000.00"
Department for Work and Pensions,Employment Programmes,17-Dec-12,ACCESS TO WORK - MISC EXPENSES,WWEG EP LONDON REGION,ROYAL BRITISH LEGION INDUSTRIES,2027775933,"21,978.00"
Department for Work and Pensions,Employment Programmes,10-Dec-12,WP JSA 25+ SUSTAINMENT OUTCOME PAYMENT,WWEG EP NORTH EAST INGEUS UK,INGEUS UK LTD,2027691024,"21,930.00"
Department for Work and Pensions,Corporate,14-Dec-12,REPROGRAPHICS,OPS BEN BD SC COATBRIDGE,XEROX UK LTD,2027772208,"21,801.00"
Department for Work and Pensions,Corporate,21-Dec-12,PRIME FACILITY PRICE,F&C CD PORTH OLDWAY HOUSE,TELEREAL TRILLIUM,2027859524,"21,772.00"
Department for Work and Pensions,Corporate,21-Dec-12,PRIME BUSINESS RATES,F&C CD SHEFFIELD PORTERBROOK HOUSE,TELEREAL TRILLIUM,2027859523,"21,751.00"
Department for Work and Pensions,Employment Programmes,17-Dec-12,WP JSA 25+ SUSTAINMENT OUTCOME PAYMENT,WWEG EP SOUTH EAST TV HANTS AND IOW MAXIMUS EMPLOYMENT,MAXIMUS EMPLOYMENT UK LTD,2027775841,"21,715.00"
Department for Work and Pensions,Employment Programmes,21-Dec-12,WP JSA 25+ SUSTAINMENT OUTCOME PAYMENT,WWEG EP W MIDLANDS COV WARW STAFFS AND MARCHES SERCO,SERCO LTD,2027859167,"21,715.00"
Department for Work and Pensions,Employment Programmes,21-Dec-12,WP JSA 18-24 JOB OUTCOME PAYMENT,WWEG EP NORTH WEST MERS HAL CUMB AND LANCS INGEUS UK,INGEUS UK LTD,2027861995,"21,698.00"
Department for Work and Pensions,Corporate,17-Dec-12,POSTAGE,OPS BEN DD WALES DBC NEW CLAIMS,ROYAL MAIL GROUP PLC,2027775228,"21,695.00"
Department for Work and Pensions,Employment Programmes,06-Dec-12,WP JSA 25+ JOB OUTCOME PAYMENTWP JSA 25+ JOB OUTCOME PAYMENT,WWEG EP EAST LONDON A4E,A4E LTD,2027682695,"21,660.00"
Department for Work and Pensions,Employment Programmes,21-Dec-12,WP JSA CLAIMING 22 OF 24MTHS JOB OUTCOME PAYMENT,WWEG EP EAST LONDON A4E,A4E LTD,2027862235,"21,660.00"
Department for Work and Pensions,Corporate,21-Dec-12,PRIME BUSINESS RATES,F&C CD MANCHESTER HEYWOOD STORES,TELEREAL TRILLIUM,2027859523,"21,641.00"
Department for Work and Pensions,Employment Programmes,21-Dec-12,WP JSA 18-24 JOB OUTCOME PAYMENT,WWEG EP SOUTH EAST SURR SUSSX AND KENT G4S,G4S REGIONAL MANAGEMENT UK & I LTD,2027860697,"21,600.00"
Department for Work and Pensions,Employment Programmes,06-Dec-12,WP JSA 25+ JOB OUTCOME PAYMENTWP JSA 25+ JOB OUTCOME PAYMENT,WWEG EP SCOTLAND WORKING LINKS,WORKING LINKS,2027682684,"21,600.00"
Department for Work and Pensions,Employment Programmes,12-Dec-12,WP JSA 25+ SUSTAINMENT OUTCOME PAYMENT,WWEG EP NORTH EAST AVANTA ENTERPRISE,AVANTA ENTERPRISE LTD,2027760484,"21,500.00"
Department for Work and Pensions,Employment Programmes,06-Dec-12,WP JSA 25+ JOB OUTCOME PAYMENTWP JSA 25+ JOB OUTCOME PAYMENT,WWEG EP SCOTLAND INGEUS UK,INGEUS UK LTD,2027682689,"21,500.00"
Department for Work and Pensions,Employment Programmes,21-Dec-12,WP JSA CLAIMING 22 OF 24MTHS SUSTAINMENT OUTCOME PAYMENT,WWEG EP SOUTH EAST SURR SUSSX AND KENT AVANTA ENTERPRISE,AVANTA ENTERPRISE LTD,2027858684,"21,500.00"
Department for Work and Pensions,Corporate,14-Dec-12,Pay on Acct & AUC - Intangible Additions - VAT recoverable Cost,CHG UC PROJECT LEDGER CC,CAPITA RESOURCING LTD,2027772040,"21,447.00"
Department for Work and Pensions,Corporate,21-Dec-12,NEW ENTERPRISE ALLOWANCE MENTOR MATCHING,OPS WDC WSD CE LEICESTERSHIRE AND NORTHAMPTONSHIRE DO,PINNACLE PEOPLE,2027862114,"21,362.00"
Department for Work and Pensions,Corporate,10-Dec-12,NEW ENTERPRISE ALLOWANCE MENTOR MATCHING,OPS WDC WSD CE LEICESTERSHIRE AND NORTHAMPTONSHIRE DO,PINNACLE PEOPLE,2027690483,"21,362.00"
Department for Work and Pensions,Corporate,12-Dec-12,SOC SEC RESEARCH BUDGET,PSG ANALYSIS CAD,TNS BMRB,2027760883,"21,310.00"
Department for Work and Pensions,Employment Programmes,21-Dec-12,WP JSA 25+ ATTACHMENT FEE,WWEG EP WEST YORKSHIRE INGEUS UK,INGEUS UK LTD,2027861995,"21,300.00"
Department for Work and Pensions,Employment Programmes,14-Dec-12,WP JSA 25+ SUSTAINMENT OUTCOME PAYMENT,WWEG EP NORTH EAST INGEUS UK,INGEUS UK LTD,2027773083,"21,285.00"
Department for Work and Pensions,Employment Programmes,21-Dec-12,WP JSA 25+ SUSTAINMENT OUTCOME PAYMENT,WWEG EP WEST LONDON MAXIMUS EMPLOYMENT UK,MAXIMUS EMPLOYMENT UK LTD,2027861771,"21,285.00"
Department for Work and Pensions,Housing Benefits,14-Dec-12,HOUSING BENEFIT ADMINISTRATION,HB ENGLAND,MELTON BOROUGH COUNCIL,2027768899,"21,251.00"
Department for Work and Pensions,Employment Programmes,21-Dec-12,WP JSA 25+ SUSTAINMENT OUTCOME PAYMENT,WWEG EP WEST LONDON REED IN PARTNERSHIP,REED IN PARTNERSHIP LTD,2027859582,"21,070.00"
Department for Work and Pensions,Corporate,04-Dec-12,VALUATION OFFICE,OPS BEN BD NE SPECIAL OPERATIONS,VALUATION OFFICE AGENCY,2027616586,"21,020.00"
Department for Work and Pensions,Employment Programmes,27-Dec-12,WP JSA 25+ JOB OUTCOME PAYMENTWP JSA 25+ JOB OUTCOME PAYMENT,WWEG EP NORTH WEST MERS HAL CUMB AND LANCS A4E,A4E LTD,2027928844,"20,976.00"
Department for Work and Pensions,Employment Programmes,21-Dec-12,WP JSA CLAIMING 22 OF 24MTHS JOB OUTCOME PAYMENT,WWEG EP EAST MIDLANDS A4E,A4E LTD,2027862235,"20,976.00"
Department for Work and Pensions,Corporate,04-Dec-12,TREDDS APPS DEV MANDAYS,OPS OPE IT WINTER FUEL,HP ENTERPRISE SERVICES UK LTD,2027617171,"20,918.00"
Department for Work and Pensions,Employment Programmes,21-Dec-12,WP JSA 18-24 JOB SUSTAINMENT OUTCOME PAYMENT,WWEG EP EAST OF ENGLAND INGEUS UK,INGEUS UK LTD,2027861995,"20,740.00"
Department for Work and Pensions,Employment Programmes,17-Dec-12,WP JSA 18-24 JOB SUSTAINMENT OUTCOME PAYMENT,WWEG EP NORTH WEST GM CHES AND WARR SEETEC,SEETEC BUSINESS TECHNOLOGY CENTRE LTD,2027775125,"20,740.00"
Department for Work and Pensions,Employment Programmes,21-Dec-12,WP JSA 18-24 JOB OUTCOME PAYMENT,WWEG EP NORTH WEST GM CHES AND WARR SEETEC,SEETEC BUSINESS TECHNOLOGY CENTRE LTD,2027859759,"20,700.00"
Department for Work and Pensions,Employment Programmes,21-Dec-12,WP JSA CLAIMING 22 OF 24MTHS JOB OUTCOME PAYMENT,WWEG EP EAST LONDON CAREERS DEVELOPMENT GROUP,CAREERS DEVELOPMENT GROUP,2027859785,"20,520.00"
Department for Work and Pensions,Employment Programmes,21-Dec-12,WP JSA 25+ JOB OUTCOME PAYMENTWP JSA 25+ JOB OUTCOME PAYMENT,WWEG EP W MIDLANDS COV WARW STAFFS AND MARCHES ESG,ESG HOLDINGS LIMITED,2027861734,"20,520.00"
Department for Work and Pensions,Employment Programmes,21-Dec-12,WP JSA CLAIMING 22 OF 24MTHS SUSTAINMENT OUTCOME PAYMENT,WWEG EP W MIDLANDS COV WARW STAFFS AND MARCHES ESG,ESG HOLDINGS LIMITED,2027861734,"20,500.00"
Department for Work and Pensions,Corporate,06-Dec-12,STAFF TRAINING VAT RECOVERABLE,HR EDT,FLETCHER CONSULTANCY,2027682451,"20,490.00"
Department for Work and Pensions,Corporate,03-Dec-12,PROFESSIONAL ADVICE & OPINION VAT RECOVERABLE,OPS NET CC DERBY CONTACT CENTRE,THE BIG WORD INTERPRETING SERVICES LTD,2027608566,"20,483.00"
Department for Work and Pensions,Corporate,24-Dec-12,STAFF TRAINING VAT RECOVERABLE,CIO PROFESSIONAL CAPABILITY TRAINING,QA LTD,2027922106,"20,474.00"
Department for Work and Pensions,Employment Programmes,19-Dec-12,WP JSA 25+ JOB OUTCOME PAYMENTWP JSA 25+ JOB OUTCOME PAYMENT,WWEG EP SCOTLAND INGEUS UK,INGEUS UK LTD,2027786498,"20,425.00"
Department for Work and Pensions,Employment Programmes,19-Dec-12,WP JSA 25+ JOB OUTCOME PAYMENTWP JSA 25+ JOB OUTCOME PAYMENT,WWEG EP WEST YORKSHIRE INGEUS UK,INGEUS UK LTD,2027786498,"20,400.00"
Department for Work and Pensions,Employment Programmes,05-Dec-12,WP JSA 25+ JOB OUTCOME PAYMENTWP JSA 25+ JOB OUTCOME PAYMENT,WWEG EP EAST MIDLANDS INGEUS UK,INGEUS UK LTD,2027675525,"20,400.00"
Department for Work and Pensions,Employment Programmes,21-Dec-12,WP JSA 25+ JOB OUTCOME PAYMENTWP JSA 25+ JOB OUTCOME PAYMENT,WWEG EP WEST YORKSHIRE BEST LTD,INTERSERVE WORKING FUTURES,2027860132,"20,400.00"
Department for Work and Pensions,Employment Programmes,03-Dec-12,WP JSA 25+ JOB OUTCOME PAYMENTWP JSA 25+ JOB OUTCOME PAYMENT,WWEG EP EAST MIDLANDS INGEUS UK,INGEUS UK LTD,2027608833,"20,400.00"
Department for Work and Pensions,Employment Programmes,04-Dec-12,WP JSA 25+ JOB OUTCOME PAYMENTWP JSA 25+ JOB OUTCOME PAYMENT,WWEG EP WEST YORKSHIRE INGEUS UK,INGEUS UK LTD,2027617593,"20,400.00"
Department for Work and Pensions,Employment Programmes,31-Dec-12,WP JSA 25+ JOB OUTCOME PAYMENTWP JSA 25+ JOB OUTCOME PAYMENT,WWEG EP WEST LONDON MAXIMUS EMPLOYMENT UK,MAXIMUS EMPLOYMENT UK LTD,2027937028,"20,400.00"
Department for Work and Pensions,Employment Programmes,06-Dec-12,WP JSA 25+ JOB OUTCOME PAYMENTWP JSA 25+ JOB OUTCOME PAYMENT,WWEG EP W MIDLANDS COV WARW STAFFS AND MARCHES SERCO,SERCO LTD,2027681809,"20,400.00"
Department for Work and Pensions,Corporate,21-Dec-12,PRIME FACILITY PRICE,F&C CD BIRMINGHAM KENSINGTON HOUSE,TELEREAL TRILLIUM,2027859524,"20,387.00"
Department for Work and Pensions,Employment Programmes,21-Dec-12,WP JSA 25+ ATTACHMENT FEE,WWEG EP EAST LONDON CAREERS DEVELOPMENT GROUP,CAREERS DEVELOPMENT GROUP,2027859785,"20,300.00"
Department for Work and Pensions,Employment Programmes,21-Dec-12,WP JSA 25+ JOB OUTCOME PAYMENTWP JSA 25+ JOB OUTCOME PAYMENT,WWEG EP W MIDLANDS BIRM SOL BC PERTEMPS,PERTEMPS,2027858851,"20,292.00"
Department for Work and Pensions,Corporate,31-Dec-12,PRINTING/BINDING,CHG CONDITIONALITY & SANCTIONS CHARGES,XEROX UK LTD 3W,2027937231,"20,167.00"
Department for Work and Pensions,Housing Benefits,14-Dec-12,HOUSING BENEFIT ADMINISTRATION,HB ENGLAND,EDEN DISTRICT COUNCIL,2027768811,"20,150.00"
Department for Work and Pensions,Corporate,17-Dec-12,POSTAGE,OPS BEN DD MIDLANDS DBC NEW CLAIMS,ROYAL MAIL GROUP PLC,2027775228,"20,124.00"
Department for Work and Pensions,SHARED SERVICES,04-Dec-12,CONTRACTED OUT OFFICE SERVICES,OFFICE SERVICES,BALFOUR BEATTY WORKPLACE LTD,2027616394,"20,056.00"
Department for Work and Pensions,Housing Benefits,14-Dec-12,HOUSING BENEFIT ADMINISTRATION,HB SCOTLAND,COMHAIRLE NAN EILEAN SIAR COUNCIL,2027768838,"19,981.00"
Department for Work and Pensions,Corporate,10-Dec-12,TREDDS APPS DEV MANDAYS,CHG CP BENEFIT ENQUIRY SERVICE ONLINE,HP ENTERPRISE SERVICES UK LTD,2027692728,"19,922.00"
Department for Work and Pensions,Employment Programmes,21-Dec-12,WP JSA CLAIMING 22 OF 24MTHS SUSTAINMENT OUTCOME PAYMENT,WWEG EP NORTH EAST AVANTA ENTERPRISE,AVANTA ENTERPRISE LTD,2027858684,"19,750.00"
Department for Work and Pensions,Corporate,10-Dec-12,TREDDS APPS DEV FIXED PRICE CONTRACTS,CHG WORK PROGRAMME,HP ENTERPRISE SERVICES UK LTD,2027692728,"19,722.00"
Department for Work and Pensions,Corporate,31-Dec-12,PRINTING/BINDING,CHG TRANSFORMING LABOUR MARKET SERVICES,XEROX UK LTD 3W,2027937231,"19,625.00"
Department for Work and Pensions,Employment Programmes,04-Dec-12,WP JSA 25+ SUSTAINMENT OUTCOME PAYMENT,WWEG EP NORTH EAST AVANTA ENTERPRISE,AVANTA ENTERPRISE LTD,2027616185,"19,565.00"
Department for Work and Pensions,Employment Programmes,21-Dec-12,WP JSA 18-24 JOB SUSTAINMENT OUTCOME PAYMENT,WWEG EP EAST MIDLANDS INGEUS UK,INGEUS UK LTD,2027861995,"19,550.00"
Department for Work and Pensions,Corporate,14-Dec-12,PRIME VARIABLE CHARGE,F&C CD NORCROSS,TELEREAL TRILLIUM,2027772733,"19,535.00"
Department for Work and Pensions,Employment Programmes,06-Dec-12,WP JSA 18-24 JOB OUTCOME PAYMENT,WWEG EP S WEST DEV COR DOR AND SOM PROSPECTS SERVICES,PROSPECTS SERVICES LTD,2027682539,"19,440.00"
Department for Work and Pensions,Employment Programmes,06-Dec-12,WP JSA 25+ JOB OUTCOME PAYMENTWP JSA 25+ JOB OUTCOME PAYMENT,WWEG EP S WEST DEV COR DOR AND SOM PROSPECTS SERVICES,PROSPECTS SERVICES LTD,2027682539,"19,440.00"
Department for Work and Pensions,Housing Benefits,14-Dec-12,HOUSING BENEFIT ADMINISTRATION,HB ENGLAND,RIBBLE VALLEY BOROUGH COUNCIL,2027768922,"19,418.00"
Department for Work and Pensions,Employment Programmes,05-Dec-12,WP JSA 25+ JOB OUTCOME PAYMENTWP JSA 25+ JOB OUTCOME PAYMENT,WWEG EP NORTH WEST MERS HAL CUMB AND LANCS INGEUS UK,INGEUS UK LTD,2027675525,"19,414.00"
Department for Work and Pensions,Corporate,06-Dec-12,RAPID RESPONSE - PROVIDER TRAINING,OPS WDC WSD NE N AND E YORKS AND HUMBER DISTRICT OFFICE,PERTEMPS PEOPLE DEVELOPMENT GROUP,2027681690,"19,405.00"
Department for Work and Pensions,Corporate,18-Dec-12,NEW ENTERPRISE ALLOWANCE MENTOR MATCHING,OPS WDC WSD LN ESSEX DISTRICT OFFICE,IXION HOLDINGS LTD,2027784225,"19,400.00"
Department for Work and Pensions,Employment Programmes,17-Dec-12,WP JSA 25+ JOB OUTCOME PAYMENTWP JSA 25+ JOB OUTCOME PAYMENT,WWEG EP EAST LONDON CAREERS DEVELOPMENT GROUP,CAREERS DEVELOPMENT GROUP,2027775427,"19,380.00"
Department for Work and Pensions,Employment Programmes,06-Dec-12,WP JSA 25+ JOB OUTCOME PAYMENTWP JSA 25+ JOB OUTCOME PAYMENT,WWEG EP W MIDLANDS BIRM SOL BC FOURSTAR EMP AND SKILLS,EOS WORKS LTD,2027682131,"19,380.00"
Department for Work and Pensions,Employment Programmes,21-Dec-12,WP JSA 25+ JOB OUTCOME PAYMENTWP JSA 25+ JOB OUTCOME PAYMENT,WWEG EP W MIDLANDS BIRM SOL BC FOURSTAR EMP AND SKILLS,EOS WORKS LTD,2027861772,"19,380.00"
Department for Work and Pensions,Employment Programmes,05-Dec-12,WP JSA 18-24 JOB OUTCOME PAYMENT,WWEG EP W MIDLANDS BIRM SOL BC FOURSTAR EMP AND SKILLS,EOS WORKS LTD,2027675819,"19,380.00"
Department for Work and Pensions,Employment Programmes,03-Dec-12,WP JSA 25+ JOB OUTCOME PAYMENTWP JSA 25+ JOB OUTCOME PAYMENT,WWEG EP EAST LONDON CAREERS DEVELOPMENT GROUP,CAREERS DEVELOPMENT GROUP,2027608498,"19,380.00"
Department for Work and Pensions,Employment Programmes,10-Dec-12,WP JSA 18-24 JOB SUSTAINMENT OUTCOME PAYMENT,WWEG EP SCOTLAND INGEUS UK,INGEUS UK LTD,2027691024,"19,380.00"
Department for Work and Pensions,SHARED SERVICES,04-Dec-12,NON-TREDDS IS IT APPS DEV MANDAY,IT COSTS,FUJITSU SERVICES LTD,2027616282,"19,366.00"
Department for Work and Pensions,Employment Programmes,05-Dec-12,WP JSA 25+ JOB OUTCOME PAYMENTWP JSA 25+ JOB OUTCOME PAYMENT,WWEG EP SCOTLAND INGEUS UK,INGEUS UK LTD,2027675525,"19,350.00"
Department for Work and Pensions,Employment Programmes,18-Dec-12,WP JSA 25+ SUSTAINMENT OUTCOME PAYMENT,WWEG EP SCOTLAND WORKING LINKS,WORKING LINKS,2027784568,"19,350.00"
Department for Work and Pensions,Employment Programmes,13-Dec-12,WP JSA 25+ SUSTAINMENT OUTCOME PAYMENT,WWEG EP EAST OF ENGLAND SEETEC,SEETEC BUSINESS TECHNOLOGY CENTRE LTD,2027765156,"19,350.00"
Department for Work and Pensions,Child Maintenance and Enforcement Commission,31-Dec-12,OVERTIME,DEBT ENF AREA MANAGEMENT OFFICE,DSD GROUP ACCOUNT,1001169,"19,347.00"
Department for Work and Pensions,Corporate,17-Dec-12,NETWORK CONTACT CENTRE SERVICES,CIO CSD ITLR NETWORK,BT GLOBAL SERVICES,2027775229,"19,301.00"
Department for Work and Pensions,Employment Programmes,21-Dec-12,WP JSA CLAIMING 22 OF 24MTHS SUSTAINMENT OUTCOME PAYMENT,WWEG EP W MIDLANDS BIRM SOL BC FOURSTAR EMP AND SKILLS,EOS WORKS LTD,2027861772,"19,250.00"
Department for Work and Pensions,Employment Programmes,06-Dec-12,WP JSA CLAIMING 22 OF 24MTHS SUSTAINMENT OUTCOME PAYMENT,WWEG EP EAST LONDON CAREERS DEVELOPMENT GROUP,CAREERS DEVELOPMENT GROUP,2027681702,"19,250.00"
Department for Work and Pensions,Employment Programmes,04-Dec-12,WP JSA 25+ JOB OUTCOME PAYMENTWP JSA 25+ JOB OUTCOME PAYMENT,WWEG EP EAST OF ENGLAND INGEUS UK,INGEUS UK LTD,2027617593,"19,200.00"
Department for Work and Pensions,Employment Programmes,17-Dec-12,WP JSA 18-24 JOB OUTCOME PAYMENT,WWEG EP EAST MIDLANDS INGEUS UK,INGEUS UK LTD,2027775659,"19,200.00"
Department for Work and Pensions,Employment Programmes,06-Dec-12,WP JSA 25+ JOB OUTCOME PAYMENTWP JSA 25+ JOB OUTCOME PAYMENT,WWEG EP NORTH WEST GM CHES AND WARR G4S,G4S REGIONAL MANAGEMENT UK & I LTD,2027682006,"19,200.00"
Department for Work and Pensions,Employment Programmes,06-Dec-12,WP JSA 25+ ATTACHMENT FEE,WWEG EP WALES WORKING LINKS WALES,WORKING LINKS,2027682684,"19,200.00"
Department for Work and Pensions,Employment Programmes,11-Dec-12,WP JSA 25+ JOB OUTCOME PAYMENTWP JSA 25+ JOB OUTCOME PAYMENT,WWEG EP SCOTLAND WORKING LINKS,WORKING LINKS,2027699443,"19,200.00"
Department for Work and Pensions,Employment Programmes,03-Dec-12,SERVICE FEE,WWEG EP CORE MWA CPA SCOTLAND,JHP GROUP LTD,2027609312,"19,181.00"
Department for Work and Pensions,Corporate,21-Dec-12,PRIME BUSINESS RATES,F&C CD GLASGOW WEST REGENT HOUSE,TELEREAL TRILLIUM,2027859523,"19,144.00"
Department for Work and Pensions,Employment Programmes,12-Dec-12,WP JSA 25+ SUSTAINMENT OUTCOME PAYMENT,WWEG EP NORTH WEST GM CHES AND WARR SEETEC,SEETEC BUSINESS TECHNOLOGY CENTRE LTD,2027760415,"19,135.00"
Department for Work and Pensions,Employment Programmes,27-Dec-12,WP JSA 25+ SUSTAINMENT OUTCOME PAYMENT,WWEG EP S WEST DEV COR DOR AND SOM WORKING LINKS,WORKING LINKS,2027928854,"19,135.00"
Department for Work and Pensions,Corporate,12-Dec-12,TREDDS APPS DEV MANDAYS,OPS OPE IT REL - PSCS,HP ENTERPRISE SERVICES UK LTD,2027760520,"19,020.00"
Department for Work and Pensions,Employment Programmes,27-Dec-12,WP JSA CLAIMING 22 OF 24MTHS SUSTAINMENT OUTCOME PAYMENT,WWEG EP NORTH WEST GM CHES AND WARR SEETEC,SEETEC BUSINESS TECHNOLOGY CENTRE LTD,2027928286,"19,000.00"
Department for Work and Pensions,Corporate,21-Dec-12,PRIME FACILITY PRICE,F&C CD LAUNCESTON ST JOHNS WESTERN ROAD,TELEREAL TRILLIUM,2027859524,"18,949.00"
Department for Work and Pensions,Employment Programmes,21-Dec-12,WP JSA 25+ ATTACHMENT FEE,WWEG EP NORTH WEST MERS HAL CUMB AND LANCS A4E,A4E LTD,2027862235,"18,900.00"
Department for Work and Pensions,Employment Programmes,04-Dec-12,WP JSA 25+ JOB OUTCOME PAYMENTWP JSA 25+ JOB OUTCOME PAYMENT,WWEG EP NORTH WEST GM CHES AND WARR SEETEC,SEETEC BUSINESS TECHNOLOGY CENTRE LTD,2027616497,"18,900.00"
Department for Work and Pensions,Employment Programmes,31-Dec-12,WP JSA 25+ JOB OUTCOME PAYMENTWP JSA 25+ JOB OUTCOME PAYMENT,WWEG EP SOUTH EAST TV HANTS AND IOW MAXIMUS EMPLOYMENT,MAXIMUS EMPLOYMENT UK LTD,2027937028,"18,870.00"
Department for Work and Pensions,Corporate,04-Dec-12,TREDDS IS IT CONSULTANCY NON ADVICE,CHG TRANSFORMING LABOUR MARKET SERVICES,HP ENTERPRISE SERVICES UK LTD,2027617171,"18,824.00"
Department for Work and Pensions,Corporate,21-Dec-12,Pay on Acct & AUC - Intangible Additions - VAT recoverable Cost,UC PROJECT CENTRE OF EXCELLENCE,CAPITA RESOURCING LTD,2027858886,"18,790.00"
Department for Work and Pensions,Employment Programmes,27-Dec-12,WP JSA 25+ JOB OUTCOME PAYMENTWP JSA 25+ JOB OUTCOME PAYMENT,WWEG EP EAST MIDLANDS A4E,A4E LTD,2027928844,"18,768.00"
Department for Work and Pensions,Corporate,17-Dec-12,POSTAGE,OPS BEN BD SF MILTON KEYNES,ROYAL MAIL GROUP PLC,2027775228,"18,763.00"
Department for Work and Pensions,Employment Programmes,21-Dec-12,WP JSA CLAIMING 22 OF 24MTHS SUSTAINMENT OUTCOME PAYMENT,WWEG EP EAST LONDON SEETEC,SEETEC BUSINESS TECHNOLOGY CENTRE LTD,2027859759,"18,750.00"
Department for Work and Pensions,Employment Programmes,31-Dec-12,WP JSA 25+ SUSTAINMENT OUTCOME PAYMENT,WWEG EP SOUTH EAST SURR SUSSX AND KENT G4S,G4S REGIONAL MANAGEMENT UK & I LTD,2027936642,"18,705.00"
Department for Work and Pensions,Corporate,17-Dec-12,POSTAGE,OPS OPE NINO GLASGOW NDC,ROYAL MAIL GROUP PLC,2027775228,"18,622.00"
Department for Work and Pensions,Employment Programmes,21-Dec-12,WP JSA 25+ ATTACHMENT FEE,WWEG EP SOUTH EAST TV HANTS AND IOW MAXIMUS EMPLOYMENT,MAXIMUS EMPLOYMENT UK LTD,2027861771,"18,600.00"
Department for Work and Pensions,Housing Benefits,14-Dec-12,HOUSING BENEFIT ADMINISTRATION,HB ENGLAND,RICHMONDSHIRE DISTRICT COUNCIL,2027768740,"18,599.00"
Department for Work and Pensions,Employment Programmes,21-Dec-12,WP JSA CLAIMING 22 OF 24MTHS SUSTAINMENT OUTCOME PAYMENT,WWEG EP EAST MIDLANDS A4E,A4E LTD,2027862235,"18,500.00"
Department for Work and Pensions,Corporate,19-Dec-12,NEW ENTERPRISE ALLOWANCE MENTOR MATCHING,OPS WDC WSD SC WEST OF SCOTLAND DO,A4ENTERPRISE LTD,2027787639,"18,496.00"
Department for Work and Pensions,Employment Programmes,31-Dec-12,WP JSA 25+ SUSTAINMENT OUTCOME PAYMENT,WWEG EP NORTH WEST GM CHES AND WARR G4S,G4S REGIONAL MANAGEMENT UK & I LTD,2027936642,"18,490.00"
Department for Work and Pensions,Employment Programmes,18-Dec-12,WP JSA 25+ SUSTAINMENT OUTCOME PAYMENT,WWEG EP SOUTH EAST SURR SUSSX AND KENT AVANTA ENTERPRISE,AVANTA ENTERPRISE LTD,2027782622,"18,490.00"
Department for Work and Pensions,Employment Programmes,07-Dec-12,WP JSA 25+ SUSTAINMENT OUTCOME PAYMENT,WWEG EP S WEST GLOS WILTS AND W OF E REHAB JOB FIT,REHAB JOBFIT,2027686825,"18,490.00"
Department for Work and Pensions,Employment Programmes,21-Dec-12,WP JSA 25+ SUSTAINMENT OUTCOME PAYMENT,WWEG EP S WEST DEV COR DOR AND SOM WORKING LINKS,WORKING LINKS,2027862060,"18,490.00"
Department for Work and Pensions,Employment Programmes,11-Dec-12,SERVICE FEE,WWEG EP CORE MWA CPA LONDON,SEETEC BUSINESS TECHNOLOGY CENTRE LTD,2027698810,"18,450.00"
Department for Work and Pensions,Employment Programmes,21-Dec-12,WP JSA 25+ ATTACHMENT FEE,WWEG EP WALES WORKING LINKS WALES,WORKING LINKS,2027862060,"18,400.00"
Department for Work and Pensions,Employment Programmes,21-Dec-12,WP JSA 18-24 JOB OUTCOME PAYMENT,WWEG EP W MIDLANDS BIRM SOL BC FOURSTAR EMP AND SKILLS,EOS WORKS LTD,2027861772,"18,360.00"
Department for Work and Pensions,Employment Programmes,14-Dec-12,WP JSA 25+ SUSTAINMENT OUTCOME PAYMENT,WWEG EP EAST LONDON CAREERS DEVELOPMENT GROUP,CAREERS DEVELOPMENT GROUP,2027772109,"18,275.00"
Department for Work and Pensions,Employment Programmes,10-Dec-12,WP JSA 25+ JOB OUTCOME PAYMENTWP JSA 25+ JOB OUTCOME PAYMENT,WWEG EP SCOTLAND INGEUS UK,INGEUS UK LTD,2027691024,"18,275.00"
Department for Work and Pensions,Employment Programmes,21-Dec-12,WP JSA CLAIMING 22 OF 24MTHS JOB OUTCOME PAYMENT,WWEG EP W MIDLANDS COV WARW STAFFS AND MARCHES ESG,ESG HOLDINGS LIMITED,2027861734,"18,240.00"
Department for Work and Pensions,Employment Programmes,17-Dec-12,WP JSA 18-24 JOB OUTCOME PAYMENT,WWEG EP NORTH WEST GM CHES AND WARR AVANTA ENTERPRISE,AVANTA ENTERPRISE LTD,2027775872,"18,240.00"
Department for Work and Pensions,Employment Programmes,05-Dec-12,WP JSA 25+ JOB OUTCOME PAYMENTWP JSA 25+ JOB OUTCOME PAYMENT,WWEG EP EAST LONDON SEETEC,SEETEC BUSINESS TECHNOLOGY CENTRE LTD,2027675218,"18,240.00"
Department for Work and Pensions,Employment Programmes,04-Dec-12,WP JSA 25+ JOB OUTCOME PAYMENTWP JSA 25+ JOB OUTCOME PAYMENT,WWEG EP EAST LONDON SEETEC,SEETEC BUSINESS TECHNOLOGY CENTRE LTD,2027616497,"18,240.00"
Department for Work and Pensions,Employment Programmes,14-Dec-12,WP JSA 25+ JOB OUTCOME PAYMENTWP JSA 25+ JOB OUTCOME PAYMENT,WWEG EP EAST LONDON SEETEC,SEETEC BUSINESS TECHNOLOGY CENTRE LTD,2027772572,"18,240.00"
Department for Work and Pensions,Employment Programmes,05-Dec-12,SERVICE FEE,WWEG EP CORE MWA CPA NORTH WEST,JHP GROUP LTD,2027674572,"18,220.00"
Department for Work and Pensions,Employment Programmes,21-Dec-12,SERVICE FEE,WWEG EP CORE MWA CPA NORTH WEST,JHP GROUP LTD,2027862123,"18,220.00"
Department for Work and Pensions,Employment Programmes,27-Dec-12,WP JSA 25+ SUSTAINMENT OUTCOME PAYMENT,WWEG EP NORTH WEST GM CHES AND WARR SEETEC,SEETEC BUSINESS TECHNOLOGY CENTRE LTD,2027928286,"18,060.00"
Department for Work and Pensions,Corporate,17-Dec-12,POSTAGE,OPS BEN BD NW BIRKENHEAD,ROYAL MAIL GROUP PLC,2027775228,"18,038.00"
Department for Work and Pensions,Corporate,14-Dec-12,REPROGRAPHICS,OPS BEN BD SC GLASGOW NORTHGATE,XEROX UK LTD,2027772208,"18,004.00"
Department for Work and Pensions,Employment Programmes,06-Dec-12,WP JSA 25+ JOB OUTCOME PAYMENTWP JSA 25+ JOB OUTCOME PAYMENT,WWEG EP WEST YORKSHIRE INGEUS UK,INGEUS UK LTD,2027682689,"18,000.00"
Department for Work and Pensions,Employment Programmes,06-Dec-12,WP JSA 25+ JOB OUTCOME PAYMENTWP JSA 25+ JOB OUTCOME PAYMENT,WWEG EP SOUTH EAST SURR SUSSX AND KENT G4S,G4S REGIONAL MANAGEMENT UK & I LTD,2027682006,"18,000.00"
Department for Work and Pensions,Employment Programmes,03-Dec-12,WP JSA 25+ JOB OUTCOME PAYMENTWP JSA 25+ JOB OUTCOME PAYMENT,WWEG EP EAST OF ENGLAND INGEUS UK,INGEUS UK LTD,2027608833,"18,000.00"
Department for Work and Pensions,Employment Programmes,03-Dec-12,WP JSA 25+ JOB OUTCOME PAYMENTWP JSA 25+ JOB OUTCOME PAYMENT,WWEG EP WEST YORKSHIRE INGEUS UK,INGEUS UK LTD,2027608833,"18,000.00"
Department for Work and Pensions,Employment Programmes,21-Dec-12,WP JSA 18-24 JOB OUTCOME PAYMENT,WWEG EP NORTH EAST INGEUS UK,INGEUS UK LTD,2027861995,"18,000.00"
Department for Work and Pensions,Employment Programmes,18-Dec-12,WP JSA 25+ JOB OUTCOME PAYMENTWP JSA 25+ JOB OUTCOME PAYMENT,WWEG EP WEST LONDON MAXIMUS EMPLOYMENT UK,MAXIMUS EMPLOYMENT UK LTD,2027784615,"18,000.00"
Department for Work and Pensions,Employment Programmes,21-Dec-12,WP JSA 25+ ATTACHMENT FEE,WWEG EP W MIDLANDS COV WARW STAFFS AND MARCHES ESG,ESG HOLDINGS LIMITED,2027861734,"18,000.00"
Department for Work and Pensions,Employment Programmes,04-Dec-12,WP JSA 25+ JOB OUTCOME PAYMENTWP JSA 25+ JOB OUTCOME PAYMENT,WWEG EP NORTH EAST INGEUS UK,INGEUS UK LTD,2027617593,"18,000.00"
Department for Work and Pensions,Employment Programmes,21-Dec-12,WP JSA 18-24 JOB OUTCOME PAYMENT,WWEG EP NORTH WEST GM CHES AND WARR G4S,G4S REGIONAL MANAGEMENT UK & I LTD,2027860697,"18,000.00"
Department for Work and Pensions,Employment Programmes,05-Dec-12,WP JSA 25+ JOB OUTCOME PAYMENTWP JSA 25+ JOB OUTCOME PAYMENT,WWEG EP SCOTLAND WORKING LINKS,WORKING LINKS,2027675432,"18,000.00"
Department for Work and Pensions,Employment Programmes,21-Dec-12,WP JSA 25+ JOB OUTCOME PAYMENTWP JSA 25+ JOB OUTCOME PAYMENT,WWEG EP S WEST DEV COR DOR AND SOM WORKING LINKS,WORKING LINKS,2027862060,"18,000.00"
Department for Work and Pensions,Employment Programmes,19-Dec-12,WP JSA 25+ JOB OUTCOME PAYMENTWP JSA 25+ JOB OUTCOME PAYMENT,WWEG EP SCOTLAND WORKING LINKS,WORKING LINKS,2027786579,"18,000.00"
Department for Work and Pensions,Employment Programmes,19-Dec-12,WP JSA 25+ SUSTAINMENT OUTCOME PAYMENT,WWEG EP EAST LONDON SEETEC,SEETEC BUSINESS TECHNOLOGY CENTRE LTD,2027785964,"17,845.00"
